Organisation name,Organisation Code,Effective date,Directorate / service where expenditure incurred,Service Category label,Service category URI,Supplier (Beneficiary) name,Local supplier (beneficiary) internal reference,Supplier,Supplier registered charity number,VCSE grant,Payment date - G/L Date,Transaction number,Net Amount,Irrecoverable VAT,purpose_of_spend,Procurement classification / merchant category: Council�s procurement category name,Procurement classification / merchant category: CPV label,Procurement classification / merchant category: CPV code,Procurement classification / merchant category: Proclass label,Procurement classification / merchant category: Proclass code,card_transaction
The Royal Borough of Kensington and Chelsea,RBKC,,Adult Social Care,Assistive Equipment and Technology,,Medequip Assistive Technology Ltd ,1234994,,,,13/10/2021,2200200666,"118,638.49",,Hired and Contracted Services,,,,,,No
The Royal Borough of Kensington and Chelsea,RBKC,,Adult Social Care,Assistive Equipment and Technology,,Medequip Assistive Technology Ltd ,1234994,,,,25/10/2021,2200203028,"103,218.91",,Hired and Contracted Services,,,,,,No
The Royal Borough of Kensington and Chelsea,RBKC,,Adult Social Care,Assistive Equipment and Technology,,Medequip Assistive Technology Ltd ,1234994,,,,11/11/2021,2200206993,732.00,,Hired and Contracted Services,,,,,,No
The Royal Borough of Kensington and Chelsea,RBKC,,Adult Social Care,Assistive Equipment and Technology,,Medequip Assistive Technology Ltd ,1234994,,,,12/11/2021,2200207129,"98,327.59",,Hired and Contracted Services,,,,,,No
The Royal Borough of Kensington and Chelsea,RBKC,,Adult Social Care,Assistive Equipment and Technology,,Medequip Assistive Technology Ltd ,1234994,,,,26/11/2021,2200209859,"10,740.00",,Hired and Contracted Services,,,,,,No
The Royal Borough of Kensington and Chelsea,RBKC,,Adult Social Care,Assistive Equipment and Technology,,Medequip Assistive Technology Ltd ,1234994,,,,20/12/2021,2200214629,"94,903.38",,Hired and Contracted Services,,,,,,No
The Royal Borough of Kensington and Chelsea,RBKC,,Adult Social Care,Pan London Team,,Community Equipment Solutions Ltd,1284447,,,,27/10/2021,2200203464,800.00,,B*Safety Sampling & Testing,,,,,,No
The Royal Borough of Kensington and Chelsea,RBKC,,Adult Social Care,Pan London Team,,Form-AL Group Ltd,1284631,,,,02/11/2021,2200204694,"6,000.00",,Audit Fee - Non Current,,,,,,No
The Royal Borough of Kensington and Chelsea,RBKC,,Adult Social Care,Pan London Team,,Form-AL Group Ltd,1284631,,,,25/11/2021,2200209563,"1,200.00",,Audit Fee - Non Current,,,,,,No
The Royal Borough of Kensington and Chelsea,RBKC,,Adult Social Care,Telecare,,Doro AB,1274450,,,,03/12/2021,2200211475,"2,424.00",,Payments to Voluntary bodies,,,,,,No
The Royal Borough of Kensington and Chelsea,RBKC,,Adult Social Care,Telecare,,Tunstall Healthcare (UK) Ltd (Use 3012996),1235586,,,,05/10/2021,2200198644,"3,500.00",,Payments to Voluntary bodies,,,,,,No
The Royal Borough of Kensington and Chelsea,RBKC,,Adult Social Care,Telecare,,Tunstall Healthcare (UK) Ltd (Use 3012996),1235586,,,,05/10/2021,2200198812,"9,900.00",,Payments to Voluntary bodies,,,,,,No
The Royal Borough of Kensington and Chelsea,RBKC,,Adult Social Care,Telecare,,Tunstall Healthcare (UK) Ltd (Use 3012996),1235586,,,,10/11/2021,2200206610,"6,120.00",,Payments to Voluntary bodies,,,,,,No
The Royal Borough of Kensington and Chelsea,RBKC,,Adult Social Care,Telecare,,Tunstall Healthcare (UK) Ltd (Use 3012996),1235586,,,,23/11/2021,2200209193,"3,747.00",,Payments to Voluntary bodies,,,,,,No
The Royal Borough of Kensington and Chelsea,RBKC,,Adult Social Care,Telecare,,Tunstall Healthcare (UK) Ltd (Use 3012996),1235586,,,,30/11/2021,2200210421,"2,762.50",,Payments to Voluntary bodies,,,,,,No
The Royal Borough of Kensington and Chelsea,RBKC,,Adult Social Care,Telecare,,Tunstall Healthcare (UK) Ltd (Use 3012996),1235586,,,,17/12/2021,2200214042,"3,750.00",,Payments to Voluntary bodies,,,,,,No
The Royal Borough of Kensington and Chelsea,RBKC,,Environment & Communities,Building Control Trading Account,,PCDS LTD,D000000023,,,,30/12/2021,3110375385,622.00,,Income: Building Regulation Fees,,,,,,No
The Royal Borough of Kensington and Chelsea,RBKC,,Environment & Communities,Building Control Trading Account,,Wates Living Space (Maintenance) Ltd,1231445,,,,05/12/2021,2200211551,"1,512.60",,Service Charges - Premises,,,,,,No
The Royal Borough of Kensington and Chelsea,RBKC,,Environment & Communities,Building Control Trading Account,,Wates Living Space (Maintenance) Ltd,1231445,,,,05/12/2021,2200211552,"5,938.78",,Service Charges - Premises,,,,,,No
The Royal Borough of Kensington and Chelsea,RBKC,,Environment & Communities,Building Control Trading Account,,Wates Living Space (Maintenance) Ltd,1231445,,,,06/12/2021,2200211617,"1,129.15",,Service Charges - Premises,,,,,,No
The Royal Borough of Kensington and Chelsea,RBKC,,Environment & Communities,Building Control Trading Account,,Wates Living Space (Maintenance) Ltd,1231445,,,,10/12/2021,2200212579,"1,321.55",,Service Charges - Premises,,,,,,No
The Royal Borough of Kensington and Chelsea,RBKC,,Environment & Communities,Building Control Trading Account,,Wates Living Space (Maintenance) Ltd,1231445,,,,21/12/2021,2200214810,845.48,,Service Charges - Premises,,,,,,No
The Royal Borough of Kensington and Chelsea,RBKC,,Environment & Communities,Cemeteries,,C J Jordan & Son Ltd ,1233031,,,,22/10/2021,2200202482,"1,754.32",,Hired and Contracted Services,,,,,,No
The Royal Borough of Kensington and Chelsea,RBKC,,Environment & Communities,Cemeteries,,C J Jordan & Son Ltd ,1233031,,,,22/10/2021,2200202558,724.96,,Hired and Contracted Services,,,,,,No
The Royal Borough of Kensington and Chelsea,RBKC,,Environment & Communities,Cemeteries,,C J Jordan & Son Ltd ,1233031,,,,22/10/2021,2200202575,529.20,,Hired and Contracted Services,,,,,,No
The Royal Borough of Kensington and Chelsea,RBKC,,Environment & Communities,Cemeteries,,C J Jordan & Son Ltd ,1233031,,,,22/11/2021,2200208781,543.72,,Hired and Contracted Services,,,,,,No
The Royal Borough of Kensington and Chelsea,RBKC,,Environment & Communities,Cemeteries,,C J Jordan & Son Ltd ,1233031,,,,22/11/2021,2200208793,"1,210.60",,Hired and Contracted Services,,,,,,No
The Royal Borough of Kensington and Chelsea,RBKC,,Environment & Communities,Cemeteries,,C J Jordan & Son Ltd ,1233031,,,,21/12/2021,2200214953,"2,040.70",,Hired and Contracted Services,,,,,,No
The Royal Borough of Kensington and Chelsea,RBKC,,Environment & Communities,Cemeteries,,C J Jordan & Son Ltd ,1233031,,,,21/12/2021,2200214970,"2,168.55",,Hired and Contracted Services,,,,,,No
The Royal Borough of Kensington and Chelsea,RBKC,,Environment & Communities,Cemeteries,,C J Jordan & Son Ltd ,1233031,,,,21/12/2021,2200214971,"4,080.00",,Hired and Contracted Services,,,,,,No
The Royal Borough of Kensington and Chelsea,RBKC,,Environment & Communities,Cemeteries,,C J Jordan & Son Ltd ,1233031,,,,22/12/2021,2200215121,724.96,,Hired and Contracted Services,,,,,,No
The Royal Borough of Kensington and Chelsea,RBKC,,Environment & Communities,Cemeteries,,Redact Details,D000000023,,,,01/11/2021,3110357428,"2,197.50",,General Fees and Charges,,,,,,No
The Royal Borough of Kensington and Chelsea,RBKC,,Environment & Communities,Cemeteries,,Redact Details,D000000023,,,,18/11/2021,3110362992,"4,546.50",,General Fees and Charges,,,,,,No
The Royal Borough of Kensington and Chelsea,RBKC,,Environment & Communities,Cemeteries,,Redact Details,D000000023,,,,20/12/2021,3110371377,"3,333.00",,General Fees and Charges,,,,,,No
The Royal Borough of Kensington and Chelsea,RBKC,,Environment & Communities,Cemeteries,,Haven Memorials,1273974,,,,27/10/2021,2200203563,801.06,,Hired and Contracted Services,,,,,,No
The Royal Borough of Kensington and Chelsea,RBKC,,Environment & Communities,Cemeteries,,Redact Details,1231393,,,,20/12/2021,2200214510,"1,710.00",,Other Adhoc Site / Grounds Maintenanc,,,,,,No
The Royal Borough of Kensington and Chelsea,RBKC,,Environment & Communities,Cemeteries,,T/A Idverde ,1231423,,,,07/10/2021,2200199254,"1,239.36",,Grounds Maintenance Contracts,,,,,,No
The Royal Borough of Kensington and Chelsea,RBKC,,Environment & Communities,Cemeteries,,T/A Idverde ,1231423,,,,07/10/2021,2200199254,"54,458.26",,Grounds Maintenance Contracts,,,,,,No
The Royal Borough of Kensington and Chelsea,RBKC,,Environment & Communities,Cemeteries,,T/A Idverde ,1231423,,,,01/11/2021,2200204433,"54,458.26",,Grounds Maintenance Contracts,,,,,,No
The Royal Borough of Kensington and Chelsea,RBKC,,Environment & Communities,Cemeteries,,T/A Idverde ,1231423,,,,01/11/2021,2200204433,"1,239.36",,Grounds Maintenance Contracts,,,,,,No
The Royal Borough of Kensington and Chelsea,RBKC,,Environment & Communities,Cemeteries,,Redact Details,1231428,,,,20/12/2021,2200214516,"1,710.00",,Other Adhoc Site / Grounds Maintenanc,,,,,,No
The Royal Borough of Kensington and Chelsea,RBKC,,Environment & Communities,Mortuary Service,,City Of Westminster ,1231771,,,,08/11/2021,2200206031,"62,380.00",,Hired and Contracted Services,,,,,,No
The Royal Borough of Kensington and Chelsea,RBKC,,Statutory and Corporate Items,Capital Projects Cost Centre (default),,2CQR Ltd ,1253540,,,,02/12/2021,2200211004,"11,500.00",,Computer Equipment,,,,,,No
The Royal Borough of Kensington and Chelsea,RBKC,,Statutory and Corporate Items,Capital Projects Cost Centre (default),,3Bm Ltd,1232075,,,,01/10/2021,2200197916,"5,100.00",,B*Surveyors,,,,,,No
The Royal Borough of Kensington and Chelsea,RBKC,,Statutory and Corporate Items,Capital Projects Cost Centre (default),,3Bm Ltd,1232075,,,,01/10/2021,2200197916,510.00,,B*Surveyors,,,,,,No
The Royal Borough of Kensington and Chelsea,RBKC,,Statutory and Corporate Items,Capital Projects Cost Centre (default),,3Bm Ltd,1232075,,,,01/10/2021,2200197918,"29,837.00",,B*Surveyors,,,,,,No
The Royal Borough of Kensington and Chelsea,RBKC,,Statutory and Corporate Items,Capital Projects Cost Centre (default),,3Bm Ltd,1232075,,,,01/10/2021,2200197918,"2,984.00",,B*Surveyors,,,,,,No
The Royal Borough of Kensington and Chelsea,RBKC,,Statutory and Corporate Items,Capital Projects Cost Centre (default),,3Bm Ltd,1232075,,,,01/10/2021,2200197922,"12,000.00",,B*Surveyors,,,,,,No
The Royal Borough of Kensington and Chelsea,RBKC,,Statutory and Corporate Items,Capital Projects Cost Centre (default),,3Bm Ltd,1232075,,,,01/10/2021,2200197922,"120,000.00",,Romanse Expenses,,,,,,No
The Royal Borough of Kensington and Chelsea,RBKC,,Statutory and Corporate Items,Capital Projects Cost Centre (default),,3Bm Ltd,1232075,,,,05/10/2021,2200198721,"1,000.00",,Professional Fees : Non Legal,,,,,,No
The Royal Borough of Kensington and Chelsea,RBKC,,Statutory and Corporate Items,Capital Projects Cost Centre (default),,3Bm Ltd,1232075,,,,06/10/2021,2200198996,"6,500.00",,B*Surveyors,,,,,,No
The Royal Borough of Kensington and Chelsea,RBKC,,Statutory and Corporate Items,Capital Projects Cost Centre (default),,3Bm Ltd,1232075,,,,06/10/2021,2200198996,650.00,,B*Surveyors,,,,,,No
The Royal Borough of Kensington and Chelsea,RBKC,,Statutory and Corporate Items,Capital Projects Cost Centre (default),,3Bm Ltd,1232075,,,,06/10/2021,2200198998,"4,800.00",,B*Surveyors,,,,,,No
The Royal Borough of Kensington and Chelsea,RBKC,,Statutory and Corporate Items,Capital Projects Cost Centre (default),,3Bm Ltd,1232075,,,,06/10/2021,2200199073,"1,150.00",,Creditors GR/IR -,,,,,,No
The Royal Borough of Kensington and Chelsea,RBKC,,Statutory and Corporate Items,Capital Projects Cost Centre (default),,3Bm Ltd,1232075,,,,06/10/2021,2200199077,"5,960.00",,Other Consultants,,,,,,No
The Royal Borough of Kensington and Chelsea,RBKC,,Statutory and Corporate Items,Capital Projects Cost Centre (default),,3Bm Ltd,1232075,,,,06/10/2021,2200199077,596.00,,Other Consultants,,,,,,No
The Royal Borough of Kensington and Chelsea,RBKC,,Statutory and Corporate Items,Capital Projects Cost Centre (default),,3Bm Ltd,1232075,,,,06/10/2021,2200199078,"1,800.00",,Creditors GR/IR -,,,,,,No
The Royal Borough of Kensington and Chelsea,RBKC,,Statutory and Corporate Items,Capital Projects Cost Centre (default),,3Bm Ltd,1232075,,,,22/10/2021,2200202595,"1,910.00",,Romanse Expenses,,,,,,No
The Royal Borough of Kensington and Chelsea,RBKC,,Statutory and Corporate Items,Capital Projects Cost Centre (default),,3Bm Ltd,1232075,,,,22/10/2021,2200202596,750.00,,Romanse Expenses,,,,,,No
The Royal Borough of Kensington and Chelsea,RBKC,,Statutory and Corporate Items,Capital Projects Cost Centre (default),,3Bm Ltd,1232075,,,,22/10/2021,2200202601,"2,750.00",,Romanse Expenses,,,,,,No
The Royal Borough of Kensington and Chelsea,RBKC,,Statutory and Corporate Items,Capital Projects Cost Centre (default),,3Bm Ltd,1232075,,,,22/10/2021,2200202603,760.00,,Other Consultants,,,,,,No
The Royal Borough of Kensington and Chelsea,RBKC,,Statutory and Corporate Items,Capital Projects Cost Centre (default),,3Bm Ltd,1232075,,,,22/10/2021,2200202605,"15,842.00",,Romanse Expenses,,,,,,No
The Royal Borough of Kensington and Chelsea,RBKC,,Statutory and Corporate Items,Capital Projects Cost Centre (default),,3Bm Ltd,1232075,,,,22/10/2021,2200202605,"1,585.00",,Romanse Expenses,,,,,,No
The Royal Borough of Kensington and Chelsea,RBKC,,Statutory and Corporate Items,Capital Projects Cost Centre (default),,3Bm Ltd,1232075,,,,25/10/2021,2200202853,"14,040.00",,Romanse Expenses,,,,,,No
The Royal Borough of Kensington and Chelsea,RBKC,,Statutory and Corporate Items,Capital Projects Cost Centre (default),,3Bm Ltd,1232075,,,,25/10/2021,2200203021,741.00,,Romanse Expenses,,,,,,No
The Royal Borough of Kensington and Chelsea,RBKC,,Statutory and Corporate Items,Capital Projects Cost Centre (default),,3Bm Ltd,1232075,,,,25/10/2021,2200203021,"7,411.00",,Romanse Expenses,,,,,,No
The Royal Borough of Kensington and Chelsea,RBKC,,Statutory and Corporate Items,Capital Projects Cost Centre (default),,3Bm Ltd,1232075,,,,26/10/2021,2200203171,"3,450.00",,B*Surveyors,,,,,,No
The Royal Borough of Kensington and Chelsea,RBKC,,Statutory and Corporate Items,Capital Projects Cost Centre (default),,3Bm Ltd,1232075,,,,26/10/2021,2200203173,850.00,,B*Surveyors,,,,,,No
The Royal Borough of Kensington and Chelsea,RBKC,,Statutory and Corporate Items,Capital Projects Cost Centre (default),,3Bm Ltd,1232075,,,,26/10/2021,2200203254,"5,225.00",,B*Surveyors,,,,,,No
The Royal Borough of Kensington and Chelsea,RBKC,,Statutory and Corporate Items,Capital Projects Cost Centre (default),,3Bm Ltd,1232075,,,,26/10/2021,2200203254,523.00,,B*Surveyors,,,,,,No
The Royal Borough of Kensington and Chelsea,RBKC,,Statutory and Corporate Items,Capital Projects Cost Centre (default),,3Bm Ltd,1232075,,,,26/10/2021,2200203257,"6,995.00",,B*Surveyors,,,,,,No
The Royal Borough of Kensington and Chelsea,RBKC,,Statutory and Corporate Items,Capital Projects Cost Centre (default),,3Bm Ltd,1232075,,,,26/10/2021,2200203257,700.00,,B*Surveyors,,,,,,No
The Royal Borough of Kensington and Chelsea,RBKC,,Statutory and Corporate Items,Capital Projects Cost Centre (default),,3Bm Ltd,1232075,,,,12/11/2021,2200207219,"14,527.00",,B*Surveyors,,,,,,No
The Royal Borough of Kensington and Chelsea,RBKC,,Statutory and Corporate Items,Capital Projects Cost Centre (default),,3Bm Ltd,1232075,,,,12/11/2021,2200207219,"145,267.00",,B*Surveyors,,,,,,No
The Royal Borough of Kensington and Chelsea,RBKC,,Statutory and Corporate Items,Capital Projects Cost Centre (default),,3Bm Ltd,1232075,,,,12/11/2021,2200207225,"3,042.00",,B*Surveyors,,,,,,No
The Royal Borough of Kensington and Chelsea,RBKC,,Statutory and Corporate Items,Capital Projects Cost Centre (default),,3Bm Ltd,1232075,,,,12/11/2021,2200207225,"30,415.00",,B*Surveyors,,,,,,No
The Royal Borough of Kensington and Chelsea,RBKC,,Statutory and Corporate Items,Capital Projects Cost Centre (default),,3Bm Ltd,1232075,,,,12/11/2021,2200207226,"4,500.00",,Creditors GR/IR -,,,,,,No
The Royal Borough of Kensington and Chelsea,RBKC,,Statutory and Corporate Items,Capital Projects Cost Centre (default),,3Bm Ltd,1232075,,,,12/11/2021,2200207227,"1,549.00",,B*Surveyors,,,,,,No
The Royal Borough of Kensington and Chelsea,RBKC,,Statutory and Corporate Items,Capital Projects Cost Centre (default),,3Bm Ltd,1232075,,,,12/11/2021,2200207227,"15,481.00",,B*Surveyors,,,,,,No
The Royal Borough of Kensington and Chelsea,RBKC,,Statutory and Corporate Items,Capital Projects Cost Centre (default),,3Bm Ltd,1232075,,,,09/12/2021,2200212411,"3,738.00",,B*Surveyors,,,,,,No
The Royal Borough of Kensington and Chelsea,RBKC,,Statutory and Corporate Items,Capital Projects Cost Centre (default),,3Bm Ltd,1232075,,,,09/12/2021,2200212411,"3,734.00",,B*Surveyors,,,,,,No
The Royal Borough of Kensington and Chelsea,RBKC,,Statutory and Corporate Items,Capital Projects Cost Centre (default),,3Bm Ltd,1232075,,,,16/12/2021,2200213597,"1,045.00",,B*Surveyors,,,,,,No
The Royal Borough of Kensington and Chelsea,RBKC,,Statutory and Corporate Items,Capital Projects Cost Centre (default),,3Bm Ltd,1232075,,,,20/12/2021,2200214182,"7,475.00",,B*Surveyors,,,,,,No
The Royal Borough of Kensington and Chelsea,RBKC,,Statutory and Corporate Items,Capital Projects Cost Centre (default),,3Bm Ltd,1232075,,,,20/12/2021,2200214182,748.00,,B*Surveyors,,,,,,No
The Royal Borough of Kensington and Chelsea,RBKC,,Statutory and Corporate Items,Capital Projects Cost Centre (default),,3Bm Ltd,1232075,,,,20/12/2021,2200214183,"3,738.00",,B*Surveyors,,,,,,No
The Royal Borough of Kensington and Chelsea,RBKC,,Statutory and Corporate Items,Capital Projects Cost Centre (default),,3Bm Ltd,1232075,,,,21/12/2021,2200214746,550.00,,Quantity Surveyors,,,,,,No
The Royal Borough of Kensington and Chelsea,RBKC,,Statutory and Corporate Items,Capital Projects Cost Centre (default),,3Bm Ltd,1232075,,,,21/12/2021,2200214747,"2,200.00",,Quantity Surveyors,,,,,,No
The Royal Borough of Kensington and Chelsea,RBKC,,Statutory and Corporate Items,Capital Projects Cost Centre (default),,3Bm Ltd,1232075,,,,21/12/2021,2200214748,"55,504.00",,B*Surveyors,,,,,,No
The Royal Borough of Kensington and Chelsea,RBKC,,Statutory and Corporate Items,Capital Projects Cost Centre (default),,3Bm Ltd,1232075,,,,21/12/2021,2200214749,"2,728.55",,B*Surveyors,,,,,,No
The Royal Borough of Kensington and Chelsea,RBKC,,Statutory and Corporate Items,Capital Projects Cost Centre (default),,3Bm Ltd,1232075,,,,21/12/2021,2200214961,"3,003.00",,B*Surveyors,,,,,,No
The Royal Borough of Kensington and Chelsea,RBKC,,Statutory and Corporate Items,Capital Projects Cost Centre (default),,3Bm Ltd,1232075,,,,21/12/2021,2200214963,800.00,,B*Surveyors,,,,,,No
The Royal Borough of Kensington and Chelsea,RBKC,,Statutory and Corporate Items,Capital Projects Cost Centre (default),,3Bm Ltd,1232075,,,,21/12/2021,2200214964,"4,850.00",,B*Surveyors,,,,,,No
The Royal Borough of Kensington and Chelsea,RBKC,,Statutory and Corporate Items,Capital Projects Cost Centre (default),,3Bm Ltd,1232075,,,,22/12/2021,2200215047,"1,194.00",,B*Surveyors,,,,,,No
The Royal Borough of Kensington and Chelsea,RBKC,,Statutory and Corporate Items,Capital Projects Cost Centre (default),,3Bm Ltd,1232075,,,,23/12/2021,2200215359,"1,375.00",,B*Surveyors,,,,,,No
The Royal Borough of Kensington and Chelsea,RBKC,,Statutory and Corporate Items,Capital Projects Cost Centre (default),,3Bm Ltd,1232075,,,,23/12/2021,2200215368,"2,933.00",,HCC - Architects,,,,,,No
The Royal Borough of Kensington and Chelsea,RBKC,,Statutory and Corporate Items,Capital Projects Cost Centre (default),,3Bm Ltd,1232075,,,,23/12/2021,2200215369,"1,139.00",,B*Surveyors,,,,,,No
The Royal Borough of Kensington and Chelsea,RBKC,,Statutory and Corporate Items,Capital Projects Cost Centre (default),,A N Contract Service Ltd,1232095,,,,04/10/2021,2200198487,"70,059.48",,Planned Maintenance (CM),,,,,,No
The Royal Borough of Kensington and Chelsea,RBKC,,Statutory and Corporate Items,Capital Projects Cost Centre (default),,A N Contract Service Ltd,1232095,,,,19/10/2021,2200201894,"17,105.00",,Planned Maintenance (CM),,,,,,No
The Royal Borough of Kensington and Chelsea,RBKC,,Statutory and Corporate Items,Capital Projects Cost Centre (default),,A N Contract Service Ltd,1232095,,,,26/10/2021,2200203362,"2,353.00",,Planned Maintenance (CM),,,,,,No
The Royal Borough of Kensington and Chelsea,RBKC,,Statutory and Corporate Items,Capital Projects Cost Centre (default),,A N Contract Service Ltd,1232095,,,,12/11/2021,2200207161,"29,299.25",,Design Consultant,,,,,,No
The Royal Borough of Kensington and Chelsea,RBKC,,Statutory and Corporate Items,Capital Projects Cost Centre (default),,A N Contract Service Ltd,1232095,,,,13/12/2021,2200212960,"3,550.00",,Planned Maintenance (CM),,,,,,No
The Royal Borough of Kensington and Chelsea,RBKC,,Statutory and Corporate Items,Capital Projects Cost Centre (default),,A N Contract Service Ltd,1232095,,,,15/12/2021,2200213370,"3,750.00",,Planned Maintenance (CM),,,,,,No
The Royal Borough of Kensington and Chelsea,RBKC,,Statutory and Corporate Items,Capital Projects Cost Centre (default),,A N Contract Service Ltd,1232095,,,,24/12/2021,2200215673,"12,585.50",,Planned Maintenance (CM),,,,,,No
The Royal Borough of Kensington and Chelsea,RBKC,,Statutory and Corporate Items,Capital Projects Cost Centre (default),,A N Contract Service Ltd,1232095,,,,30/12/2021,2200215954,"3,450.00",,Planned Maintenance (CM),,,,,,No
The Royal Borough of Kensington and Chelsea,RBKC,,Statutory and Corporate Items,Capital Projects Cost Centre (default),,A1 Loo Hire ,1232098,,,,13/12/2021,2200212927,"4,010.00",,Professional Fees : Non Legal,,,,,,No
The Royal Borough of Kensington and Chelsea,RBKC,,Statutory and Corporate Items,Capital Projects Cost Centre (default),,ACS PROFESSIONALS IN CONSTRUCTION LTD,1277658,,,,25/10/2021,2200202898,"97,000.00",,Payments to main contractor,,,,,,No
The Royal Borough of Kensington and Chelsea,RBKC,,Statutory and Corporate Items,Capital Projects Cost Centre (default),,ACS PROFESSIONALS IN CONSTRUCTION LTD,1277658,,,,26/10/2021,2200203328,"50,884.00",,Payments to main contractor,,,,,,No
The Royal Borough of Kensington and Chelsea,RBKC,,Statutory and Corporate Items,Capital Projects Cost Centre (default),,ACS PROFESSIONALS IN CONSTRUCTION LTD,1277658,,,,10/11/2021,2200206671,"291,591.00",,Other Consultants,,,,,,No
The Royal Borough of Kensington and Chelsea,RBKC,,Statutory and Corporate Items,Capital Projects Cost Centre (default),,ACS PROFESSIONALS IN CONSTRUCTION LTD,1277658,,,,30/11/2021,2200210564,"78,000.00",,Accommodation,,,,,,No
The Royal Borough of Kensington and Chelsea,RBKC,,Statutory and Corporate Items,Capital Projects Cost Centre (default),,AECB,1278413,,,,23/12/2021,2200215370,"1,230.00",,Other Consultants,,,,,,No
The Royal Borough of Kensington and Chelsea,RBKC,,Statutory and Corporate Items,Capital Projects Cost Centre (default),,AKSWard Ltd,1279780,,,,12/10/2021,2200200409,500.00,,Professional Fees : Non Legal,,,,,,No
The Royal Borough of Kensington and Chelsea,RBKC,,Statutory and Corporate Items,Capital Projects Cost Centre (default),,AKSWard Ltd,1279780,,,,18/11/2021,2200208376,"1,200.00",,Professional Fees : Non Legal,,,,,,No
The Royal Borough of Kensington and Chelsea,RBKC,,Statutory and Corporate Items,Capital Projects Cost Centre (default),,Ans Group Ltd,1265384,,,,15/10/2021,2200201305,"28,492.00",,Computer Software,,,,,,No
The Royal Borough of Kensington and Chelsea,RBKC,,Statutory and Corporate Items,Capital Projects Cost Centre (default),,Ans Group Ltd,1265384,,,,20/10/2021,2200202125,"8,498.63",,Computer Software,,,,,,No
The Royal Borough of Kensington and Chelsea,RBKC,,Statutory and Corporate Items,Capital Projects Cost Centre (default),,Ans Group Ltd,1265384,,,,22/12/2021,2200215129,"11,958.79",,Computer Software,,,,,,No
The Royal Borough of Kensington and Chelsea,RBKC,,Statutory and Corporate Items,Capital Projects Cost Centre (default),,AO Business,1232416,,,,12/11/2021,2200207166,"1,385.70",,Special Maintenance,,,,,,No
The Royal Borough of Kensington and Chelsea,RBKC,,Statutory and Corporate Items,Capital Projects Cost Centre (default),,AO Business,1232416,,,,22/12/2021,2200215167,690.83,,Special Maintenance,,,,,,No
The Royal Borough of Kensington and Chelsea,RBKC,,Statutory and Corporate Items,Capital Projects Cost Centre (default),,AO Business,1232416,,,,22/12/2021,2200215170,961.66,,Special Maintenance,,,,,,No
The Royal Borough of Kensington and Chelsea,RBKC,,Statutory and Corporate Items,Capital Projects Cost Centre (default),,AO Business,1232416,,,,23/12/2021,2200215447,"4,142.05",,Special Maintenance,,,,,,No
The Royal Borough of Kensington and Chelsea,RBKC,,Statutory and Corporate Items,Capital Projects Cost Centre (default),,Abbey Builders Ltd ,1232102,,,,20/12/2021,2200214577,"6,075.31",,Payments to main contractor,,,,,,No
The Royal Borough of Kensington and Chelsea,RBKC,,Statutory and Corporate Items,Capital Projects Cost Centre (default),,Academy Consulting Solutions Ltd ,1232117,,,,04/10/2021,2200198314,"2,000.00",,Other Consultants,,,,,,No
The Royal Borough of Kensington and Chelsea,RBKC,,Statutory and Corporate Items,Capital Projects Cost Centre (default),,Academy Consulting Solutions Ltd ,1232117,,,,04/10/2021,2200198316,"6,500.00",,Payments to main contractor,,,,,,No
The Royal Borough of Kensington and Chelsea,RBKC,,Statutory and Corporate Items,Capital Projects Cost Centre (default),,Academy Consulting Solutions Ltd ,1232117,,,,04/10/2021,2200198317,"1,500.00",,Other Consultants,,,,,,No
The Royal Borough of Kensington and Chelsea,RBKC,,Statutory and Corporate Items,Capital Projects Cost Centre (default),,Academy Consulting Solutions Ltd ,1232117,,,,06/10/2021,2200199172,526.00,,Payments to main contractor,,,,,,No
The Royal Borough of Kensington and Chelsea,RBKC,,Statutory and Corporate Items,Capital Projects Cost Centre (default),,Academy Consulting Solutions Ltd ,1232117,,,,05/11/2021,2200205757,"3,000.00",,Payments to main contractor,,,,,,No
The Royal Borough of Kensington and Chelsea,RBKC,,Statutory and Corporate Items,Capital Projects Cost Centre (default),,Academy Consulting Solutions Ltd ,1232117,,,,05/11/2021,2200205758,500.00,,Other Consultants,,,,,,No
The Royal Borough of Kensington and Chelsea,RBKC,,Statutory and Corporate Items,Capital Projects Cost Centre (default),,AD ESSE CONSULTING LTD,1280011,,,,13/10/2021,2200200794,650.00,,Design Consultant,,,,,,No
The Royal Borough of Kensington and Chelsea,RBKC,,Statutory and Corporate Items,Capital Projects Cost Centre (default),,AD ESSE CONSULTING LTD,1280011,,,,10/11/2021,2200206622,"1,703.20",,Design Consultant,,,,,,No
The Royal Borough of Kensington and Chelsea,RBKC,,Statutory and Corporate Items,Capital Projects Cost Centre (default),,Adam Architecture Ltd ,1232322,,,,11/10/2021,2200199895,"3,643.00",,Romanse Expenses,,,,,,No
The Royal Borough of Kensington and Chelsea,RBKC,,Statutory and Corporate Items,Capital Projects Cost Centre (default),,Adam Architecture Ltd ,1232322,,,,03/11/2021,2200204994,880.00,,Romanse Expenses,,,,,,No
The Royal Borough of Kensington and Chelsea,RBKC,,Statutory and Corporate Items,Capital Projects Cost Centre (default),,Adam Architecture Ltd ,1232322,,,,06/12/2021,2200211614,880.00,,Romanse Expenses,,,,,,No
The Royal Borough of Kensington and Chelsea,RBKC,,Statutory and Corporate Items,Capital Projects Cost Centre (default),,Adaptations MW Ltd,1272466,,,,18/10/2021,2200201606,"6,279.00",,Payments to main contractor,,,,,,No
The Royal Borough of Kensington and Chelsea,RBKC,,Statutory and Corporate Items,Capital Projects Cost Centre (default),,Adaptations MW Ltd,1272466,,,,01/11/2021,2200204172,"6,279.00",,Payments to main contractor,,,,,,No
The Royal Borough of Kensington and Chelsea,RBKC,,Statutory and Corporate Items,Capital Projects Cost Centre (default),,Adaptations MW Ltd,1272466,,,,05/11/2021,2200205830,"11,573.50",,Payments to main contractor,,,,,,No
The Royal Borough of Kensington and Chelsea,RBKC,,Statutory and Corporate Items,Capital Projects Cost Centre (default),,Adaptations MW Ltd,1272466,,,,19/11/2021,2200208617,"6,459.00",,Payments to main contractor,,,,,,No
The Royal Borough of Kensington and Chelsea,RBKC,,Statutory and Corporate Items,Capital Projects Cost Centre (default),,Alexander Scaffold Ltd ,1231166,,,,18/11/2021,2200208333,880.00,,Payments to main contractor,,,,,,No
The Royal Borough of Kensington and Chelsea,RBKC,,Statutory and Corporate Items,Capital Projects Cost Centre (default),,Allies & Morrison LLP ,1232371,,,,01/10/2021,2200198040,"3,947.42",,Romanse Expenses,,,,,,No
The Royal Borough of Kensington and Chelsea,RBKC,,Statutory and Corporate Items,Capital Projects Cost Centre (default),,Allies & Morrison LLP ,1232371,,,,04/10/2021,2200198346,"6,125.00",,Payments to main contractor,,,,,,No
The Royal Borough of Kensington and Chelsea,RBKC,,Statutory and Corporate Items,Capital Projects Cost Centre (default),,Allies & Morrison LLP ,1232371,,,,04/10/2021,2200198347,"6,125.00",,Payments to main contractor,,,,,,No
The Royal Borough of Kensington and Chelsea,RBKC,,Statutory and Corporate Items,Capital Projects Cost Centre (default),,Allies & Morrison LLP ,1232371,,,,04/10/2021,2200198348,832.13,,Payments to main contractor,,,,,,No
The Royal Borough of Kensington and Chelsea,RBKC,,Statutory and Corporate Items,Capital Projects Cost Centre (default),,Allies & Morrison LLP ,1232371,,,,01/11/2021,2200204402,"6,000.00",,Payments to main contractor,,,,,,No
The Royal Borough of Kensington and Chelsea,RBKC,,Statutory and Corporate Items,Capital Projects Cost Centre (default),,Allies & Morrison LLP ,1232371,,,,03/12/2021,2200211274,"5,263.09",,Romanse Expenses,,,,,,No
The Royal Borough of Kensington and Chelsea,RBKC,,Statutory and Corporate Items,Capital Projects Cost Centre (default),,Allies & Morrison LLP ,1232371,,,,15/12/2021,2200213506,"6,000.00",,Payments to main contractor,,,,,,No
The Royal Borough of Kensington and Chelsea,RBKC,,Statutory and Corporate Items,Capital Projects Cost Centre (default),,Amwell Construction Ltd ,1231169,,,,18/10/2021,2200201595,"6,041.00",,Payments to main contractor,,,,,,No
The Royal Borough of Kensington and Chelsea,RBKC,,Statutory and Corporate Items,Capital Projects Cost Centre (default),,Amwell Construction Ltd ,1231169,,,,09/11/2021,2200206361,"8,331.00",,Payments to main contractor,,,,,,No
The Royal Borough of Kensington and Chelsea,RBKC,,Statutory and Corporate Items,Capital Projects Cost Centre (default),,Amwell Construction Ltd ,1231169,,,,09/12/2021,2200212487,"16,739.00",,Payments to main contractor,,,,,,No
The Royal Borough of Kensington and Chelsea,RBKC,,Statutory and Corporate Items,Capital Projects Cost Centre (default),,Amwell Construction Ltd ,1231169,,,,16/12/2021,2200213745,"3,314.00",,Payments to main contractor,,,,,,No
The Royal Borough of Kensington and Chelsea,RBKC,,Statutory and Corporate Items,Capital Projects Cost Centre (default),,Amwell Construction Ltd ,1231169,,,,23/12/2021,2200215463,"6,086.00",,Payments to main contractor,,,,,,No
The Royal Borough of Kensington and Chelsea,RBKC,,Statutory and Corporate Items,Capital Projects Cost Centre (default),,Amwell Construction Ltd ,1231169,,,,23/12/2021,2200215464,"6,540.00",,Payments to main contractor,,,,,,No
The Royal Borough of Kensington and Chelsea,RBKC,,Statutory and Corporate Items,Capital Projects Cost Centre (default),,Anderson Acoustics Ltd,1280054,,,,15/11/2021,2200207483,500.00,,Other Consultants,,,,,,No
The Royal Borough of Kensington and Chelsea,RBKC,,Statutory and Corporate Items,Capital Projects Cost Centre (default),,Aquaneed Ltd,1260944,,,,18/10/2021,2200201609,"8,497.93",,Payments to main contractor,,,,,,No
The Royal Borough of Kensington and Chelsea,RBKC,,Statutory and Corporate Items,Capital Projects Cost Centre (default),,Aquaneed Ltd,1260944,,,,26/10/2021,2200203166,"7,697.68",,Payments to main contractor,,,,,,No
The Royal Borough of Kensington and Chelsea,RBKC,,Statutory and Corporate Items,Capital Projects Cost Centre (default),,Aquaneed Ltd,1260944,,,,03/11/2021,2200205332,"1,415.45",,Payments to main contractor,,,,,,No
The Royal Borough of Kensington and Chelsea,RBKC,,Statutory and Corporate Items,Capital Projects Cost Centre (default),,Aquaneed Ltd,1260944,,,,25/11/2021,2200209590,"6,419.81",,Payments to main contractor,,,,,,No
The Royal Borough of Kensington and Chelsea,RBKC,,Statutory and Corporate Items,Capital Projects Cost Centre (default),,Aquaneed Ltd,1260944,,,,09/12/2021,2200212426,"9,629.71",,Payments to main contractor,,,,,,No
The Royal Borough of Kensington and Chelsea,RBKC,,Statutory and Corporate Items,Capital Projects Cost Centre (default),,Aquaneed Ltd,1260944,,,,09/12/2021,2200212497,"16,836.60",,Payments to main contractor,,,,,,No
The Royal Borough of Kensington and Chelsea,RBKC,,Statutory and Corporate Items,Capital Projects Cost Centre (default),,Arcadis Consulting (UK) Ltd ,1232429,,,,20/12/2021,2200214557,"7,333.20",,Professional Fees : Non Legal,,,,,,No
The Royal Borough of Kensington and Chelsea,RBKC,,Statutory and Corporate Items,Capital Projects Cost Centre (default),,Arcadis Llp ,1232430,,,,18/10/2021,2200201612,"3,048.00",,Other Consultants,,,,,,No
The Royal Borough of Kensington and Chelsea,RBKC,,Statutory and Corporate Items,Capital Projects Cost Centre (default),,Arcadis Llp ,1232430,,,,18/10/2021,2200201627,"5,000.00",,Professional Fees : Non Legal,,,,,,No
The Royal Borough of Kensington and Chelsea,RBKC,,Statutory and Corporate Items,Capital Projects Cost Centre (default),,Arcadis Llp ,1232430,,,,03/11/2021,2200204997,"5,000.00",,Professional Fees : Non Legal,,,,,,No
The Royal Borough of Kensington and Chelsea,RBKC,,Statutory and Corporate Items,Capital Projects Cost Centre (default),,Arcadis Llp ,1232430,,,,04/11/2021,2200205527,"30,000.00",,Other Consultants,,,,,,No
The Royal Borough of Kensington and Chelsea,RBKC,,Statutory and Corporate Items,Capital Projects Cost Centre (default),,Arcadis Llp ,1232430,,,,01/12/2021,2200210799,"5,000.00",,Professional Fees : Non Legal,,,,,,No
The Royal Borough of Kensington and Chelsea,RBKC,,Statutory and Corporate Items,Capital Projects Cost Centre (default),,Architecture PLB ,1232434,,,,27/10/2021,2200203468,"5,832.50",,Romanse Expenses,,,,,,No
The Royal Borough of Kensington and Chelsea,RBKC,,Statutory and Corporate Items,Capital Projects Cost Centre (default),,Arcus Consulting Llp,1265536,,,,05/10/2021,2200198713,"3,323.71",,Site Works,,,,,,No
The Royal Borough of Kensington and Chelsea,RBKC,,Statutory and Corporate Items,Capital Projects Cost Centre (default),,Arcus Consulting Llp,1265536,,,,05/10/2021,2200198747,"2,747.06",,Payments to main contractor,,,,,,No
The Royal Borough of Kensington and Chelsea,RBKC,,Statutory and Corporate Items,Capital Projects Cost Centre (default),,Arcus Consulting Llp,1265536,,,,05/10/2021,2200198749,"2,373.71",,Site Works,,,,,,No
The Royal Borough of Kensington and Chelsea,RBKC,,Statutory and Corporate Items,Capital Projects Cost Centre (default),,Arcus Consulting Llp,1265536,,,,19/10/2021,2200201847,"9,048.00",,Payments to main contractor,,,,,,No
The Royal Borough of Kensington and Chelsea,RBKC,,Statutory and Corporate Items,Capital Projects Cost Centre (default),,Arcus Consulting Llp,1265536,,,,09/11/2021,2200206349,"2,747.06",,Payments to main contractor,,,,,,No
The Royal Borough of Kensington and Chelsea,RBKC,,Statutory and Corporate Items,Capital Projects Cost Centre (default),,Arcus Consulting Llp,1265536,,,,09/11/2021,2200206352,"2,373.71",,Site Works,,,,,,No
The Royal Borough of Kensington and Chelsea,RBKC,,Statutory and Corporate Items,Capital Projects Cost Centre (default),,Arcus Consulting Llp,1265536,,,,09/11/2021,2200206376,"3,323.00",,Site Works,,,,,,No
The Royal Borough of Kensington and Chelsea,RBKC,,Statutory and Corporate Items,Capital Projects Cost Centre (default),,Arcus Consulting Llp,1265536,,,,08/12/2021,2200212075,"2,373.71",,Site Works,,,,,,No
The Royal Borough of Kensington and Chelsea,RBKC,,Statutory and Corporate Items,Capital Projects Cost Centre (default),,Arcus Consulting Llp,1265536,,,,08/12/2021,2200212077,"2,747.06",,Payments to main contractor,,,,,,No
The Royal Borough of Kensington and Chelsea,RBKC,,Statutory and Corporate Items,Capital Projects Cost Centre (default),,Arcus Consulting Llp,1265536,,,,08/12/2021,2200212090,"3,323.00",,Site Works,,,,,,No
The Royal Borough of Kensington and Chelsea,RBKC,,Statutory and Corporate Items,Capital Projects Cost Centre (default),,Ark Brunel Primary School ,1236056,,,,04/10/2021,3110349770,"9,506.10",,Computer Equipment,,,,,,No
The Royal Borough of Kensington and Chelsea,RBKC,,Statutory and Corporate Items,Capital Projects Cost Centre (default),,Ark Build Plc ,1231173,,,,15/11/2021,2200207487,"48,500.00",,Payments to main contractor,,,,,,No
The Royal Borough of Kensington and Chelsea,RBKC,,Statutory and Corporate Items,Capital Projects Cost Centre (default),,Ark Build Plc ,1231173,,,,24/11/2021,2200209323,"27,272.67",,Romanse Expenses,,,,,,No
The Royal Borough of Kensington and Chelsea,RBKC,,Statutory and Corporate Items,Capital Projects Cost Centre (default),,Ark Build Plc ,1231173,,,,24/11/2021,2200209324,"62,082.54",,Romanse Expenses,,,,,,No
The Royal Borough of Kensington and Chelsea,RBKC,,Statutory and Corporate Items,Capital Projects Cost Centre (default),,Ark Build Plc ,1231173,,,,02/12/2021,2200211081,"23,728.04",,Payments to main contractor,,,,,,No
The Royal Borough of Kensington and Chelsea,RBKC,,Statutory and Corporate Items,Capital Projects Cost Centre (default),,T/A Artelia UK,1232443,,,,08/10/2021,2200199641,973.75,,Other Consultants,,,,,,No
The Royal Borough of Kensington and Chelsea,RBKC,,Statutory and Corporate Items,Capital Projects Cost Centre (default),,T/A Artelia UK,1232443,,,,02/12/2021,2200210958,"1,270.00",,Other Consultants,,,,,,No
The Royal Borough of Kensington and Chelsea,RBKC,,Statutory and Corporate Items,Capital Projects Cost Centre (default),,T/A Artelia UK,1232443,,,,15/12/2021,2200213390,"1,712.50",,Other Consultants,,,,,,No
The Royal Borough of Kensington and Chelsea,RBKC,,Statutory and Corporate Items,Capital Projects Cost Centre (default),,Ashfords Llp ,1232627,,,,06/10/2021,2200199042,672.00,,Legal Fees & expenses,,,,,,No
The Royal Borough of Kensington and Chelsea,RBKC,,Statutory and Corporate Items,Capital Projects Cost Centre (default),,Ashfords Llp ,1232627,,,,06/10/2021,2200199048,"1,080.00",,Legal Fees & expenses,,,,,,No
The Royal Borough of Kensington and Chelsea,RBKC,,Statutory and Corporate Items,Capital Projects Cost Centre (default),,Ashfords Llp ,1232627,,,,06/10/2021,2200199080,"1,630.00",,Professional Fees : Non Legal,,,,,,No
The Royal Borough of Kensington and Chelsea,RBKC,,Statutory and Corporate Items,Capital Projects Cost Centre (default),,Ashfords Llp ,1232627,,,,06/10/2021,2200199081,540.00,,Professional Fees : Non Legal,,,,,,No
The Royal Borough of Kensington and Chelsea,RBKC,,Statutory and Corporate Items,Capital Projects Cost Centre (default),,Ashfords Llp ,1232627,,,,18/10/2021,2200201554,652.50,,Professional Fees : Non Legal,,,,,,No
The Royal Borough of Kensington and Chelsea,RBKC,,Statutory and Corporate Items,Capital Projects Cost Centre (default),,Ashfords Llp ,1232627,,,,19/10/2021,2200201923,"5,432.00",,Professional Fees : Non Legal,,,,,,No
The Royal Borough of Kensington and Chelsea,RBKC,,Statutory and Corporate Items,Capital Projects Cost Centre (default),,Ashfords Llp ,1232627,,,,03/11/2021,2200204993,528.00,,Payments to main contractor,,,,,,No
The Royal Borough of Kensington and Chelsea,RBKC,,Statutory and Corporate Items,Capital Projects Cost Centre (default),,Ashfords Llp ,1232627,,,,03/11/2021,2200205030,960.00,,Legal Fees & expenses,,,,,,No
The Royal Borough of Kensington and Chelsea,RBKC,,Statutory and Corporate Items,Capital Projects Cost Centre (default),,Ashfords Llp ,1232627,,,,03/11/2021,2200205036,802.00,,Legal Fees & expenses,,,,,,No
The Royal Borough of Kensington and Chelsea,RBKC,,Statutory and Corporate Items,Capital Projects Cost Centre (default),,Ashfords Llp ,1232627,,,,03/11/2021,2200205041,852.00,,Legal Fees & expenses,,,,,,No
The Royal Borough of Kensington and Chelsea,RBKC,,Statutory and Corporate Items,Capital Projects Cost Centre (default),,Ashfords Llp ,1232627,,,,01/12/2021,2200210792,"1,532.00",,Legal Fees & expenses,,,,,,No
The Royal Borough of Kensington and Chelsea,RBKC,,Statutory and Corporate Items,Capital Projects Cost Centre (default),,Ashfords Llp ,1232627,,,,22/12/2021,2200215106,"4,086.00",,Professional Fees : Non Legal,,,,,,No
The Royal Borough of Kensington and Chelsea,RBKC,,Statutory and Corporate Items,Capital Projects Cost Centre (default),,Ashfords Llp ,1232627,,,,22/12/2021,2200215110,"7,472.50",,Professional Fees : Non Legal,,,,,,No
The Royal Borough of Kensington and Chelsea,RBKC,,Statutory and Corporate Items,Capital Projects Cost Centre (default),,Ashton Fire Limited,1282123,,,,09/11/2021,2200206532,783.00,,Professional Fees : Non Legal,,,,,,No
The Royal Borough of Kensington and Chelsea,RBKC,,Statutory and Corporate Items,Capital Projects Cost Centre (default),,Ashton Fire Limited,1282123,,,,09/11/2021,2200206533,784.00,,Professional Fees : Non Legal,,,,,,No
The Royal Borough of Kensington and Chelsea,RBKC,,Statutory and Corporate Items,Capital Projects Cost Centre (default),,Ashton Fire Limited,1282123,,,,09/11/2021,2200206534,783.00,,Professional Fees : Non Legal,,,,,,No
The Royal Borough of Kensington and Chelsea,RBKC,,Statutory and Corporate Items,Capital Projects Cost Centre (default),,Atlantic Access Ltd,1284363,,,,19/11/2021,2200208576,"8,046.99",,Other capital equipment,,,,,,No
The Royal Borough of Kensington and Chelsea,RBKC,,Statutory and Corporate Items,Capital Projects Cost Centre (default),,ATTGROW LTD,1280141,,,,30/11/2021,2200210436,836.00,,Creditors GR/IR -,,,,,,No
The Royal Borough of Kensington and Chelsea,RBKC,,Statutory and Corporate Items,Capital Projects Cost Centre (default),,Aurora Projects (UK) Ltd,1285009,,,,25/11/2021,2200209598,"2,673.10",,Special Maintenance,,,,,,No
The Royal Borough of Kensington and Chelsea,RBKC,,Statutory and Corporate Items,Capital Projects Cost Centre (default),,Aurora Projects (UK) Ltd,1285009,,,,25/11/2021,2200209599,"3,494.82",,Special Maintenance,,,,,,No
The Royal Borough of Kensington and Chelsea,RBKC,,Statutory and Corporate Items,Capital Projects Cost Centre (default),,BAM Nuttall Limited,1268338,,,,08/10/2021,2200199547,"1,047.49",,Other Consultants,,,,,,No
The Royal Borough of Kensington and Chelsea,RBKC,,Statutory and Corporate Items,Capital Projects Cost Centre (default),,BT Global Services ,1233001,,,,08/10/2021,2200199502,"31,089.30",,Creditors GR/IR -,,,,,,No
The Royal Borough of Kensington and Chelsea,RBKC,,Statutory and Corporate Items,Capital Projects Cost Centre (default),,BT Global Services ,1233001,,,,08/10/2021,2200199502,"2,945.70",,Creditors GR/IR -,,,,,,No
The Royal Borough of Kensington and Chelsea,RBKC,,Statutory and Corporate Items,Capital Projects Cost Centre (default),,BT Global Services ,1233001,,,,27/10/2021,2200203599,"1,165.00",,Other capital equipment,,,,,,No
The Royal Borough of Kensington and Chelsea,RBKC,,Statutory and Corporate Items,Capital Projects Cost Centre (default),,BT Global Services ,1233001,,,,27/10/2021,2200203599,"86,500.00",,Other capital equipment,,,,,,No
The Royal Borough of Kensington and Chelsea,RBKC,,Statutory and Corporate Items,Capital Projects Cost Centre (default),,BT Global Services ,1233001,,,,27/10/2021,2200203599,"5,563.00",,Other capital equipment,,,,,,No
The Royal Borough of Kensington and Chelsea,RBKC,,Statutory and Corporate Items,Capital Projects Cost Centre (default),,BT Global Services ,1233001,,,,27/10/2021,2200203599,"7,322.00",,Other capital equipment,,,,,,No
The Royal Borough of Kensington and Chelsea,RBKC,,Statutory and Corporate Items,Capital Projects Cost Centre (default),,BT Global Services ,1233001,,,,27/10/2021,2200203599,670.00,,Other capital equipment,,,,,,No
The Royal Borough of Kensington and Chelsea,RBKC,,Statutory and Corporate Items,Capital Projects Cost Centre (default),,BT Global Services ,1233001,,,,27/10/2021,2200203599,"6,242.00",,Other capital equipment,,,,,,No
The Royal Borough of Kensington and Chelsea,RBKC,,Statutory and Corporate Items,Capital Projects Cost Centre (default),,BT Global Services ,1233001,,,,27/10/2021,2200203599,"1,595.00",,Other capital equipment,,,,,,No
The Royal Borough of Kensington and Chelsea,RBKC,,Statutory and Corporate Items,Capital Projects Cost Centre (default),,BT Global Services ,1233001,,,,05/11/2021,2200205697,"2,596.83",,Other capital equipment,,,,,,No
The Royal Borough of Kensington and Chelsea,RBKC,,Statutory and Corporate Items,Capital Projects Cost Centre (default),,BT Global Services ,1233001,,,,05/11/2021,2200205756,"2,618.44",,Other capital equipment,,,,,,No
The Royal Borough of Kensington and Chelsea,RBKC,,Statutory and Corporate Items,Capital Projects Cost Centre (default),,BT Global Services ,1233001,,,,05/11/2021,2200205756,"1,172.04",,Other capital equipment,,,,,,No
The Royal Borough of Kensington and Chelsea,RBKC,,Statutory and Corporate Items,Capital Projects Cost Centre (default),,BT Global Services ,1233001,,,,18/11/2021,2200208378,"15,390.00",,Creditors GR/IR -,,,,,,No
The Royal Borough of Kensington and Chelsea,RBKC,,Statutory and Corporate Items,Capital Projects Cost Centre (default),,BT Global Services ,1233001,,,,22/11/2021,2200208737,"2,930.10",,Computer Equipment,,,,,,No
The Royal Borough of Kensington and Chelsea,RBKC,,Statutory and Corporate Items,Capital Projects Cost Centre (default),,BT Global Services ,1233001,,,,08/12/2021,2200212145,"1,264.70",,Other capital equipment,,,,,,No
The Royal Borough of Kensington and Chelsea,RBKC,,Statutory and Corporate Items,Capital Projects Cost Centre (default),,BT Global Services ,1233001,,,,08/12/2021,2200212201,"3,619.20",,Other capital equipment,,,,,,No
The Royal Borough of Kensington and Chelsea,RBKC,,Statutory and Corporate Items,Capital Projects Cost Centre (default),,BT Global Services ,1233001,,,,08/12/2021,2200212201,"2,905.80",,Other capital equipment,,,,,,No
The Royal Borough of Kensington and Chelsea,RBKC,,Statutory and Corporate Items,Capital Projects Cost Centre (default),,Baily Garner Health & Safety ,1255936,,,,02/12/2021,2200211012,"16,118.18",,Professional Fees : Non Legal,,,,,,No
The Royal Borough of Kensington and Chelsea,RBKC,,Statutory and Corporate Items,Capital Projects Cost Centre (default),,Bell Decorating & Building Ltd ,1232723,,,,08/10/2021,2200199536,"3,000.00",,Special Maintenance,,,,,,No
The Royal Borough of Kensington and Chelsea,RBKC,,Statutory and Corporate Items,Capital Projects Cost Centre (default),,Bell Decorating & Building Ltd ,1232723,,,,14/10/2021,2200200934,950.00,,Romanse Expenses,,,,,,No
The Royal Borough of Kensington and Chelsea,RBKC,,Statutory and Corporate Items,Capital Projects Cost Centre (default),,Bell Decorating & Building Ltd ,1232723,,,,25/10/2021,2200202991,"3,996.00",,Romanse Expenses,,,,,,No
The Royal Borough of Kensington and Chelsea,RBKC,,Statutory and Corporate Items,Capital Projects Cost Centre (default),,Bell Decorating & Building Ltd ,1232723,,,,28/10/2021,2200203844,"29,352.40",,Payments to sub contractor,,,,,,No
The Royal Borough of Kensington and Chelsea,RBKC,,Statutory and Corporate Items,Capital Projects Cost Centre (default),,Bell Decorating & Building Ltd ,1232723,,,,29/10/2021,2200204057,"24,500.00",,Payments to sub contractor,,,,,,No
The Royal Borough of Kensington and Chelsea,RBKC,,Statutory and Corporate Items,Capital Projects Cost Centre (default),,Bell Decorating & Building Ltd ,1232723,,,,05/11/2021,2200205782,"2,856.00",,Special Maintenance,,,,,,No
The Royal Borough of Kensington and Chelsea,RBKC,,Statutory and Corporate Items,Capital Projects Cost Centre (default),,Bell Decorating & Building Ltd ,1232723,,,,08/11/2021,2200206158,"1,079.00",,Romanse Expenses,,,,,,No
The Royal Borough of Kensington and Chelsea,RBKC,,Statutory and Corporate Items,Capital Projects Cost Centre (default),,Bell Decorating & Building Ltd ,1232723,,,,08/11/2021,2200206159,"7,135.00",,Romanse Expenses,,,,,,No
The Royal Borough of Kensington and Chelsea,RBKC,,Statutory and Corporate Items,Capital Projects Cost Centre (default),,Bell Decorating & Building Ltd ,1232723,,,,08/11/2021,2200206160,"1,480.00",,Romanse Expenses,,,,,,No
The Royal Borough of Kensington and Chelsea,RBKC,,Statutory and Corporate Items,Capital Projects Cost Centre (default),,Bell Decorating & Building Ltd ,1232723,,,,08/11/2021,2200206161,"2,400.00",,Romanse Expenses,,,,,,No
The Royal Borough of Kensington and Chelsea,RBKC,,Statutory and Corporate Items,Capital Projects Cost Centre (default),,Bell Decorating & Building Ltd ,1232723,,,,08/11/2021,2200206162,"4,674.00",,Romanse Expenses,,,,,,No
The Royal Borough of Kensington and Chelsea,RBKC,,Statutory and Corporate Items,Capital Projects Cost Centre (default),,Bell Decorating & Building Ltd ,1232723,,,,09/11/2021,2200206479,"23,469.32",,Special Maintenance,,,,,,No
The Royal Borough of Kensington and Chelsea,RBKC,,Statutory and Corporate Items,Capital Projects Cost Centre (default),,Bell Decorating & Building Ltd ,1232723,,,,18/11/2021,2200208342,"7,845.00",,Romanse Expenses,,,,,,No
The Royal Borough of Kensington and Chelsea,RBKC,,Statutory and Corporate Items,Capital Projects Cost Centre (default),,Bell Decorating & Building Ltd ,1232723,,,,09/12/2021,2200212413,"3,920.00",,Romanse Expenses,,,,,,No
The Royal Borough of Kensington and Chelsea,RBKC,,Statutory and Corporate Items,Capital Projects Cost Centre (default),,Bell Decorating & Building Ltd ,1232723,,,,09/12/2021,2200212430,"1,370.00",,Romanse Expenses,,,,,,No
The Royal Borough of Kensington and Chelsea,RBKC,,Statutory and Corporate Items,Capital Projects Cost Centre (default),,Bell Decorating & Building Ltd ,1232723,,,,15/12/2021,2200213382,"11,200.00",,Romanse Expenses,,,,,,No
The Royal Borough of Kensington and Chelsea,RBKC,,Statutory and Corporate Items,Capital Projects Cost Centre (default),,Bell Decorating & Building Ltd ,1232723,,,,22/12/2021,2200215081,"7,460.00",,Site Works,,,,,,No
The Royal Borough of Kensington and Chelsea,RBKC,,Statutory and Corporate Items,Capital Projects Cost Centre (default),,Bell Decorating & Building Ltd ,1232723,,,,22/12/2021,2200215182,"60,165.00",,Payments to main contractor,,,,,,No
The Royal Borough of Kensington and Chelsea,RBKC,,Statutory and Corporate Items,Capital Projects Cost Centre (default),,Bell Decorating & Building Ltd ,1232723,,,,23/12/2021,2200215344,"2,850.00",,Site Works,,,,,,No
The Royal Borough of Kensington and Chelsea,RBKC,,Statutory and Corporate Items,Capital Projects Cost Centre (default),,Bellrock Property & Facilities Man ,1255450,,,,01/10/2021,2200198070,"21,472.00",,Planned Maintenance (CM),,,,,,No
The Royal Borough of Kensington and Chelsea,RBKC,,Statutory and Corporate Items,Capital Projects Cost Centre (default),,Bellrock Property & Facilities Man ,1255450,,,,01/10/2021,2200198071,"69,942.40",,Planned Maintenance (CM),,,,,,No
The Royal Borough of Kensington and Chelsea,RBKC,,Statutory and Corporate Items,Capital Projects Cost Centre (default),,Bellrock Property & Facilities Man ,1255450,,,,01/10/2021,2200198072,"60,145.80",,Planned Maintenance (CM),,,,,,No
The Royal Borough of Kensington and Chelsea,RBKC,,Statutory and Corporate Items,Capital Projects Cost Centre (default),,Bellrock Property & Facilities Man ,1255450,,,,12/10/2021,2200200525,"36,009.60",,Planned Maintenance (CM),,,,,,No
The Royal Borough of Kensington and Chelsea,RBKC,,Statutory and Corporate Items,Capital Projects Cost Centre (default),,Bellrock Property & Facilities Man ,1255450,,,,12/10/2021,2200200530,"24,915.00",,Planned Maintenance (CM),,,,,,No
The Royal Borough of Kensington and Chelsea,RBKC,,Statutory and Corporate Items,Capital Projects Cost Centre (default),,Bellrock Property & Facilities Man ,1255450,,,,20/12/2021,2200214546,"2,640.00",,Planned Maintenance (CM),,,,,,No
The Royal Borough of Kensington and Chelsea,RBKC,,Statutory and Corporate Items,Capital Projects Cost Centre (default),,Bellrock Property & Facilities Man ,1255450,,,,23/12/2021,2200215415,"18,095.00",,Planned Maintenance (CM),,,,,,No
The Royal Borough of Kensington and Chelsea,RBKC,,Statutory and Corporate Items,Capital Projects Cost Centre (default),,Bellrock Property & Facilities Man ,1255450,,,,30/12/2021,2200215955,"2,640.00",,Planned Maintenance (CM),,,,,,No
The Royal Borough of Kensington and Chelsea,RBKC,,Statutory and Corporate Items,Capital Projects Cost Centre (default),,Beta Distribution (South) Ltd,1234938,,,,11/10/2021,2200200113,730.00,,Payments to sub contractor,,,,,,No
The Royal Borough of Kensington and Chelsea,RBKC,,Statutory and Corporate Items,Capital Projects Cost Centre (default),,Beta Distribution (South) Ltd,1234938,,,,08/12/2021,2200212249,"1,111.62",,Payments to sub contractor,,,,,,No
The Royal Borough of Kensington and Chelsea,RBKC,,Statutory and Corporate Items,Capital Projects Cost Centre (default),,Beta Distribution (South) Ltd,1234938,,,,08/12/2021,2200212250,690.00,,Payments to sub contractor,,,,,,No
The Royal Borough of Kensington and Chelsea,RBKC,,Statutory and Corporate Items,Capital Projects Cost Centre (default),,Beta Distribution (South) Ltd,1234938,,,,15/12/2021,2200213388,"1,650.80",,Payments to sub contractor,,,,,,No
The Royal Borough of Kensington and Chelsea,RBKC,,Statutory and Corporate Items,Capital Projects Cost Centre (default),,Bevan Brittan Llp ,1232737,,,,11/10/2021,2200200034,"1,715.00",,Other Consultants,,,,,,No
The Royal Borough of Kensington and Chelsea,RBKC,,Statutory and Corporate Items,Capital Projects Cost Centre (default),,Bevan Brittan Llp ,1232737,,,,17/11/2021,2200208173,"8,698.50",,Payments to main contractor,,,,,,No
The Royal Borough of Kensington and Chelsea,RBKC,,Statutory and Corporate Items,Capital Projects Cost Centre (default),,Bevan Brittan Llp ,1232737,,,,03/12/2021,2200211276,795.00,,Other Consultants,,,,,,No
The Royal Borough of Kensington and Chelsea,RBKC,,Statutory and Corporate Items,Capital Projects Cost Centre (default),,Bevan Brittan Llp ,1232737,,,,10/12/2021,2200212606,820.00,,Other Consultants,,,,,,No
The Royal Borough of Kensington and Chelsea,RBKC,,Statutory and Corporate Items,Capital Projects Cost Centre (default),,Bevan Brittan Llp ,1232737,,,,30/12/2021,2200216008,"10,171.50",,Payments to main contractor,,,,,,No
The Royal Borough of Kensington and Chelsea,RBKC,,Statutory and Corporate Items,Capital Projects Cost Centre (default),,Bishop Creighton House Care & Repair Clients Account,1232751,,,,01/10/2021,2200197946,"6,700.50",,Payments to main contractor,,,,,,No
The Royal Borough of Kensington and Chelsea,RBKC,,Statutory and Corporate Items,Capital Projects Cost Centre (default),,Bishop Creighton House Care & Repair Clients Account,1232751,,,,18/10/2021,2200201600,987.75,,Payments to main contractor,,,,,,No
The Royal Borough of Kensington and Chelsea,RBKC,,Statutory and Corporate Items,Capital Projects Cost Centre (default),,Bishop Creighton House Care & Repair Clients Account,1232751,,,,28/10/2021,2200203773,"6,585.00",,Payments to main contractor,,,,,,No
The Royal Borough of Kensington and Chelsea,RBKC,,Statutory and Corporate Items,Capital Projects Cost Centre (default),,Bishop Creighton House Care & Repair Clients Account,1232751,,,,05/11/2021,2200205828,916.50,,Payments to main contractor,,,,,,No
The Royal Borough of Kensington and Chelsea,RBKC,,Statutory and Corporate Items,Capital Projects Cost Centre (default),,Bishop Creighton House Care & Repair Clients Account,1232751,,,,11/11/2021,2200206936,"6,110.00",,Payments to main contractor,,,,,,No
The Royal Borough of Kensington and Chelsea,RBKC,,Statutory and Corporate Items,Capital Projects Cost Centre (default),,Bishop Creighton House Care & Repair Clients Account,1232751,,,,11/11/2021,2200206937,"1,350.00",,Payments to main contractor,,,,,,No
The Royal Borough of Kensington and Chelsea,RBKC,,Statutory and Corporate Items,Capital Projects Cost Centre (default),,Bishop Creighton House Care & Repair Clients Account,1232751,,,,25/11/2021,2200209594,"5,906.80",,Payments to main contractor,,,,,,No
The Royal Borough of Kensington and Chelsea,RBKC,,Statutory and Corporate Items,Capital Projects Cost Centre (default),,Bishop Creighton House Care & Repair Clients Account,1232751,,,,25/11/2021,2200209595,886.02,,Payments to main contractor,,,,,,No
The Royal Borough of Kensington and Chelsea,RBKC,,Statutory and Corporate Items,Capital Projects Cost Centre (default),,Bishop Creighton House Care & Repair Clients Account,1232751,,,,25/11/2021,2200209596,910.05,,Payments to main contractor,,,,,,No
The Royal Borough of Kensington and Chelsea,RBKC,,Statutory and Corporate Items,Capital Projects Cost Centre (default),,Bishop Creighton House Care & Repair Clients Account,1232751,,,,15/12/2021,2200213336,"6,067.00",,Payments to main contractor,,,,,,No
The Royal Borough of Kensington and Chelsea,RBKC,,Statutory and Corporate Items,Capital Projects Cost Centre (default),,Bishop Creighton House Care & Repair Clients Account,1232751,,,,24/12/2021,2200215611,"1,616.25",,Payments to main contractor,,,,,,No
The Royal Borough of Kensington and Chelsea,RBKC,,Statutory and Corporate Items,Capital Projects Cost Centre (default),,Bishop Creighton House Care & Repair Clients Account,1232751,,,,24/12/2021,2200215612,"10,775.00",,Payments to main contractor,,,,,,No
The Royal Borough of Kensington and Chelsea,RBKC,,Statutory and Corporate Items,Capital Projects Cost Centre (default),,Bishop Creighton House Care & Repair Clients Account,1232751,,,,24/12/2021,2200215617,"3,305.00",,Payments to main contractor,,,,,,No
The Royal Borough of Kensington and Chelsea,RBKC,,Statutory and Corporate Items,Capital Projects Cost Centre (default),,Black Box Network Services ,1231180,,,,27/10/2021,2200203447,847.14,,Other capital equipment,,,,,,No
The Royal Borough of Kensington and Chelsea,RBKC,,Statutory and Corporate Items,Capital Projects Cost Centre (default),,Blackwall Hire Ltd ,1232756,,,,13/10/2021,2200200715,585.00,,Other Consultants,,,,,,No
The Royal Borough of Kensington and Chelsea,RBKC,,Statutory and Corporate Items,Capital Projects Cost Centre (default),,Blackwall Hire Ltd ,1232756,,,,08/12/2021,2200212148,610.00,,Payments to sub contractor,,,,,,No
The Royal Borough of Kensington and Chelsea,RBKC,,Statutory and Corporate Items,Capital Projects Cost Centre (default),,Blackwall Hire Ltd ,1232756,,,,17/12/2021,2200213917,751.00,,Payments to sub contractor,,,,,,No
The Royal Borough of Kensington and Chelsea,RBKC,,Statutory and Corporate Items,Capital Projects Cost Centre (default),,Bloom Procurement Services Ltd,1269893,,,,13/10/2021,2200200660,"4,800.00",,Legal Fees & expenses,,,,,,No
The Royal Borough of Kensington and Chelsea,RBKC,,Statutory and Corporate Items,Capital Projects Cost Centre (default),,Bloom Procurement Services Ltd,1269893,,,,13/10/2021,2200200848,"14,483.47",,Professional Fees : Non Legal,,,,,,No
The Royal Borough of Kensington and Chelsea,RBKC,,Statutory and Corporate Items,Capital Projects Cost Centre (default),,Bloom Procurement Services Ltd,1269893,,,,19/10/2021,2200201830,"9,568.42",,B*Surveyors,,,,,,No
The Royal Borough of Kensington and Chelsea,RBKC,,Statutory and Corporate Items,Capital Projects Cost Centre (default),,Bloom Procurement Services Ltd,1269893,,,,19/10/2021,2200201834,"7,725.26",,B*Surveyors,,,,,,No
The Royal Borough of Kensington and Chelsea,RBKC,,Statutory and Corporate Items,Capital Projects Cost Centre (default),,Bloom Procurement Services Ltd,1269893,,,,22/10/2021,2200202618,"64,512.50",,Romanse Expenses,,,,,,No
The Royal Borough of Kensington and Chelsea,RBKC,,Statutory and Corporate Items,Capital Projects Cost Centre (default),,Bloom Procurement Services Ltd,1269893,,,,26/10/2021,2200203272,"39,932.63",,B*Surveyors,,,,,,No
The Royal Borough of Kensington and Chelsea,RBKC,,Statutory and Corporate Items,Capital Projects Cost Centre (default),,Bloom Procurement Services Ltd,1269893,,,,01/11/2021,2200204179,"4,000.00",,Legal Fees & expenses,,,,,,No
The Royal Borough of Kensington and Chelsea,RBKC,,Statutory and Corporate Items,Capital Projects Cost Centre (default),,Bloom Procurement Services Ltd,1269893,,,,30/11/2021,2200210433,"2,952.63",,B*Surveyors,,,,,,No
The Royal Borough of Kensington and Chelsea,RBKC,,Statutory and Corporate Items,Capital Projects Cost Centre (default),,Bloom Procurement Services Ltd,1269893,,,,03/12/2021,2200211259,"64,512.50",,Romanse Expenses,,,,,,No
The Royal Borough of Kensington and Chelsea,RBKC,,Statutory and Corporate Items,Capital Projects Cost Centre (default),,Bloom Procurement Services Ltd,1269893,,,,13/12/2021,2200212917,"4,200.00",,Legal Fees & expenses,,,,,,No
The Royal Borough of Kensington and Chelsea,RBKC,,Statutory and Corporate Items,Capital Projects Cost Centre (default),,Bloom Procurement Services Ltd,1269893,,,,17/12/2021,2200213910,"16,750.00",,Romanse Expenses,,,,,,No
The Royal Borough of Kensington and Chelsea,RBKC,,Statutory and Corporate Items,Capital Projects Cost Centre (default),,Bloom Procurement Services Ltd,1269893,,,,17/12/2021,2200213911,"7,245.00",,B*Surveyors,,,,,,No
The Royal Borough of Kensington and Chelsea,RBKC,,Statutory and Corporate Items,Capital Projects Cost Centre (default),,Borras Construction Ltd,1275543,,,,24/11/2021,2200209320,"74,783.71",,Payments to main contractor,,,,,,No
The Royal Borough of Kensington and Chelsea,RBKC,,Statutory and Corporate Items,Capital Projects Cost Centre (default),,Borras Construction Ltd,1275543,,,,26/11/2021,2200209854,"115,297.55",,Payments to main contractor,,,,,,No
The Royal Borough of Kensington and Chelsea,RBKC,,Statutory and Corporate Items,Capital Projects Cost Centre (default),,Bouygues (Uk) Limited,1231182,,,,03/12/2021,2200211407,"355,682.66",,Payments to main contractor,,,,,,No
The Royal Borough of Kensington and Chelsea,RBKC,,Statutory and Corporate Items,Capital Projects Cost Centre (default),,Redact Details,1260368,,,,03/12/2021,2200211443,"7,258.00",,Planned Maintenance (CM),,,,,,No
The Royal Borough of Kensington and Chelsea,RBKC,,Statutory and Corporate Items,Capital Projects Cost Centre (default),,Build Test Solutions Ltd,1271506,,,,26/10/2021,2200203367,750.00,,Other Consultants,,,,,,No
The Royal Borough of Kensington and Chelsea,RBKC,,Statutory and Corporate Items,Capital Projects Cost Centre (default),,Build Test Solutions Ltd,1271506,,,,26/10/2021,2200203368,800.00,,Other Consultants,,,,,,No
The Royal Borough of Kensington and Chelsea,RBKC,,Statutory and Corporate Items,Capital Projects Cost Centre (default),,Build Test Solutions Ltd,1271506,,,,26/10/2021,2200203370,"3,450.00",,Other Consultants,,,,,,No
The Royal Borough of Kensington and Chelsea,RBKC,,Statutory and Corporate Items,Capital Projects Cost Centre (default),,Build Test Solutions Ltd,1271506,,,,26/10/2021,2200203371,750.00,,Other Consultants,,,,,,No
The Royal Borough of Kensington and Chelsea,RBKC,,Statutory and Corporate Items,Capital Projects Cost Centre (default),,Building Design Partnership Ltd ,1233009,,,,26/10/2021,2200203363,"6,000.00",,HCC - Architects,,,,,,No
The Royal Borough of Kensington and Chelsea,RBKC,,Statutory and Corporate Items,Capital Projects Cost Centre (default),,Building Design Partnership Ltd ,1233009,,,,01/12/2021,2200210795,"6,000.00",,Other Consultants,,,,,,No
The Royal Borough of Kensington and Chelsea,RBKC,,Statutory and Corporate Items,Capital Projects Cost Centre (default),,Butler & Young Services Ltd,1272888,,,,02/12/2021,2200211013,"2,400.00",,Professional Fees : Non Legal,,,,,,No
The Royal Borough of Kensington and Chelsea,RBKC,,Statutory and Corporate Items,Capital Projects Cost Centre (default),,C&C Builders Ltd,1274385,,,,05/11/2021,2200205831,"14,794.76",,Payments to main contractor,,,,,,No
The Royal Borough of Kensington and Chelsea,RBKC,,Statutory and Corporate Items,Capital Projects Cost Centre (default),,C&C Builders Ltd,1274385,,,,25/11/2021,2200209587,"4,330.00",,Payments to main contractor,,,,,,No
The Royal Borough of Kensington and Chelsea,RBKC,,Statutory and Corporate Items,Capital Projects Cost Centre (default),,C&C Builders Ltd,1274385,,,,26/11/2021,2200209819,"1,340.00",,Payments to main contractor,,,,,,No
The Royal Borough of Kensington and Chelsea,RBKC,,Statutory and Corporate Items,Capital Projects Cost Centre (default),,C&C Builders Ltd,1274385,,,,21/12/2021,2200214859,"5,995.00",,Payments to main contractor,,,,,,No
The Royal Borough of Kensington and Chelsea,RBKC,,Statutory and Corporate Items,Capital Projects Cost Centre (default),,CAN Structures Limited,1279387,,,,15/11/2021,2200207580,"62,304.00",,Payments to main contractor,,,,,,No
The Royal Borough of Kensington and Chelsea,RBKC,,Statutory and Corporate Items,Capital Projects Cost Centre (default),,CBRE Ltd(CBRE Client Account - EA,1233315,,,,01/10/2021,2200197958,"6,000.00",,Other Consultants,,,,,,No
The Royal Borough of Kensington and Chelsea,RBKC,,Statutory and Corporate Items,Capital Projects Cost Centre (default),,CBRE Ltd(CBRE Client Account - EA,1233315,,,,15/11/2021,2200207563,"6,000.00",,Other Consultants,,,,,,No
The Royal Borough of Kensington and Chelsea,RBKC,,Statutory and Corporate Items,Capital Projects Cost Centre (default),,CBS Maintenance Ltd ,1256122,,,,15/10/2021,2200201273,"14,140.00",,Payments to main contractor,,,,,,No
The Royal Borough of Kensington and Chelsea,RBKC,,Statutory and Corporate Items,Capital Projects Cost Centre (default),,Clm Fireproofing Limited,1268719,,,,22/10/2021,2200202538,"10,881.46",,Payments to main contractor,,,,,,No
The Royal Borough of Kensington and Chelsea,RBKC,,Statutory and Corporate Items,Capital Projects Cost Centre (default),,CWG Group Ltd,1281268,,,,02/11/2021,2200204712,"22,653.80",,Other Consultants,,,,,,No
The Royal Borough of Kensington and Chelsea,RBKC,,Statutory and Corporate Items,Capital Projects Cost Centre (default),,CWG Group Ltd,1281268,,,,24/11/2021,2200209372,"108,121.05",,Payments to main contractor,,,,,,No
The Royal Borough of Kensington and Chelsea,RBKC,,Statutory and Corporate Items,Capital Projects Cost Centre (default),,CWG Group Ltd,1281268,,,,02/12/2021,2200211005,600.00,,Other Consultants,,,,,,No
The Royal Borough of Kensington and Chelsea,RBKC,,Statutory and Corporate Items,Capital Projects Cost Centre (default),,CWG Group Ltd,1281268,,,,14/12/2021,2200213042,"100,368.31",,Payments to main contractor,,,,,,No
The Royal Borough of Kensington and Chelsea,RBKC,,Statutory and Corporate Items,Capital Projects Cost Centre (default),,Cablesheer (Asbestos) Limited,1273893,,,,12/10/2021,2200200245,"26,926.00",,Payments to main contractor,,,,,,No
The Royal Borough of Kensington and Chelsea,RBKC,,Statutory and Corporate Items,Capital Projects Cost Centre (default),,Cablesheer (Asbestos) Limited,1273893,,,,22/10/2021,2200202586,"7,133.00",,Payments to main contractor,,,,,,No
The Royal Borough of Kensington and Chelsea,RBKC,,Statutory and Corporate Items,Capital Projects Cost Centre (default),,Calford Seadon (Health & Safety) Ltd,1233044,,,,01/10/2021,2200197996,"1,007.94",,Professional Fees : Non Legal,,,,,,No
The Royal Borough of Kensington and Chelsea,RBKC,,Statutory and Corporate Items,Capital Projects Cost Centre (default),,Calford Seadon (Health & Safety) Ltd,1233044,,,,01/10/2021,2200197997,850.00,,Professional Fees : Non Legal,,,,,,No
The Royal Borough of Kensington and Chelsea,RBKC,,Statutory and Corporate Items,Capital Projects Cost Centre (default),,Calford Seadon (Health & Safety) Ltd,1233044,,,,01/10/2021,2200197999,850.00,,Professional Fees : Non Legal,,,,,,No
The Royal Borough of Kensington and Chelsea,RBKC,,Statutory and Corporate Items,Capital Projects Cost Centre (default),,Calford Seadon (Health & Safety) Ltd,1233044,,,,01/10/2021,2200198000,850.00,,Professional Fees : Non Legal,,,,,,No
The Royal Borough of Kensington and Chelsea,RBKC,,Statutory and Corporate Items,Capital Projects Cost Centre (default),,Calford Seadon (Health & Safety) Ltd,1233044,,,,04/10/2021,2200198303,"16,281.12",,Professional Fees : Non Legal,,,,,,No
The Royal Borough of Kensington and Chelsea,RBKC,,Statutory and Corporate Items,Capital Projects Cost Centre (default),,Calford Seadon (Health & Safety) Ltd,1233044,,,,14/10/2021,2200201059,"4,582.14",,Professional Fees : Non Legal,,,,,,No
The Royal Borough of Kensington and Chelsea,RBKC,,Statutory and Corporate Items,Capital Projects Cost Centre (default),,Calford Seadon (Health & Safety) Ltd,1233044,,,,14/10/2021,2200201060,600.00,,Professional Fees : Non Legal,,,,,,No
The Royal Borough of Kensington and Chelsea,RBKC,,Statutory and Corporate Items,Capital Projects Cost Centre (default),,Calford Seadon (Health & Safety) Ltd,1233044,,,,19/10/2021,2200201922,"1,800.00",,Professional Fees : Non Legal,,,,,,No
The Royal Borough of Kensington and Chelsea,RBKC,,Statutory and Corporate Items,Capital Projects Cost Centre (default),,Calford Seadon (Health & Safety) Ltd,1233044,,,,19/10/2021,2200201924,"1,800.00",,Professional Fees : Non Legal,,,,,,No
The Royal Borough of Kensington and Chelsea,RBKC,,Statutory and Corporate Items,Capital Projects Cost Centre (default),,Calford Seadon (Health & Safety) Ltd,1233044,,,,27/10/2021,2200203546,"6,000.00",,Professional Fees : Non Legal,,,,,,No
The Royal Borough of Kensington and Chelsea,RBKC,,Statutory and Corporate Items,Capital Projects Cost Centre (default),,Calford Seadon (Health & Safety) Ltd,1233044,,,,09/11/2021,2200206508,"5,400.00",,Professional Fees : Non Legal,,,,,,No
The Royal Borough of Kensington and Chelsea,RBKC,,Statutory and Corporate Items,Capital Projects Cost Centre (default),,Calford Seadon (Health & Safety) Ltd,1233044,,,,26/11/2021,2200209855,"1,950.00",,Professional Fees : Non Legal,,,,,,No
The Royal Borough of Kensington and Chelsea,RBKC,,Statutory and Corporate Items,Capital Projects Cost Centre (default),,Capita Business Services Ltd ,1233075,,,,18/10/2021,2200201629,"4,000.00",,Payments to main contractor,,,,,,No
The Royal Borough of Kensington and Chelsea,RBKC,,Statutory and Corporate Items,Capital Projects Cost Centre (default),,Capital Property & Construction ,1256857,,,,12/10/2021,2200200567,"66,616.66",,Professional Fees : Non Legal,,,,,,No
The Royal Borough of Kensington and Chelsea,RBKC,,Statutory and Corporate Items,Capital Projects Cost Centre (default),,Capital Property & Construction ,1256857,,,,26/10/2021,2200203322,"16,654.16",,Professional Fees : Non Legal,,,,,,No
The Royal Borough of Kensington and Chelsea,RBKC,,Statutory and Corporate Items,Capital Projects Cost Centre (default),,Capital Property & Construction ,1256857,,,,02/11/2021,2200204890,814.00,,Professional Fees : Non Legal,,,,,,No
The Royal Borough of Kensington and Chelsea,RBKC,,Statutory and Corporate Items,Capital Projects Cost Centre (default),,Capital Property & Construction ,1256857,,,,02/11/2021,2200204891,"5,846.66",,Professional Fees : Non Legal,,,,,,No
The Royal Borough of Kensington and Chelsea,RBKC,,Statutory and Corporate Items,Capital Projects Cost Centre (default),,Capital Property & Construction ,1256857,,,,03/11/2021,2200205198,"1,915.00",,Professional Fees : Non Legal,,,,,,No
The Royal Borough of Kensington and Chelsea,RBKC,,Statutory and Corporate Items,Capital Projects Cost Centre (default),,Capital Property & Construction ,1256857,,,,13/12/2021,2200212838,"16,654.16",,Professional Fees : Non Legal,,,,,,No
The Royal Borough of Kensington and Chelsea,RBKC,,Statutory and Corporate Items,Capital Projects Cost Centre (default),,Capital Property & Construction ,1256857,,,,22/12/2021,2200215109,600.00,,Professional Fees : Non Legal,,,,,,No
The Royal Borough of Kensington and Chelsea,RBKC,,Statutory and Corporate Items,Capital Projects Cost Centre (default),,Cavendish Construction LTD,1267193,,,,04/10/2021,2200198349,"10,274.97",,Resurfacing,,,,,,No
The Royal Borough of Kensington and Chelsea,RBKC,,Statutory and Corporate Items,Capital Projects Cost Centre (default),,Cavendish Construction LTD,1267193,,,,08/10/2021,2200199681,"24,285.35",,Special Maintenance,,,,,,No
The Royal Borough of Kensington and Chelsea,RBKC,,Statutory and Corporate Items,Capital Projects Cost Centre (default),,Cavendish Construction LTD,1267193,,,,08/10/2021,2200199688,"31,606.39",,Special Maintenance,,,,,,No
The Royal Borough of Kensington and Chelsea,RBKC,,Statutory and Corporate Items,Capital Projects Cost Centre (default),,Cavendish Construction LTD,1267193,,,,14/10/2021,2200200985,"19,673.77",,Special Maintenance,,,,,,No
The Royal Borough of Kensington and Chelsea,RBKC,,Statutory and Corporate Items,Capital Projects Cost Centre (default),,Cavendish Construction LTD,1267193,,,,29/10/2021,2200204003,"1,840.94",,Other Consultants,,,,,,No
The Royal Borough of Kensington and Chelsea,RBKC,,Statutory and Corporate Items,Capital Projects Cost Centre (default),,Cavendish Construction LTD,1267193,,,,02/11/2021,2200204710,"2,014.55",,Other Consultants,,,,,,No
The Royal Borough of Kensington and Chelsea,RBKC,,Statutory and Corporate Items,Capital Projects Cost Centre (default),,Cavendish Construction LTD,1267193,,,,02/11/2021,2200204803,"30,875.14",,Special Maintenance,,,,,,No
The Royal Borough of Kensington and Chelsea,RBKC,,Statutory and Corporate Items,Capital Projects Cost Centre (default),,Cavendish Construction LTD,1267193,,,,02/11/2021,2200204805,"22,377.29",,Special Maintenance,,,,,,No
The Royal Borough of Kensington and Chelsea,RBKC,,Statutory and Corporate Items,Capital Projects Cost Centre (default),,Cavendish Construction LTD,1267193,,,,11/11/2021,2200206928,"25,718.43",,Special Maintenance,,,,,,No
The Royal Borough of Kensington and Chelsea,RBKC,,Statutory and Corporate Items,Capital Projects Cost Centre (default),,Cavendish Construction LTD,1267193,,,,07/12/2021,2200211847,"2,102.26",,Special Maintenance,,,,,,No
The Royal Borough of Kensington and Chelsea,RBKC,,Statutory and Corporate Items,Capital Projects Cost Centre (default),,Cavendish Construction LTD,1267193,,,,07/12/2021,2200211859,"3,055.73",,Special Maintenance,,,,,,No
The Royal Borough of Kensington and Chelsea,RBKC,,Statutory and Corporate Items,Capital Projects Cost Centre (default),,Cavendish Construction LTD,1267193,,,,07/12/2021,2200211867,"16,405.49",,Special Maintenance,,,,,,No
The Royal Borough of Kensington and Chelsea,RBKC,,Statutory and Corporate Items,Capital Projects Cost Centre (default),,Cavendish Construction LTD,1267193,,,,07/12/2021,2200211868,802.47,,Special Maintenance,,,,,,No
The Royal Borough of Kensington and Chelsea,RBKC,,Statutory and Corporate Items,Capital Projects Cost Centre (default),,Cavendish Construction LTD,1267193,,,,07/12/2021,2200211870,"36,999.55",,Special Maintenance,,,,,,No
The Royal Borough of Kensington and Chelsea,RBKC,,Statutory and Corporate Items,Capital Projects Cost Centre (default),,Cavendish Construction LTD,1267193,,,,07/12/2021,2200211879,"4,910.88",,Special Maintenance,,,,,,No
The Royal Borough of Kensington and Chelsea,RBKC,,Statutory and Corporate Items,Capital Projects Cost Centre (default),,Cavendish Construction LTD,1267193,,,,07/12/2021,2200211881,"21,724.19",,Special Maintenance,,,,,,No
The Royal Borough of Kensington and Chelsea,RBKC,,Statutory and Corporate Items,Capital Projects Cost Centre (default),,Cavendish Construction LTD,1267193,,,,20/12/2021,2200214257,"17,371.29",,Special Maintenance,,,,,,No
The Royal Borough of Kensington and Chelsea,RBKC,,Statutory and Corporate Items,Capital Projects Cost Centre (default),,Cavendish Construction LTD,1267193,,,,20/12/2021,2200214276,"22,601.40",,Special Maintenance,,,,,,No
The Royal Borough of Kensington and Chelsea,RBKC,,Statutory and Corporate Items,Capital Projects Cost Centre (default),,Challen Commercial Investigations,1283111,,,,21/10/2021,2200202361,"2,500.00",,B*Surveyors,,,,,,No
The Royal Borough of Kensington and Chelsea,RBKC,,Statutory and Corporate Items,Capital Projects Cost Centre (default),,Chapmanbdsp Limited,1270766,,,,06/10/2021,2200199167,900.00,,Payments to main contractor,,,,,,No
The Royal Borough of Kensington and Chelsea,RBKC,,Statutory and Corporate Items,Capital Projects Cost Centre (default),,Chapmanbdsp Limited,1270766,,,,06/10/2021,2200199169,500.00,,Payments to main contractor,,,,,,No
The Royal Borough of Kensington and Chelsea,RBKC,,Statutory and Corporate Items,Capital Projects Cost Centre (default),,Chapmanbdsp Limited,1270766,,,,06/10/2021,2200199171,"1,021.38",,Payments to main contractor,,,,,,No
The Royal Borough of Kensington and Chelsea,RBKC,,Statutory and Corporate Items,Capital Projects Cost Centre (default),,Checkmate Fire Solutions Ltd ,1231187,,,,13/10/2021,2200200635,"8,299.88",,Planned Maintenance (CM),,,,,,No
The Royal Borough of Kensington and Chelsea,RBKC,,Statutory and Corporate Items,Capital Projects Cost Centre (default),,Checkmate Fire Solutions Ltd ,1231187,,,,13/10/2021,2200200637,"4,627.39",,Planned Maintenance (CM),,,,,,No
The Royal Borough of Kensington and Chelsea,RBKC,,Statutory and Corporate Items,Capital Projects Cost Centre (default),,Checkmate Fire Solutions Ltd ,1231187,,,,13/10/2021,2200200637,"2,683.85",,Planned Maintenance (CM),,,,,,No
The Royal Borough of Kensington and Chelsea,RBKC,,Statutory and Corporate Items,Capital Projects Cost Centre (default),,Childrens Play Advisory Service,1233359,,,,01/12/2021,2200210727,"1,172.50",,Romanse Expenses,,,,,,No
The Royal Borough of Kensington and Chelsea,RBKC,,Statutory and Corporate Items,Capital Projects Cost Centre (default),,Chris Edge Tree Care Ltd ,1233369,,,,03/11/2021,2200205316,"1,100.00",,Payments to main contractor,,,,,,No
The Royal Borough of Kensington and Chelsea,RBKC,,Statutory and Corporate Items,Capital Projects Cost Centre (default),,Chris Edge Tree Care Ltd ,1233369,,,,04/11/2021,2200205606,"1,060.00",,Payments to main contractor,,,,,,No
The Royal Borough of Kensington and Chelsea,RBKC,,Statutory and Corporate Items,Capital Projects Cost Centre (default),,Chris Edge Tree Care Ltd ,1233369,,,,29/11/2021,2200210253,"13,135.00",,Payments to main contractor,,,,,,No
The Royal Borough of Kensington and Chelsea,RBKC,,Statutory and Corporate Items,Capital Projects Cost Centre (default),,City Electrical Factors,1263373,,,,04/10/2021,2200198475,"4,029.70",,Special Maintenance,,,,,,No
The Royal Borough of Kensington and Chelsea,RBKC,,Statutory and Corporate Items,Capital Projects Cost Centre (default),,City Of Westminster ,1231771,,,,26/11/2021,2200209833,"39,812.00",,Other Consultants,,,,,,No
The Royal Borough of Kensington and Chelsea,RBKC,,Statutory and Corporate Items,Capital Projects Cost Centre (default),,City Of Westminster ,1231771,,,,26/11/2021,2200209833,"8,110.00",,Computer Software,,,,,,No
The Royal Borough of Kensington and Chelsea,RBKC,,Statutory and Corporate Items,Capital Projects Cost Centre (default),,City Of Westminster ,1231771,,,,26/11/2021,2200209833,"101,880.00",,Computer Software,,,,,,No
The Royal Borough of Kensington and Chelsea,RBKC,,Statutory and Corporate Items,Capital Projects Cost Centre (default),,City Of Westminster ,1231771,,,,26/11/2021,2200209833,"1,659.00",,Legal Fees & expenses,,,,,,No
The Royal Borough of Kensington and Chelsea,RBKC,,Statutory and Corporate Items,Capital Projects Cost Centre (default),,City Of Westminster ,1231771,,,,26/11/2021,2200209833,"1,075.00",,Other Consultants,,,,,,No
The Royal Borough of Kensington and Chelsea,RBKC,,Statutory and Corporate Items,Capital Projects Cost Centre (default),,City Of Westminster ,1231771,,,,26/11/2021,2200209833,"5,550.00",,Payments to main contractor,,,,,,No
The Royal Borough of Kensington and Chelsea,RBKC,,Statutory and Corporate Items,Capital Projects Cost Centre (default),,City Of Westminster ,1231771,,,,26/11/2021,2200209833,"18,735.00",,Payments to main contractor,,,,,,No
The Royal Borough of Kensington and Chelsea,RBKC,,Statutory and Corporate Items,Capital Projects Cost Centre (default),,Classic Security Solutions Ltd,1256301,,,,18/10/2021,2200201650,"29,650.00",,Planned Maintenance (CM),,,,,,No
The Royal Borough of Kensington and Chelsea,RBKC,,Statutory and Corporate Items,Capital Projects Cost Centre (default),,Clean and Serene Ltd ,1233399,,,,08/12/2021,2200212146,"1,782.00",,Payments to main contractor,,,,,,No
The Royal Borough of Kensington and Chelsea,RBKC,,Statutory and Corporate Items,Capital Projects Cost Centre (default),,Clockwork Removals ,1233410,,,,02/12/2021,2200211055,550.00,,Planned Maintenance (CM),,,,,,No
The Royal Borough of Kensington and Chelsea,RBKC,,Statutory and Corporate Items,Capital Projects Cost Centre (default),,Cluttons LLP(Firms Account -  For Fee invoices),1233422,,,,21/10/2021,2200202374,800.00,,Legal Fees & expenses,,,,,,No
The Royal Borough of Kensington and Chelsea,RBKC,,Statutory and Corporate Items,Capital Projects Cost Centre (default),,Commercial Services Uk Ltd,1269853,,,,11/11/2021,2200206803,856.15,,Other Consultants,,,,,,No
The Royal Borough of Kensington and Chelsea,RBKC,,Statutory and Corporate Items,Capital Projects Cost Centre (default),,Commercial Services Uk Ltd,1269853,,,,11/11/2021,2200206850,"17,889.96",,Other Consultants,,,,,,No
The Royal Borough of Kensington and Chelsea,RBKC,,Statutory and Corporate Items,Capital Projects Cost Centre (default),,Constellia Public Limited,1279396,,,,12/10/2021,2200200200,"2,152.50",,Legal Fees & expenses,,,,,,No
The Royal Borough of Kensington and Chelsea,RBKC,,Statutory and Corporate Items,Capital Projects Cost Centre (default),,Constellia Public Limited,1279396,,,,10/11/2021,2200206604,"2,511.25",,Legal Fees & expenses,,,,,,No
The Royal Borough of Kensington and Chelsea,RBKC,,Statutory and Corporate Items,Capital Projects Cost Centre (default),,Constellia Public Limited,1279396,,,,08/12/2021,2200212221,"4,511.28",,Legal Fees & expenses,,,,,,No
The Royal Borough of Kensington and Chelsea,RBKC,,Statutory and Corporate Items,Capital Projects Cost Centre (default),,Constellia Public Limited,1279396,,,,15/12/2021,2200213391,"5,829.69",,Legal Fees & expenses,,,,,,No
The Royal Borough of Kensington and Chelsea,RBKC,,Statutory and Corporate Items,Capital Projects Cost Centre (default),,Cosourced,1263139,,,,02/11/2021,2200204849,"9,900.00",,Planned Maintenance (CM),,,,,,No
The Royal Borough of Kensington and Chelsea,RBKC,,Statutory and Corporate Items,Capital Projects Cost Centre (default),,Cromwell Engineering Ltd,1283342,,,,13/10/2021,2200200646,"13,885.00",,Planned Maintenance (CM),,,,,,No
The Royal Borough of Kensington and Chelsea,RBKC,,Statutory and Corporate Items,Capital Projects Cost Centre (default),,Cromwell Engineering Ltd,1283342,,,,10/12/2021,2200212638,"24,447.40",,Planned Maintenance (CM),,,,,,No
The Royal Borough of Kensington and Chelsea,RBKC,,Statutory and Corporate Items,Capital Projects Cost Centre (default),,Cupaz ,1233737,,,,06/10/2021,2200199133,"19,200.00",,Other Consultants,,,,,,No
The Royal Borough of Kensington and Chelsea,RBKC,,Statutory and Corporate Items,Capital Projects Cost Centre (default),,Cupaz ,1233737,,,,13/12/2021,2200212932,"56,444.00",,Other Consultants,,,,,,No
The Royal Borough of Kensington and Chelsea,RBKC,,Statutory and Corporate Items,Capital Projects Cost Centre (default),,Cupaz ,1233737,,,,13/12/2021,2200212932,"93,112.00",,Other Consultants,,,,,,No
The Royal Borough of Kensington and Chelsea,RBKC,,Statutory and Corporate Items,Capital Projects Cost Centre (default),,Cupaz ,1233737,,,,13/12/2021,2200212932,"4,360.00",,Other Consultants,,,,,,No
The Royal Borough of Kensington and Chelsea,RBKC,,Statutory and Corporate Items,Capital Projects Cost Centre (default),,Currie & Brown UK Ltd ,1233738,,,,26/10/2021,2200203205,979.00,,Site Works,,,,,,No
The Royal Borough of Kensington and Chelsea,RBKC,,Statutory and Corporate Items,Capital Projects Cost Centre (default),,Currie & Brown UK Ltd ,1233738,,,,27/10/2021,2200203469,"1,465.00",,Payments to main contractor,,,,,,No
The Royal Borough of Kensington and Chelsea,RBKC,,Statutory and Corporate Items,Capital Projects Cost Centre (default),,Currie & Brown UK Ltd ,1233738,,,,24/11/2021,2200209447,979.00,,Site Works,,,,,,No
The Royal Borough of Kensington and Chelsea,RBKC,,Statutory and Corporate Items,Capital Projects Cost Centre (default),,Currie & Brown UK Ltd ,1233738,,,,30/11/2021,2200210565,"1,465.00",,Payments to main contractor,,,,,,No
The Royal Borough of Kensington and Chelsea,RBKC,,Statutory and Corporate Items,Capital Projects Cost Centre (default),,Cyclehoop Ltd ,1233744,,,,05/10/2021,2200198645,"3,706.00",,Payments to main contractor,,,,,,No
The Royal Borough of Kensington and Chelsea,RBKC,,Statutory and Corporate Items,Capital Projects Cost Centre (default),,DLF (Shaw Trust),1284081,,,,02/11/2021,2200204713,"4,000.00",,Other Consultants,,,,,,No
The Royal Borough of Kensington and Chelsea,RBKC,,Statutory and Corporate Items,Capital Projects Cost Centre (default),,Dale Studios Ltd,1281460,,,,14/12/2021,2200213096,"3,753.00",,Other Consultants,,,,,,No
The Royal Borough of Kensington and Chelsea,RBKC,,Statutory and Corporate Items,Capital Projects Cost Centre (default),,Decontaminate UK Limited,1280985,,,,12/10/2021,2200200495,596.23,,Payments to main contractor,,,,,,No
The Royal Borough of Kensington and Chelsea,RBKC,,Statutory and Corporate Items,Capital Projects Cost Centre (default),,Decontaminate UK Limited,1280985,,,,12/10/2021,2200200498,611.52,,Payments to main contractor,,,,,,No
The Royal Borough of Kensington and Chelsea,RBKC,,Statutory and Corporate Items,Capital Projects Cost Centre (default),,Decontaminate UK Limited,1280985,,,,12/10/2021,2200200499,"4,214.03",,Payments to main contractor,,,,,,No
The Royal Borough of Kensington and Chelsea,RBKC,,Statutory and Corporate Items,Capital Projects Cost Centre (default),,Decontaminate UK Limited,1280985,,,,12/10/2021,2200200502,"2,832.43",,Payments to main contractor,,,,,,No
The Royal Borough of Kensington and Chelsea,RBKC,,Statutory and Corporate Items,Capital Projects Cost Centre (default),,Decontaminate UK Limited,1280985,,,,14/10/2021,2200200966,"3,928.14",,Payments to main contractor,,,,,,No
The Royal Borough of Kensington and Chelsea,RBKC,,Statutory and Corporate Items,Capital Projects Cost Centre (default),,Decontaminate UK Limited,1280985,,,,14/10/2021,2200200968,577.06,,Payments to main contractor,,,,,,No
The Royal Borough of Kensington and Chelsea,RBKC,,Statutory and Corporate Items,Capital Projects Cost Centre (default),,Decontaminate UK Limited,1280985,,,,21/12/2021,2200214937,"2,562.92",,Payments to main contractor,,,,,,No
The Royal Borough of Kensington and Chelsea,RBKC,,Statutory and Corporate Items,Capital Projects Cost Centre (default),,Decontaminate UK Limited,1280985,,,,21/12/2021,2200214938,"4,991.53",,Payments to main contractor,,,,,,No
The Royal Borough of Kensington and Chelsea,RBKC,,Statutory and Corporate Items,Capital Projects Cost Centre (default),,Decontaminate UK Limited,1280985,,,,21/12/2021,2200214939,"1,867.32",,Payments to main contractor,,,,,,No
The Royal Borough of Kensington and Chelsea,RBKC,,Statutory and Corporate Items,Capital Projects Cost Centre (default),,Decontaminate UK Limited,1280985,,,,21/12/2021,2200214940,761.12,,Payments to main contractor,,,,,,No
The Royal Borough of Kensington and Chelsea,RBKC,,Statutory and Corporate Items,Capital Projects Cost Centre (default),,Decontaminate UK Limited,1280985,,,,21/12/2021,2200214941,"2,364.73",,Payments to main contractor,,,,,,No
The Royal Borough of Kensington and Chelsea,RBKC,,Statutory and Corporate Items,Capital Projects Cost Centre (default),,Decontaminate UK Limited,1280985,,,,21/12/2021,2200214944,"3,728.09",,Payments to main contractor,,,,,,No
The Royal Borough of Kensington and Chelsea,RBKC,,Statutory and Corporate Items,Capital Projects Cost Centre (default),,Decontaminate UK Limited,1280985,,,,21/12/2021,2200214948,"1,823.64",,Payments to main contractor,,,,,,No
The Royal Borough of Kensington and Chelsea,RBKC,,Statutory and Corporate Items,Capital Projects Cost Centre (default),,Decontaminate UK Limited,1280985,,,,21/12/2021,2200214951,"6,809.71",,Payments to main contractor,,,,,,No
The Royal Borough of Kensington and Chelsea,RBKC,,Statutory and Corporate Items,Capital Projects Cost Centre (default),,Decontaminate UK Limited,1280985,,,,23/12/2021,2200215429,"4,508.87",,Payments to main contractor,,,,,,No
The Royal Borough of Kensington and Chelsea,RBKC,,Statutory and Corporate Items,Capital Projects Cost Centre (default),,Derisk (UK) Limited ,1233980,,,,01/10/2021,2200197936,876.19,,Payments to main contractor,,,,,,No
The Royal Borough of Kensington and Chelsea,RBKC,,Statutory and Corporate Items,Capital Projects Cost Centre (default),,Derisk (UK) Limited ,1233980,,,,01/10/2021,2200197989,"2,799.39",,Professional Fees : Non Legal,,,,,,No
The Royal Borough of Kensington and Chelsea,RBKC,,Statutory and Corporate Items,Capital Projects Cost Centre (default),,Derisk (UK) Limited ,1233980,,,,01/10/2021,2200197990,"2,970.00",,Professional Fees : Non Legal,,,,,,No
The Royal Borough of Kensington and Chelsea,RBKC,,Statutory and Corporate Items,Capital Projects Cost Centre (default),,Derisk (UK) Limited ,1233980,,,,01/10/2021,2200197992,"2,790.68",,Professional Fees : Non Legal,,,,,,No
The Royal Borough of Kensington and Chelsea,RBKC,,Statutory and Corporate Items,Capital Projects Cost Centre (default),,Derisk (UK) Limited ,1233980,,,,01/10/2021,2200197994,"2,509.40",,Professional Fees : Non Legal,,,,,,No
The Royal Borough of Kensington and Chelsea,RBKC,,Statutory and Corporate Items,Capital Projects Cost Centre (default),,Derisk (UK) Limited ,1233980,,,,05/10/2021,2200198668,"1,999.00",,Payments to main contractor,,,,,,No
The Royal Borough of Kensington and Chelsea,RBKC,,Statutory and Corporate Items,Capital Projects Cost Centre (default),,Derisk (UK) Limited ,1233980,,,,14/10/2021,2200201051,"1,197.89",,Professional Fees : Non Legal,,,,,,No
The Royal Borough of Kensington and Chelsea,RBKC,,Statutory and Corporate Items,Capital Projects Cost Centre (default),,Derisk (UK) Limited ,1233980,,,,04/11/2021,2200205615,"2,520.00",,Professional Fees : Non Legal,,,,,,No
The Royal Borough of Kensington and Chelsea,RBKC,,Statutory and Corporate Items,Capital Projects Cost Centre (default),,Derisk (UK) Limited ,1233980,,,,09/11/2021,2200206502,"1,597.19",,Professional Fees : Non Legal,,,,,,No
The Royal Borough of Kensington and Chelsea,RBKC,,Statutory and Corporate Items,Capital Projects Cost Centre (default),,Derisk (UK) Limited ,1233980,,,,09/11/2021,2200206505,"3,720.90",,Professional Fees : Non Legal,,,,,,No
The Royal Borough of Kensington and Chelsea,RBKC,,Statutory and Corporate Items,Capital Projects Cost Centre (default),,Derisk (UK) Limited ,1233980,,,,09/11/2021,2200206531,"8,398.18",,Professional Fees : Non Legal,,,,,,No
The Royal Borough of Kensington and Chelsea,RBKC,,Statutory and Corporate Items,Capital Projects Cost Centre (default),,Derisk (UK) Limited ,1233980,,,,10/11/2021,2200206631,"2,849.24",,Professional Fees : Non Legal,,,,,,No
The Royal Borough of Kensington and Chelsea,RBKC,,Statutory and Corporate Items,Capital Projects Cost Centre (default),,Derisk (UK) Limited ,1233980,,,,16/11/2021,2200207692,"2,300.00",,Payments to main contractor,,,,,,No
The Royal Borough of Kensington and Chelsea,RBKC,,Statutory and Corporate Items,Capital Projects Cost Centre (default),,Derisk (UK) Limited ,1233980,,,,16/11/2021,2200207706,558.73,,Payments to main contractor,,,,,,No
The Royal Borough of Kensington and Chelsea,RBKC,,Statutory and Corporate Items,Capital Projects Cost Centre (default),,Derisk (UK) Limited ,1233980,,,,16/11/2021,2200207719,876.19,,Payments to main contractor,,,,,,No
The Royal Borough of Kensington and Chelsea,RBKC,,Statutory and Corporate Items,Capital Projects Cost Centre (default),,Derisk (UK) Limited ,1233980,,,,18/11/2021,2200208361,"2,300.00",,Payments to main contractor,,,,,,No
The Royal Borough of Kensington and Chelsea,RBKC,,Statutory and Corporate Items,Capital Projects Cost Centre (default),,Derisk (UK) Limited ,1233980,,,,18/11/2021,2200208362,876.19,,Payments to main contractor,,,,,,No
The Royal Borough of Kensington and Chelsea,RBKC,,Statutory and Corporate Items,Capital Projects Cost Centre (default),,Derisk (UK) Limited ,1233980,,,,18/11/2021,2200208364,558.73,,Payments to main contractor,,,,,,No
The Royal Borough of Kensington and Chelsea,RBKC,,Statutory and Corporate Items,Capital Projects Cost Centre (default),,Derisk (UK) Limited ,1233980,,,,02/12/2021,2200210984,"2,843.40",,Professional Fees : Non Legal,,,,,,No
The Royal Borough of Kensington and Chelsea,RBKC,,Statutory and Corporate Items,Capital Projects Cost Centre (default),,Derisk (UK) Limited ,1233980,,,,02/12/2021,2200210985,"3,960.00",,Professional Fees : Non Legal,,,,,,No
The Royal Borough of Kensington and Chelsea,RBKC,,Statutory and Corporate Items,Capital Projects Cost Centre (default),,Derisk (UK) Limited ,1233980,,,,02/12/2021,2200210987,"1,689.65",,Professional Fees : Non Legal,,,,,,No
The Royal Borough of Kensington and Chelsea,RBKC,,Statutory and Corporate Items,Capital Projects Cost Centre (default),,Derisk (UK) Limited ,1233980,,,,02/12/2021,2200210988,"1,212.39",,Professional Fees : Non Legal,,,,,,No
The Royal Borough of Kensington and Chelsea,RBKC,,Statutory and Corporate Items,Capital Projects Cost Centre (default),,Derisk (UK) Limited ,1233980,,,,02/12/2021,2200210989,"1,397.88",,Professional Fees : Non Legal,,,,,,No
The Royal Borough of Kensington and Chelsea,RBKC,,Statutory and Corporate Items,Capital Projects Cost Centre (default),,Derisk (UK) Limited ,1233980,,,,02/12/2021,2200210992,"1,950.00",,Professional Fees : Non Legal,,,,,,No
The Royal Borough of Kensington and Chelsea,RBKC,,Statutory and Corporate Items,Capital Projects Cost Centre (default),,Derisk (UK) Limited ,1233980,,,,02/12/2021,2200211001,"2,037.37",,Professional Fees : Non Legal,,,,,,No
The Royal Borough of Kensington and Chelsea,RBKC,,Statutory and Corporate Items,Capital Projects Cost Centre (default),,Derisk (UK) Limited ,1233980,,,,02/12/2021,2200211002,580.56,,Professional Fees : Non Legal,,,,,,No
The Royal Borough of Kensington and Chelsea,RBKC,,Statutory and Corporate Items,Capital Projects Cost Centre (default),,Derisk (UK) Limited ,1233980,,,,02/12/2021,2200211003,"5,598.79",,Professional Fees : Non Legal,,,,,,No
The Royal Borough of Kensington and Chelsea,RBKC,,Statutory and Corporate Items,Capital Projects Cost Centre (default),,District Energy Development Ltd,1275886,,,,19/10/2021,2200201850,"1,600.00",,Design Consultant,,,,,,No
The Royal Borough of Kensington and Chelsea,RBKC,,Statutory and Corporate Items,Capital Projects Cost Centre (default),,District Energy Development Ltd,1275886,,,,09/11/2021,2200206347,"1,600.00",,Design Consultant,,,,,,No
The Royal Borough of Kensington and Chelsea,RBKC,,Statutory and Corporate Items,Capital Projects Cost Centre (default),,District Energy Development Ltd,1275886,,,,10/12/2021,2200212612,"2,000.00",,Design Consultant,,,,,,No
The Royal Borough of Kensington and Chelsea,RBKC,,Statutory and Corporate Items,Capital Projects Cost Centre (default),,Dma Signs Ltd ,1234013,,,,12/10/2021,2200200564,"3,018.35",,Site Works,,,,,,No
The Royal Borough of Kensington and Chelsea,RBKC,,Statutory and Corporate Items,Capital Projects Cost Centre (default),,Dma Signs Ltd ,1234013,,,,02/12/2021,2200211025,"2,072.65",,Site Works,,,,,,No
The Royal Borough of Kensington and Chelsea,RBKC,,Statutory and Corporate Items,Capital Projects Cost Centre (default),,Doorway Maintenance Co ,1231196,,,,05/10/2021,2200198688,"4,695.00",,Payments to main contractor,,,,,,No
The Royal Borough of Kensington and Chelsea,RBKC,,Statutory and Corporate Items,Capital Projects Cost Centre (default),,Doorway Maintenance Co ,1231196,,,,01/12/2021,2200210734,"2,895.00",,Payments to main contractor,,,,,,No
The Royal Borough of Kensington and Chelsea,RBKC,,Statutory and Corporate Items,Capital Projects Cost Centre (default),,Duncan & Grove,1261381,,,,29/11/2021,2200210115,"5,782.50",,Site Works,,,,,,No
The Royal Borough of Kensington and Chelsea,RBKC,,Statutory and Corporate Items,Capital Projects Cost Centre (default),,ECD Architects Ltd,1234067,,,,05/11/2021,2200205760,"1,000.00",,Design Consultant,,,,,,No
The Royal Borough of Kensington and Chelsea,RBKC,,Statutory and Corporate Items,Capital Projects Cost Centre (default),,ECD Architects Ltd,1234067,,,,09/11/2021,2200206512,"5,500.00",,Payments to main contractor,,,,,,No
The Royal Borough of Kensington and Chelsea,RBKC,,Statutory and Corporate Items,Capital Projects Cost Centre (default),,ECD Architects Ltd,1234067,,,,09/11/2021,2200206514,"4,000.00",,Payments to main contractor,,,,,,No
The Royal Borough of Kensington and Chelsea,RBKC,,Statutory and Corporate Items,Capital Projects Cost Centre (default),,ECD Architects Ltd,1234067,,,,09/11/2021,2200206516,"4,000.00",,Payments to main contractor,,,,,,No
The Royal Borough of Kensington and Chelsea,RBKC,,Statutory and Corporate Items,Capital Projects Cost Centre (default),,ECD Architects Ltd,1234067,,,,09/11/2021,2200206517,"4,000.00",,Payments to main contractor,,,,,,No
The Royal Borough of Kensington and Chelsea,RBKC,,Statutory and Corporate Items,Capital Projects Cost Centre (default),,ECD Architects Ltd,1234067,,,,12/11/2021,2200207137,500.00,,Design Consultant,,,,,,No
The Royal Borough of Kensington and Chelsea,RBKC,,Statutory and Corporate Items,Capital Projects Cost Centre (default),,ECD Architects Ltd,1234067,,,,16/11/2021,2200207645,"3,991.26",,Payments to main contractor,,,,,,No
The Royal Borough of Kensington and Chelsea,RBKC,,Statutory and Corporate Items,Capital Projects Cost Centre (default),,ECD Architects Ltd,1234067,,,,16/11/2021,2200207647,"3,655.20",,Payments to main contractor,,,,,,No
The Royal Borough of Kensington and Chelsea,RBKC,,Statutory and Corporate Items,Capital Projects Cost Centre (default),,ECD Architects Ltd,1234067,,,,17/12/2021,2200213957,"4,668.00",,Payments to main contractor,,,,,,No
The Royal Borough of Kensington and Chelsea,RBKC,,Statutory and Corporate Items,Capital Projects Cost Centre (default),,ECD Architects Ltd,1234067,,,,17/12/2021,2200213960,"3,903.42",,Payments to main contractor,,,,,,No
The Royal Borough of Kensington and Chelsea,RBKC,,Statutory and Corporate Items,Capital Projects Cost Centre (default),,ECD Architects Ltd,1234067,,,,29/12/2021,2200215885,"6,457.00",,Other Consultants,,,,,,No
The Royal Borough of Kensington and Chelsea,RBKC,,Statutory and Corporate Items,Capital Projects Cost Centre (default),,ETEC Associates LTD,1269170,,,,01/11/2021,2200204405,"6,000.00",,HCC - Electrical & Mechanical Engineers,,,,,,No
The Royal Borough of Kensington and Chelsea,RBKC,,Statutory and Corporate Items,Capital Projects Cost Centre (default),,Elettra Bordonaro ltd,1278721,,,,08/10/2021,2200199541,"2,125.00",,Romanse Expenses,,,,,,No
The Royal Borough of Kensington and Chelsea,RBKC,,Statutory and Corporate Items,Capital Projects Cost Centre (default),,Erect Architecture Ltd ,1234339,,,,06/12/2021,2200211628,"3,882.60",,Romanse Expenses,,,,,,No
The Royal Borough of Kensington and Chelsea,RBKC,,Statutory and Corporate Items,Capital Projects Cost Centre (default),,EXCLUSIVE LEISURE LTD,1278378,,,,06/10/2021,2200199139,"23,360.50",,Romanse Expenses,,,,,,No
The Royal Borough of Kensington and Chelsea,RBKC,,Statutory and Corporate Items,Capital Projects Cost Centre (default),,F.M Conway Ltd ,1231208,,,,04/10/2021,2200198282,"3,388.40",,Payments to main contractor,,,,,,No
The Royal Borough of Kensington and Chelsea,RBKC,,Statutory and Corporate Items,Capital Projects Cost Centre (default),,F.M Conway Ltd ,1231208,,,,04/10/2021,2200198286,"1,022.41",,Payments to main contractor,,,,,,No
The Royal Borough of Kensington and Chelsea,RBKC,,Statutory and Corporate Items,Capital Projects Cost Centre (default),,F.M Conway Ltd ,1231208,,,,04/10/2021,2200198292,"3,520.06",,Payments to main contractor,,,,,,No
The Royal Borough of Kensington and Chelsea,RBKC,,Statutory and Corporate Items,Capital Projects Cost Centre (default),,F.M Conway Ltd ,1231208,,,,04/10/2021,2200198295,"6,701.14",,Payments to main contractor,,,,,,No
The Royal Borough of Kensington and Chelsea,RBKC,,Statutory and Corporate Items,Capital Projects Cost Centre (default),,F.M Conway Ltd ,1231208,,,,04/10/2021,2200198312,"4,911.47",,Payments to main contractor,,,,,,No
The Royal Borough of Kensington and Chelsea,RBKC,,Statutory and Corporate Items,Capital Projects Cost Centre (default),,F.M Conway Ltd ,1231208,,,,04/10/2021,2200198315,"4,890.23",,Payments to main contractor,,,,,,No
The Royal Borough of Kensington and Chelsea,RBKC,,Statutory and Corporate Items,Capital Projects Cost Centre (default),,F.M Conway Ltd ,1231208,,,,04/10/2021,2200198318,"7,543.80",,Payments to main contractor,,,,,,No
The Royal Borough of Kensington and Chelsea,RBKC,,Statutory and Corporate Items,Capital Projects Cost Centre (default),,F.M Conway Ltd ,1231208,,,,04/10/2021,2200198319,"3,630.58",,Payments to main contractor,,,,,,No
The Royal Borough of Kensington and Chelsea,RBKC,,Statutory and Corporate Items,Capital Projects Cost Centre (default),,F.M Conway Ltd ,1231208,,,,04/10/2021,2200198324,"17,747.62",,Payments to main contractor,,,,,,No
The Royal Borough of Kensington and Chelsea,RBKC,,Statutory and Corporate Items,Capital Projects Cost Centre (default),,F.M Conway Ltd ,1231208,,,,05/10/2021,2200198896,"1,136.28",,Payments to main contractor,,,,,,No
The Royal Borough of Kensington and Chelsea,RBKC,,Statutory and Corporate Items,Capital Projects Cost Centre (default),,F.M Conway Ltd ,1231208,,,,08/10/2021,2200199585,"49,489.41",,Romanse Expenses,,,,,,No
The Royal Borough of Kensington and Chelsea,RBKC,,Statutory and Corporate Items,Capital Projects Cost Centre (default),,F.M Conway Ltd ,1231208,,,,11/10/2021,2200199938,"3,639.24",,Romanse Expenses,,,,,,No
The Royal Borough of Kensington and Chelsea,RBKC,,Statutory and Corporate Items,Capital Projects Cost Centre (default),,F.M Conway Ltd ,1231208,,,,11/10/2021,2200199939,"23,967.67",,Romanse Expenses,,,,,,No
The Royal Borough of Kensington and Chelsea,RBKC,,Statutory and Corporate Items,Capital Projects Cost Centre (default),,F.M Conway Ltd ,1231208,,,,13/10/2021,2200200667,"25,000.00",,Resurfacing,,,,,,No
The Royal Borough of Kensington and Chelsea,RBKC,,Statutory and Corporate Items,Capital Projects Cost Centre (default),,F.M Conway Ltd ,1231208,,,,20/10/2021,2200202143,961.27,,Footway Repairs,,,,,,No
The Royal Borough of Kensington and Chelsea,RBKC,,Statutory and Corporate Items,Capital Projects Cost Centre (default),,F.M Conway Ltd ,1231208,,,,22/10/2021,2200202570,"3,553.19",,Romanse Expenses,,,,,,No
The Royal Borough of Kensington and Chelsea,RBKC,,Statutory and Corporate Items,Capital Projects Cost Centre (default),,F.M Conway Ltd ,1231208,,,,03/11/2021,2200205044,"9,794.62",,Romanse Expenses,,,,,,No
The Royal Borough of Kensington and Chelsea,RBKC,,Statutory and Corporate Items,Capital Projects Cost Centre (default),,F.M Conway Ltd ,1231208,,,,03/11/2021,2200205048,"1,240.65",,Romanse Expenses,,,,,,No
The Royal Borough of Kensington and Chelsea,RBKC,,Statutory and Corporate Items,Capital Projects Cost Centre (default),,F.M Conway Ltd ,1231208,,,,08/11/2021,2200206028,"45,000.00",,Resurfacing,,,,,,No
The Royal Borough of Kensington and Chelsea,RBKC,,Statutory and Corporate Items,Capital Projects Cost Centre (default),,F.M Conway Ltd ,1231208,,,,15/11/2021,2200207461,"23,862.79",,Other capital equipment,,,,,,No
The Royal Borough of Kensington and Chelsea,RBKC,,Statutory and Corporate Items,Capital Projects Cost Centre (default),,F.M Conway Ltd ,1231208,,,,19/11/2021,2200208622,"5,293.08",,Payments to main contractor,,,,,,No
The Royal Borough of Kensington and Chelsea,RBKC,,Statutory and Corporate Items,Capital Projects Cost Centre (default),,F.M Conway Ltd ,1231208,,,,22/11/2021,2200208769,"3,126.47",,Footway Repairs,,,,,,No
The Royal Borough of Kensington and Chelsea,RBKC,,Statutory and Corporate Items,Capital Projects Cost Centre (default),,F.M Conway Ltd ,1231208,,,,26/11/2021,2200209834,"264,511.45",,Romanse Expenses,,,,,,No
The Royal Borough of Kensington and Chelsea,RBKC,,Statutory and Corporate Items,Capital Projects Cost Centre (default),,F.M Conway Ltd ,1231208,,,,16/12/2021,2200213605,"3,119.00",,Payments to main contractor,,,,,,No
The Royal Borough of Kensington and Chelsea,RBKC,,Statutory and Corporate Items,Capital Projects Cost Centre (default),,Faithful and Gould Limited,1234387,,,,13/10/2021,2200200849,"44,703.00",,Professional Fees : Non Legal,,,,,,No
The Royal Borough of Kensington and Chelsea,RBKC,,Statutory and Corporate Items,Capital Projects Cost Centre (default),,Faithful and Gould Limited,1234387,,,,01/11/2021,2200204242,"21,091.00",,Professional Fees : Non Legal,,,,,,No
The Royal Borough of Kensington and Chelsea,RBKC,,Statutory and Corporate Items,Capital Projects Cost Centre (default),,Fastsigns Hammersmith,1234400,,,,22/11/2021,2200209051,"6,945.00",,Other capital equipment,,,,,,No
The Royal Borough of Kensington and Chelsea,RBKC,,Statutory and Corporate Items,Capital Projects Cost Centre (default),,Fastsigns Hammersmith,1234400,,,,23/11/2021,2200209125,"1,448.50",,Other capital equipment,,,,,,No
The Royal Borough of Kensington and Chelsea,RBKC,,Statutory and Corporate Items,Capital Projects Cost Centre (default),,T/A Fisk Group,1277295,,,,06/10/2021,2200199116,"2,757.00",,Other Consultants,,,,,,No
The Royal Borough of Kensington and Chelsea,RBKC,,Statutory and Corporate Items,Capital Projects Cost Centre (default),,T/A Fisk Group,1277295,,,,25/10/2021,2200203062,"1,245.00",,Other Consultants,,,,,,No
The Royal Borough of Kensington and Chelsea,RBKC,,Statutory and Corporate Items,Capital Projects Cost Centre (default),,Focus Furnishing ,1234438,,,,04/10/2021,2200198379,960.00,,Payments to main contractor,,,,,,No
The Royal Borough of Kensington and Chelsea,RBKC,,Statutory and Corporate Items,Capital Projects Cost Centre (default),,Focus Furnishing ,1234438,,,,08/10/2021,2200199676,780.00,,Payments to main contractor,,,,,,No
The Royal Borough of Kensington and Chelsea,RBKC,,Statutory and Corporate Items,Capital Projects Cost Centre (default),,Focus Furnishing ,1234438,,,,14/10/2021,2200200980,600.00,,Payments to main contractor,,,,,,No
The Royal Borough of Kensington and Chelsea,RBKC,,Statutory and Corporate Items,Capital Projects Cost Centre (default),,Focus Furnishing ,1234438,,,,17/11/2021,2200207837,"1,850.00",,Special Maintenance,,,,,,No
The Royal Borough of Kensington and Chelsea,RBKC,,Statutory and Corporate Items,Capital Projects Cost Centre (default),,Focus Furnishing ,1234438,,,,17/11/2021,2200207838,"1,005.40",,Payments to main contractor,,,,,,No
The Royal Borough of Kensington and Chelsea,RBKC,,Statutory and Corporate Items,Capital Projects Cost Centre (default),,Freeway Lift Services Ltd ,1231213,,,,30/11/2021,2200210413,"4,051.00",,Payments to main contractor,,,,,,No
The Royal Borough of Kensington and Chelsea,RBKC,,Statutory and Corporate Items,Capital Projects Cost Centre (default),,Freeway Lift Services Ltd ,1231213,,,,20/12/2021,2200214575,"6,085.00",,Payments to main contractor,,,,,,No
The Royal Borough of Kensington and Chelsea,RBKC,,Statutory and Corporate Items,Capital Projects Cost Centre (default),,Freeway Lift Services Ltd ,1231213,,,,23/12/2021,2200215425,"5,555.00",,Payments to main contractor,,,,,,No
The Royal Borough of Kensington and Chelsea,RBKC,,Statutory and Corporate Items,Capital Projects Cost Centre (default),,Fusion Project Management Ltd,1268369,,,,08/10/2021,2200199690,"14,047.00",,Other Consultants,,,,,,No
The Royal Borough of Kensington and Chelsea,RBKC,,Statutory and Corporate Items,Capital Projects Cost Centre (default),,Fusion Project Management Ltd,1268369,,,,17/11/2021,2200207854,"4,000.00",,Other Consultants,,,,,,No
The Royal Borough of Kensington and Chelsea,RBKC,,Statutory and Corporate Items,Capital Projects Cost Centre (default),,Fusion Project Management Ltd,1268369,,,,17/11/2021,2200207855,"2,000.00",,Other Consultants,,,,,,No
The Royal Borough of Kensington and Chelsea,RBKC,,Statutory and Corporate Items,Capital Projects Cost Centre (default),,Fusion Project Management Ltd,1268369,,,,17/11/2021,2200207856,"17,325.00",,Other Consultants,,,,,,No
The Royal Borough of Kensington and Chelsea,RBKC,,Statutory and Corporate Items,Capital Projects Cost Centre (default),,Fusion Project Management Ltd,1268369,,,,17/11/2021,2200207857,"3,000.00",,Other Consultants,,,,,,No
The Royal Borough of Kensington and Chelsea,RBKC,,Statutory and Corporate Items,Capital Projects Cost Centre (default),,Fusion Project Management Ltd,1268369,,,,17/11/2021,2200207858,"1,700.00",,Other Consultants,,,,,,No
The Royal Borough of Kensington and Chelsea,RBKC,,Statutory and Corporate Items,Capital Projects Cost Centre (default),,Fusion Project Management Ltd,1268369,,,,17/11/2021,2200207859,"2,000.00",,Other Consultants,,,,,,No
The Royal Borough of Kensington and Chelsea,RBKC,,Statutory and Corporate Items,Capital Projects Cost Centre (default),,Fusion Project Management Ltd,1268369,,,,17/11/2021,2200207860,"4,800.00",,Other Consultants,,,,,,No
The Royal Borough of Kensington and Chelsea,RBKC,,Statutory and Corporate Items,Capital Projects Cost Centre (default),,Fusion Project Management Ltd,1268369,,,,17/11/2021,2200207861,700.00,,Other Consultants,,,,,,No
The Royal Borough of Kensington and Chelsea,RBKC,,Statutory and Corporate Items,Capital Projects Cost Centre (default),,Fusion Project Management Ltd,1268369,,,,17/11/2021,2200207862,"2,000.00",,Other Consultants,,,,,,No
The Royal Borough of Kensington and Chelsea,RBKC,,Statutory and Corporate Items,Capital Projects Cost Centre (default),,Fusion Project Management Ltd,1268369,,,,03/12/2021,2200211265,"5,400.00",,Other Consultants,,,,,,No
The Royal Borough of Kensington and Chelsea,RBKC,,Statutory and Corporate Items,Capital Projects Cost Centre (default),,Fusion Project Management Ltd,1268369,,,,06/12/2021,2200211657,"5,625.00",,Other Consultants,,,,,,No
The Royal Borough of Kensington and Chelsea,RBKC,,Statutory and Corporate Items,Capital Projects Cost Centre (default),,Fusion Project Management Ltd,1268369,,,,10/12/2021,2200212716,"65,039.00",,Professional Fees : Non Legal,,,,,,No
The Royal Borough of Kensington and Chelsea,RBKC,,Statutory and Corporate Items,Capital Projects Cost Centre (default),,Roman Catholic Diocese of Westminst,D000000023,,,,29/10/2021,3110357291,"25,000.00",,Payments to main contractor,,,,,,No
The Royal Borough of Kensington and Chelsea,RBKC,,Statutory and Corporate Items,Capital Projects Cost Centre (default),,Curate Films Limited,D000000023,,,,29/10/2021,3110357292,"9,750.00",,Professional Fees : Non Legal,,,,,,No
The Royal Borough of Kensington and Chelsea,RBKC,,Statutory and Corporate Items,Capital Projects Cost Centre (default),,Redact Details,D000000023,,,,01/11/2021,3110357433,"2,500.00",,Design Consultant,,,,,,No
The Royal Borough of Kensington and Chelsea,RBKC,,Statutory and Corporate Items,Capital Projects Cost Centre (default),,Keystone Law Ltd,D000000023,,,,16/11/2021,3110362710,"2,491.20",,Acquisition of Land & Buildings,,,,,,No
The Royal Borough of Kensington and Chelsea,RBKC,,Statutory and Corporate Items,Capital Projects Cost Centre (default),,Friends of Leighton House,D000000023,,,,30/11/2021,3110366439,795.00,,Other capital equipment,,,,,,No
The Royal Borough of Kensington and Chelsea,RBKC,,Statutory and Corporate Items,Capital Projects Cost Centre (default),,Euro Car Parks,D000000023,,,,13/12/2021,3110369896,"3,216.40",,Payments to main contractor,,,,,,No
The Royal Borough of Kensington and Chelsea,RBKC,,Statutory and Corporate Items,Capital Projects Cost Centre (default),,Haddonstone,D000000023,,,,14/12/2021,3110370292,546.33,,Romanse Expenses,,,,,,No
The Royal Borough of Kensington and Chelsea,RBKC,,Statutory and Corporate Items,Capital Projects Cost Centre (default),,Chris Zurowski Consulting,D000000023,,,,14/12/2021,3110370311,"1,657.50",,Professional Fees : Non Legal,,,,,,No
The Royal Borough of Kensington and Chelsea,RBKC,,Statutory and Corporate Items,Capital Projects Cost Centre (default),,GGS Solutions Ltd ,1234644,,,,04/10/2021,2200198191,"10,752.00",,Other Consultants,,,,,,No
The Royal Borough of Kensington and Chelsea,RBKC,,Statutory and Corporate Items,Capital Projects Cost Centre (default),,GGS Solutions Ltd ,1234644,,,,18/11/2021,2200208241,"6,552.00",,Site Works,,,,,,No
The Royal Borough of Kensington and Chelsea,RBKC,,Statutory and Corporate Items,Capital Projects Cost Centre (default),,GIA ,1234645,,,,11/10/2021,2200199842,"1,500.00",,Legal Fees & expenses,,,,,,No
The Royal Borough of Kensington and Chelsea,RBKC,,Statutory and Corporate Items,Capital Projects Cost Centre (default),,GIA ,1234645,,,,11/10/2021,2200199844,"1,647.00",,Other Consultants,,,,,,No
The Royal Borough of Kensington and Chelsea,RBKC,,Statutory and Corporate Items,Capital Projects Cost Centre (default),,Gardiner & Theobald LLP ,1234613,,,,14/10/2021,2200200992,"8,860.00",,Payments to main contractor,,,,,,No
The Royal Borough of Kensington and Chelsea,RBKC,,Statutory and Corporate Items,Capital Projects Cost Centre (default),,Gardiner & Theobald LLP ,1234613,,,,29/10/2021,2200204023,"4,500.00",,Payments to main contractor,,,,,,No
The Royal Borough of Kensington and Chelsea,RBKC,,Statutory and Corporate Items,Capital Projects Cost Centre (default),,Gardiner & Theobald LLP ,1234613,,,,01/11/2021,2200204635,"8,860.00",,Payments to main contractor,,,,,,No
The Royal Borough of Kensington and Chelsea,RBKC,,Statutory and Corporate Items,Capital Projects Cost Centre (default),,Gardiner & Theobald LLP ,1234613,,,,26/11/2021,2200209849,"4,500.00",,Payments to main contractor,,,,,,No
The Royal Borough of Kensington and Chelsea,RBKC,,Statutory and Corporate Items,Capital Projects Cost Centre (default),,Gardiner & Theobald LLP ,1234613,,,,26/11/2021,2200209853,"8,860.00",,Payments to main contractor,,,,,,No
The Royal Borough of Kensington and Chelsea,RBKC,,Statutory and Corporate Items,Capital Projects Cost Centre (default),,Garvey Bros Builders ,1234614,,,,18/10/2021,2200201590,780.00,,Payments to main contractor,,,,,,No
The Royal Borough of Kensington and Chelsea,RBKC,,Statutory and Corporate Items,Capital Projects Cost Centre (default),,Garvey Bros Builders ,1234614,,,,18/10/2021,2200201597,"7,375.00",,Payments to main contractor,,,,,,No
The Royal Borough of Kensington and Chelsea,RBKC,,Statutory and Corporate Items,Capital Projects Cost Centre (default),,Garvey Bros Builders ,1234614,,,,16/12/2021,2200213741,"6,010.00",,Payments to main contractor,,,,,,No
The Royal Borough of Kensington and Chelsea,RBKC,,Statutory and Corporate Items,Capital Projects Cost Centre (default),,Garvey Bros Builders ,1234614,,,,16/12/2021,2200213742,"3,065.00",,Payments to main contractor,,,,,,No
The Royal Borough of Kensington and Chelsea,RBKC,,Statutory and Corporate Items,Capital Projects Cost Centre (default),,Geotechnical Consulting Group LLP,1283575,,,,20/10/2021,2200202085,"5,500.00",,B*Surveyors,,,,,,No
The Royal Borough of Kensington and Chelsea,RBKC,,Statutory and Corporate Items,Capital Projects Cost Centre (default),,Geotechnical and Environmental,1234639,,,,30/11/2021,2200210568,"13,506.00",,B*Surveyors,,,,,,No
The Royal Borough of Kensington and Chelsea,RBKC,,Statutory and Corporate Items,Capital Projects Cost Centre (default),,Gerda Security Products Ltd ,1234642,,,,01/10/2021,2200198062,"1,374.91",,Payments to main contractor,,,,,,No
The Royal Borough of Kensington and Chelsea,RBKC,,Statutory and Corporate Items,Capital Projects Cost Centre (default),,Gerda Security Products Ltd ,1234642,,,,04/10/2021,2200198327,"1,050.00",,Payments to main contractor,,,,,,No
The Royal Borough of Kensington and Chelsea,RBKC,,Statutory and Corporate Items,Capital Projects Cost Centre (default),,Gerda Security Products Ltd ,1234642,,,,06/10/2021,2200199164,"3,245.00",,Payments to main contractor,,,,,,No
The Royal Borough of Kensington and Chelsea,RBKC,,Statutory and Corporate Items,Capital Projects Cost Centre (default),,Gerda Security Products Ltd ,1234642,,,,07/10/2021,2200199262,"2,585.92",,Payments to main contractor,,,,,,No
The Royal Borough of Kensington and Chelsea,RBKC,,Statutory and Corporate Items,Capital Projects Cost Centre (default),,Gerda Security Products Ltd ,1234642,,,,14/10/2021,2200200996,"4,200.00",,Payments to main contractor,,,,,,No
The Royal Borough of Kensington and Chelsea,RBKC,,Statutory and Corporate Items,Capital Projects Cost Centre (default),,Gerda Security Products Ltd ,1234642,,,,14/10/2021,2200200997,700.00,,Payments to main contractor,,,,,,No
The Royal Borough of Kensington and Chelsea,RBKC,,Statutory and Corporate Items,Capital Projects Cost Centre (default),,Gerda Security Products Ltd ,1234642,,,,14/10/2021,2200200998,"5,250.00",,Payments to main contractor,,,,,,No
The Royal Borough of Kensington and Chelsea,RBKC,,Statutory and Corporate Items,Capital Projects Cost Centre (default),,Gerda Security Products Ltd ,1234642,,,,14/10/2021,2200201001,"7,350.00",,Payments to main contractor,,,,,,No
The Royal Borough of Kensington and Chelsea,RBKC,,Statutory and Corporate Items,Capital Projects Cost Centre (default),,Gerda Security Products Ltd ,1234642,,,,14/10/2021,2200201002,"1,050.00",,Payments to main contractor,,,,,,No
The Royal Borough of Kensington and Chelsea,RBKC,,Statutory and Corporate Items,Capital Projects Cost Centre (default),,Gerda Security Products Ltd ,1234642,,,,14/10/2021,2200201003,"6,650.00",,Payments to main contractor,,,,,,No
The Royal Borough of Kensington and Chelsea,RBKC,,Statutory and Corporate Items,Capital Projects Cost Centre (default),,Gerda Security Products Ltd ,1234642,,,,14/10/2021,2200201075,"1,050.00",,Payments to main contractor,,,,,,No
The Royal Borough of Kensington and Chelsea,RBKC,,Statutory and Corporate Items,Capital Projects Cost Centre (default),,Gerda Security Products Ltd ,1234642,,,,14/10/2021,2200201076,"1,050.00",,Payments to main contractor,,,,,,No
The Royal Borough of Kensington and Chelsea,RBKC,,Statutory and Corporate Items,Capital Projects Cost Centre (default),,Gerda Security Products Ltd ,1234642,,,,14/10/2021,2200201079,700.00,,Payments to main contractor,,,,,,No
The Royal Borough of Kensington and Chelsea,RBKC,,Statutory and Corporate Items,Capital Projects Cost Centre (default),,Gerda Security Products Ltd ,1234642,,,,14/10/2021,2200201100,700.00,,Payments to main contractor,,,,,,No
The Royal Borough of Kensington and Chelsea,RBKC,,Statutory and Corporate Items,Capital Projects Cost Centre (default),,Gerda Security Products Ltd ,1234642,,,,14/10/2021,2200201101,"4,200.00",,Payments to main contractor,,,,,,No
The Royal Borough of Kensington and Chelsea,RBKC,,Statutory and Corporate Items,Capital Projects Cost Centre (default),,Gerda Security Products Ltd ,1234642,,,,14/10/2021,2200201105,700.00,,Payments to main contractor,,,,,,No
The Royal Borough of Kensington and Chelsea,RBKC,,Statutory and Corporate Items,Capital Projects Cost Centre (default),,Gerda Security Products Ltd ,1234642,,,,15/10/2021,2200201322,944.21,,Payments to main contractor,,,,,,No
The Royal Borough of Kensington and Chelsea,RBKC,,Statutory and Corporate Items,Capital Projects Cost Centre (default),,Gerda Security Products Ltd ,1234642,,,,15/10/2021,2200201324,"1,241.46",,Payments to main contractor,,,,,,No
The Royal Borough of Kensington and Chelsea,RBKC,,Statutory and Corporate Items,Capital Projects Cost Centre (default),,Gerda Security Products Ltd ,1234642,,,,19/10/2021,2200201916,"8,928.84",,Payments to main contractor,,,,,,No
The Royal Borough of Kensington and Chelsea,RBKC,,Statutory and Corporate Items,Capital Projects Cost Centre (default),,Gerda Security Products Ltd ,1234642,,,,19/10/2021,2200201917,"1,739.85",,Payments to main contractor,,,,,,No
The Royal Borough of Kensington and Chelsea,RBKC,,Statutory and Corporate Items,Capital Projects Cost Centre (default),,Gerda Security Products Ltd ,1234642,,,,25/10/2021,2200202933,"2,254.75",,Planned Maintenance (CM),,,,,,No
The Royal Borough of Kensington and Chelsea,RBKC,,Statutory and Corporate Items,Capital Projects Cost Centre (default),,Gerda Security Products Ltd ,1234642,,,,25/10/2021,2200202934,"2,450.00",,Planned Maintenance (CM),,,,,,No
The Royal Borough of Kensington and Chelsea,RBKC,,Statutory and Corporate Items,Capital Projects Cost Centre (default),,Gerda Security Products Ltd ,1234642,,,,25/10/2021,2200203066,847.85,,Payments to main contractor,,,,,,No
The Royal Borough of Kensington and Chelsea,RBKC,,Statutory and Corporate Items,Capital Projects Cost Centre (default),,Gerda Security Products Ltd ,1234642,,,,01/11/2021,2200204292,"9,035.31",,Payments to main contractor,,,,,,No
The Royal Borough of Kensington and Chelsea,RBKC,,Statutory and Corporate Items,Capital Projects Cost Centre (default),,Gerda Security Products Ltd ,1234642,,,,03/11/2021,2200205309,"1,048.02",,Payments to main contractor,,,,,,No
The Royal Borough of Kensington and Chelsea,RBKC,,Statutory and Corporate Items,Capital Projects Cost Centre (default),,Gerda Security Products Ltd ,1234642,,,,03/11/2021,2200205310,"1,182.66",,Payments to main contractor,,,,,,No
The Royal Borough of Kensington and Chelsea,RBKC,,Statutory and Corporate Items,Capital Projects Cost Centre (default),,Gerda Security Products Ltd ,1234642,,,,03/11/2021,2200205311,"2,439.96",,Payments to main contractor,,,,,,No
The Royal Borough of Kensington and Chelsea,RBKC,,Statutory and Corporate Items,Capital Projects Cost Centre (default),,Gerda Security Products Ltd ,1234642,,,,04/11/2021,2200205440,"1,050.00",,Payments to main contractor,,,,,,No
The Royal Borough of Kensington and Chelsea,RBKC,,Statutory and Corporate Items,Capital Projects Cost Centre (default),,Gerda Security Products Ltd ,1234642,,,,04/11/2021,2200205447,700.00,,Payments to main contractor,,,,,,No
The Royal Borough of Kensington and Chelsea,RBKC,,Statutory and Corporate Items,Capital Projects Cost Centre (default),,Gerda Security Products Ltd ,1234642,,,,04/11/2021,2200205448,"14,000.00",,Payments to main contractor,,,,,,No
The Royal Borough of Kensington and Chelsea,RBKC,,Statutory and Corporate Items,Capital Projects Cost Centre (default),,Gerda Security Products Ltd ,1234642,,,,09/11/2021,2200206412,"1,686.98",,Payments to main contractor,,,,,,No
The Royal Borough of Kensington and Chelsea,RBKC,,Statutory and Corporate Items,Capital Projects Cost Centre (default),,Gerda Security Products Ltd ,1234642,,,,09/11/2021,2200206413,"1,754.58",,Payments to main contractor,,,,,,No
The Royal Borough of Kensington and Chelsea,RBKC,,Statutory and Corporate Items,Capital Projects Cost Centre (default),,Gerda Security Products Ltd ,1234642,,,,11/11/2021,2200206813,"14,717.72",,Payments to main contractor,,,,,,No
The Royal Borough of Kensington and Chelsea,RBKC,,Statutory and Corporate Items,Capital Projects Cost Centre (default),,Gerda Security Products Ltd ,1234642,,,,11/11/2021,2200206910,"4,639.09",,Payments to main contractor,,,,,,No
The Royal Borough of Kensington and Chelsea,RBKC,,Statutory and Corporate Items,Capital Projects Cost Centre (default),,Gerda Security Products Ltd ,1234642,,,,19/11/2021,2200208628,"6,664.60",,Payments to main contractor,,,,,,No
The Royal Borough of Kensington and Chelsea,RBKC,,Statutory and Corporate Items,Capital Projects Cost Centre (default),,Gerda Security Products Ltd ,1234642,,,,26/11/2021,2200209715,575.55,,Payments to main contractor,,,,,,No
The Royal Borough of Kensington and Chelsea,RBKC,,Statutory and Corporate Items,Capital Projects Cost Centre (default),,Gerda Security Products Ltd ,1234642,,,,07/12/2021,2200211804,"1,475.00",,Payments to main contractor,,,,,,No
The Royal Borough of Kensington and Chelsea,RBKC,,Statutory and Corporate Items,Capital Projects Cost Centre (default),,Gerda Security Products Ltd ,1234642,,,,23/12/2021,2200215337,"10,653.22",,Payments to main contractor,,,,,,No
The Royal Borough of Kensington and Chelsea,RBKC,,Statutory and Corporate Items,Capital Projects Cost Centre (default),,Gerda Security Products Ltd ,1234642,,,,23/12/2021,2200215341,700.00,,Payments to main contractor,,,,,,No
The Royal Borough of Kensington and Chelsea,RBKC,,Statutory and Corporate Items,Capital Projects Cost Centre (default),,Gerda Security Products Ltd ,1234642,,,,23/12/2021,2200215346,"21,150.92",,Payments to main contractor,,,,,,No
The Royal Borough of Kensington and Chelsea,RBKC,,Statutory and Corporate Items,Capital Projects Cost Centre (default),,Gerda Security Products Ltd ,1234642,,,,23/12/2021,2200215348,"2,100.00",,Payments to main contractor,,,,,,No
The Royal Borough of Kensington and Chelsea,RBKC,,Statutory and Corporate Items,Capital Projects Cost Centre (default),,Gerda Security Products Ltd ,1234642,,,,23/12/2021,2200215351,"1,750.00",,Payments to main contractor,,,,,,No
The Royal Borough of Kensington and Chelsea,RBKC,,Statutory and Corporate Items,Capital Projects Cost Centre (default),,Gerda Security Products Ltd ,1234642,,,,23/12/2021,2200215352,"17,888.86",,Payments to main contractor,,,,,,No
The Royal Borough of Kensington and Chelsea,RBKC,,Statutory and Corporate Items,Capital Projects Cost Centre (default),,Gerda Security Products Ltd ,1234642,,,,23/12/2021,2200215353,"6,208.38",,Payments to main contractor,,,,,,No
The Royal Borough of Kensington and Chelsea,RBKC,,Statutory and Corporate Items,Capital Projects Cost Centre (default),,Gerda Security Products Ltd ,1234642,,,,23/12/2021,2200215360,"1,162.11",,Payments to main contractor,,,,,,No
The Royal Borough of Kensington and Chelsea,RBKC,,Statutory and Corporate Items,Capital Projects Cost Centre (default),,Gerda Security Products Ltd ,1234642,,,,23/12/2021,2200215361,"1,246.51",,Payments to main contractor,,,,,,No
The Royal Borough of Kensington and Chelsea,RBKC,,Statutory and Corporate Items,Capital Projects Cost Centre (default),,Gerda Security Products Ltd ,1234642,,,,23/12/2021,2200215363,700.00,,Payments to main contractor,,,,,,No
The Royal Borough of Kensington and Chelsea,RBKC,,Statutory and Corporate Items,Capital Projects Cost Centre (default),,Gerda Security Products Ltd ,1234642,,,,23/12/2021,2200215364,700.00,,Payments to main contractor,,,,,,No
The Royal Borough of Kensington and Chelsea,RBKC,,Statutory and Corporate Items,Capital Projects Cost Centre (default),,Gerda Security Products Ltd ,1234642,,,,23/12/2021,2200215366,"1,400.00",,Payments to main contractor,,,,,,No
The Royal Borough of Kensington and Chelsea,RBKC,,Statutory and Corporate Items,Capital Projects Cost Centre (default),,Gerda Security Products Ltd ,1234642,,,,23/12/2021,2200215520,"19,580.39",,Payments to main contractor,,,,,,No
The Royal Borough of Kensington and Chelsea,RBKC,,Statutory and Corporate Items,Capital Projects Cost Centre (default),,Greenacre Recruitment,1258089,,,,05/10/2021,2200198718,"2,625.00",,B*Strategic Building Maintenance,,,,,,No
The Royal Borough of Kensington and Chelsea,RBKC,,Statutory and Corporate Items,Capital Projects Cost Centre (default),,Greenacre Recruitment,1258089,,,,25/10/2021,2200203084,"2,625.00",,B*Strategic Building Maintenance,,,,,,No
The Royal Borough of Kensington and Chelsea,RBKC,,Statutory and Corporate Items,Capital Projects Cost Centre (default),,Greenacre Recruitment,1258089,,,,27/10/2021,2200203651,"2,625.00",,B*Strategic Building Maintenance,,,,,,No
The Royal Borough of Kensington and Chelsea,RBKC,,Statutory and Corporate Items,Capital Projects Cost Centre (default),,Greenacre Recruitment,1258089,,,,27/10/2021,2200203706,"2,625.00",,B*Strategic Building Maintenance,,,,,,No
The Royal Borough of Kensington and Chelsea,RBKC,,Statutory and Corporate Items,Capital Projects Cost Centre (default),,Greenacre Recruitment,1258089,,,,05/11/2021,2200205781,"2,100.00",,B*Strategic Building Maintenance,,,,,,No
The Royal Borough of Kensington and Chelsea,RBKC,,Statutory and Corporate Items,Capital Projects Cost Centre (default),,Greenacre Recruitment,1258089,,,,12/11/2021,2200207082,"2,625.00",,B*Strategic Building Maintenance,,,,,,No
The Royal Borough of Kensington and Chelsea,RBKC,,Statutory and Corporate Items,Capital Projects Cost Centre (default),,Greenacre Recruitment,1258089,,,,12/11/2021,2200207083,"2,100.00",,B*Strategic Building Maintenance,,,,,,No
The Royal Borough of Kensington and Chelsea,RBKC,,Statutory and Corporate Items,Capital Projects Cost Centre (default),,Greenacre Recruitment,1258089,,,,06/12/2021,2200211607,"2,625.00",,B*Strategic Building Maintenance,,,,,,No
The Royal Borough of Kensington and Chelsea,RBKC,,Statutory and Corporate Items,Capital Projects Cost Centre (default),,Greenacre Recruitment,1258089,,,,06/12/2021,2200211609,"2,625.00",,B*Strategic Building Maintenance,,,,,,No
The Royal Borough of Kensington and Chelsea,RBKC,,Statutory and Corporate Items,Capital Projects Cost Centre (default),,Greenacre Recruitment,1258089,,,,10/12/2021,2200212589,"2,625.00",,B*Strategic Building Maintenance,,,,,,No
The Royal Borough of Kensington and Chelsea,RBKC,,Statutory and Corporate Items,Capital Projects Cost Centre (default),,Guarding UK Ltd ,1230372,,,,08/10/2021,2200199574,"3,503.97",,Construction Security,,,,,,No
The Royal Borough of Kensington and Chelsea,RBKC,,Statutory and Corporate Items,Capital Projects Cost Centre (default),,Guarding UK Ltd ,1230372,,,,02/12/2021,2200211006,"3,503.97",,Construction Security,,,,,,No
The Royal Borough of Kensington and Chelsea,RBKC,,Statutory and Corporate Items,Capital Projects Cost Centre (default),,Guarding UK Ltd ,1230372,,,,17/12/2021,2200213939,"3,503.97",,Construction Security,,,,,,No
The Royal Borough of Kensington and Chelsea,RBKC,,Statutory and Corporate Items,Capital Projects Cost Centre (default),,Guideline Lift Services Ltd ,1231219,,,,10/12/2021,2200212703,"8,954.00",,Payments to main contractor,,,,,,No
The Royal Borough of Kensington and Chelsea,RBKC,,Statutory and Corporate Items,Capital Projects Cost Centre (default),,Guideline Lift Services Ltd ,1231219,,,,10/12/2021,2200212704,"8,954.00",,Payments to main contractor,,,,,,No
The Royal Borough of Kensington and Chelsea,RBKC,,Statutory and Corporate Items,Capital Projects Cost Centre (default),,Guideline Lift Services Ltd ,1231219,,,,10/12/2021,2200212705,"4,477.00",,Payments to main contractor,,,,,,No
The Royal Borough of Kensington and Chelsea,RBKC,,Statutory and Corporate Items,Capital Projects Cost Centre (default),,Guideline Lift Services Ltd ,1231219,,,,10/12/2021,2200212706,"4,477.00",,Payments to main contractor,,,,,,No
The Royal Borough of Kensington and Chelsea,RBKC,,Statutory and Corporate Items,Capital Projects Cost Centre (default),,Harris Hill Limited,1283188,,,,13/10/2021,2200200710,"1,090.40",,B*Strategic Building Maintenance,,,,,,No
The Royal Borough of Kensington and Chelsea,RBKC,,Statutory and Corporate Items,Capital Projects Cost Centre (default),,Harris Hill Limited,1283188,,,,14/10/2021,2200200928,"1,090.40",,B*Strategic Building Maintenance,,,,,,No
The Royal Borough of Kensington and Chelsea,RBKC,,Statutory and Corporate Items,Capital Projects Cost Centre (default),,Harris Hill Limited,1283188,,,,14/10/2021,2200200929,"1,090.40",,B*Strategic Building Maintenance,,,,,,No
The Royal Borough of Kensington and Chelsea,RBKC,,Statutory and Corporate Items,Capital Projects Cost Centre (default),,Harris Hill Limited,1283188,,,,25/10/2021,2200203094,"1,090.40",,B*Strategic Building Maintenance,,,,,,No
The Royal Borough of Kensington and Chelsea,RBKC,,Statutory and Corporate Items,Capital Projects Cost Centre (default),,Harris Hill Limited,1283188,,,,05/11/2021,2200205783,"1,144.92",,B*Strategic Building Maintenance,,,,,,No
The Royal Borough of Kensington and Chelsea,RBKC,,Statutory and Corporate Items,Capital Projects Cost Centre (default),,Harris Hill Limited,1283188,,,,05/11/2021,2200205809,"1,090.40",,B*Strategic Building Maintenance,,,,,,No
The Royal Borough of Kensington and Chelsea,RBKC,,Statutory and Corporate Items,Capital Projects Cost Centre (default),,Harris Hill Limited,1283188,,,,12/11/2021,2200207131,872.32,,B*Strategic Building Maintenance,,,,,,No
The Royal Borough of Kensington and Chelsea,RBKC,,Statutory and Corporate Items,Capital Projects Cost Centre (default),,Harris Hill Limited,1283188,,,,25/11/2021,2200209528,"1,308.45",,B*Strategic Building Maintenance,,,,,,No
The Royal Borough of Kensington and Chelsea,RBKC,,Statutory and Corporate Items,Capital Projects Cost Centre (default),,Harris Hill Limited,1283188,,,,25/11/2021,2200209530,"1,090.40",,B*Strategic Building Maintenance,,,,,,No
The Royal Borough of Kensington and Chelsea,RBKC,,Statutory and Corporate Items,Capital Projects Cost Centre (default),,Harris Hill Limited,1283188,,,,10/12/2021,2200212587,872.32,,B*Strategic Building Maintenance,,,,,,No
The Royal Borough of Kensington and Chelsea,RBKC,,Statutory and Corporate Items,Capital Projects Cost Centre (default),,Harris Hill Limited,1283188,,,,10/12/2021,2200212588,"1,090.40",,B*Strategic Building Maintenance,,,,,,No
The Royal Borough of Kensington and Chelsea,RBKC,,Statutory and Corporate Items,Capital Projects Cost Centre (default),,Harris Hill Limited,1283188,,,,15/12/2021,2200213431,"1,090.40",,B*Strategic Building Maintenance,,,,,,No
The Royal Borough of Kensington and Chelsea,RBKC,,Statutory and Corporate Items,Capital Projects Cost Centre (default),,Helix Construct Limited,1270811,,,,04/10/2021,2200198267,"89,694.66",,Payments to main contractor,,,,,,No
The Royal Borough of Kensington and Chelsea,RBKC,,Statutory and Corporate Items,Capital Projects Cost Centre (default),,Helix Construct Limited,1270811,,,,22/10/2021,2200202566,"67,091.12",,Payments to main contractor,,,,,,No
The Royal Borough of Kensington and Chelsea,RBKC,,Statutory and Corporate Items,Capital Projects Cost Centre (default),,Helix Construct Limited,1270811,,,,29/10/2021,2200203959,"83,439.99",,Payments to main contractor,,,,,,No
The Royal Borough of Kensington and Chelsea,RBKC,,Statutory and Corporate Items,Capital Projects Cost Centre (default),,Helix Construct Limited,1270811,,,,08/11/2021,2200206128,"89,572.62",,Payments to main contractor,,,,,,No
The Royal Borough of Kensington and Chelsea,RBKC,,Statutory and Corporate Items,Capital Projects Cost Centre (default),,Helix Construct Limited,1270811,,,,11/11/2021,2200206815,"45,238.55",,Payments to main contractor,,,,,,No
The Royal Borough of Kensington and Chelsea,RBKC,,Statutory and Corporate Items,Capital Projects Cost Centre (default),,Helix Construct Limited,1270811,,,,11/11/2021,2200206817,"42,803.12",,Payments to main contractor,,,,,,No
The Royal Borough of Kensington and Chelsea,RBKC,,Statutory and Corporate Items,Capital Projects Cost Centre (default),,Helix Construct Limited,1270811,,,,08/12/2021,2200212061,"82,146.02",,Payments to main contractor,,,,,,No
The Royal Borough of Kensington and Chelsea,RBKC,,Statutory and Corporate Items,Capital Projects Cost Centre (default),,Helix Construct Limited,1270811,,,,14/12/2021,2200213019,"15,037.01",,Payments to main contractor,,,,,,No
The Royal Borough of Kensington and Chelsea,RBKC,,Statutory and Corporate Items,Capital Projects Cost Centre (default),,Henry Riley LLP ,1230402,,,,06/10/2021,2200199114,"6,600.00",,Other Consultants,,,,,,No
The Royal Borough of Kensington and Chelsea,RBKC,,Statutory and Corporate Items,Capital Projects Cost Centre (default),,Henry Riley LLP ,1230402,,,,04/11/2021,2200205556,"6,600.00",,Other Consultants,,,,,,No
The Royal Borough of Kensington and Chelsea,RBKC,,Statutory and Corporate Items,Capital Projects Cost Centre (default),,Henry Riley LLP ,1230402,,,,13/12/2021,2200212944,"6,600.00",,Other Consultants,,,,,,No
The Royal Borough of Kensington and Chelsea,RBKC,,Statutory and Corporate Items,Capital Projects Cost Centre (default),,Higham Flat Roofing Ltd ,1252605,,,,14/10/2021,2200200917,"1,650.00",,Planned Maintenance (CM),,,,,,No
The Royal Borough of Kensington and Chelsea,RBKC,,Statutory and Corporate Items,Capital Projects Cost Centre (default),,Higham Flat Roofing Ltd ,1252605,,,,13/12/2021,2200212961,"3,776.00",,Planned Maintenance (CM),,,,,,No
The Royal Borough of Kensington and Chelsea,RBKC,,Statutory and Corporate Items,Capital Projects Cost Centre (default),,Higham Flat Roofing Ltd ,1252605,,,,21/12/2021,2200214834,966.00,,Planned Maintenance (CM),,,,,,No
The Royal Borough of Kensington and Chelsea,RBKC,,Statutory and Corporate Items,Capital Projects Cost Centre (default),,Houseline Building Services Ltd ,1231377,,,,15/10/2021,2200201177,"16,470.00",,Other Consultants,,,,,,No
The Royal Borough of Kensington and Chelsea,RBKC,,Statutory and Corporate Items,Capital Projects Cost Centre (default),,Houseline Building Services Ltd ,1231377,,,,25/10/2021,2200202762,"31,643.58",,Payments to sub contractor,,,,,,No
The Royal Borough of Kensington and Chelsea,RBKC,,Statutory and Corporate Items,Capital Projects Cost Centre (default),,Houseline Building Services Ltd ,1231377,,,,25/10/2021,2200202777,"38,738.67",,Payments to sub contractor,,,,,,No
The Royal Borough of Kensington and Chelsea,RBKC,,Statutory and Corporate Items,Capital Projects Cost Centre (default),,Hunters and Partners Ltd ,1254860,,,,17/11/2021,2200208036,"1,100.00",,Payments to main contractor,,,,,,No
The Royal Borough of Kensington and Chelsea,RBKC,,Statutory and Corporate Items,Capital Projects Cost Centre (default),,Idox Software Ltd ,1230453,,,,06/10/2021,2200199142,"19,646.25",,Computer Software,,,,,,No
The Royal Borough of Kensington and Chelsea,RBKC,,Statutory and Corporate Items,Capital Projects Cost Centre (default),,Idverde Ltd ,1231380,,,,01/12/2021,2200210723,"1,952.00",,Romanse Expenses,,,,,,No
The Royal Borough of Kensington and Chelsea,RBKC,,Statutory and Corporate Items,Capital Projects Cost Centre (default),,Idverde Ltd ,1231380,,,,01/12/2021,2200210726,"1,952.00",,Romanse Expenses,,,,,,No
The Royal Borough of Kensington and Chelsea,RBKC,,Statutory and Corporate Items,Capital Projects Cost Centre (default),,Specialist Power Engineering,1262569,,,,02/11/2021,2200204703,"15,921.35",,Planned Maintenance (CM),,,,,,No
The Royal Borough of Kensington and Chelsea,RBKC,,Statutory and Corporate Items,Capital Projects Cost Centre (default),,J & J Topgrade Ltd ,1234807,,,,23/11/2021,2200209179,"1,310.50",,Payments to main contractor,,,,,,No
The Royal Borough of Kensington and Chelsea,RBKC,,Statutory and Corporate Items,Capital Projects Cost Centre (default),,J & J Topgrade Ltd ,1234807,,,,15/12/2021,2200213389,705.00,,Payments to main contractor,,,,,,No
The Royal Borough of Kensington and Chelsea,RBKC,,Statutory and Corporate Items,Capital Projects Cost Centre (default),,JH Crawford Security Ltd ,1234817,,,,09/11/2021,2200206434,"2,211.00",,Payments to main contractor,,,,,,No
The Royal Borough of Kensington and Chelsea,RBKC,,Statutory and Corporate Items,Capital Projects Cost Centre (default),,Jackson Coles LLP ,1230491,,,,06/10/2021,2200199144,785.00,,Payments to main contractor,,,,,,No
The Royal Borough of Kensington and Chelsea,RBKC,,Statutory and Corporate Items,Capital Projects Cost Centre (default),,Jackson Coles LLP ,1230491,,,,26/10/2021,2200203364,"3,189.00",,Payments to main contractor,,,,,,No
The Royal Borough of Kensington and Chelsea,RBKC,,Statutory and Corporate Items,Capital Projects Cost Centre (default),,Jackson Coles LLP ,1230491,,,,08/11/2021,2200206188,785.00,,Payments to main contractor,,,,,,No
The Royal Borough of Kensington and Chelsea,RBKC,,Statutory and Corporate Items,Capital Projects Cost Centre (default),,Jackson Coles LLP ,1230491,,,,30/11/2021,2200210558,"3,189.00",,Payments to main contractor,,,,,,No
The Royal Borough of Kensington and Chelsea,RBKC,,Statutory and Corporate Items,Capital Projects Cost Centre (default),,Redact Details,1277228,,,,13/12/2021,2200212856,"2,772.00",,Design Consultant,,,,,,No
The Royal Borough of Kensington and Chelsea,RBKC,,Statutory and Corporate Items,Capital Projects Cost Centre (default),,Redact Details,1277228,,,,13/12/2021,2200212873,"3,062.50",,Design Consultant,,,,,,No
The Royal Borough of Kensington and Chelsea,RBKC,,Statutory and Corporate Items,Capital Projects Cost Centre (default),,Redact Details,1277228,,,,13/12/2021,2200212874,"4,028.50",,Design Consultant,,,,,,No
The Royal Borough of Kensington and Chelsea,RBKC,,Statutory and Corporate Items,Capital Projects Cost Centre (default),,Redact Details,1277228,,,,13/12/2021,2200212894,"3,151.05",,Design Consultant,,,,,,No
The Royal Borough of Kensington and Chelsea,RBKC,,Statutory and Corporate Items,Capital Projects Cost Centre (default),,K & T Heating Services Ltd ,1231384,,,,01/10/2021,2200197979,"6,938.80",,Payments to main contractor,,,,,,No
The Royal Borough of Kensington and Chelsea,RBKC,,Statutory and Corporate Items,Capital Projects Cost Centre (default),,K & T Heating Services Ltd ,1231384,,,,01/10/2021,2200197981,"1,247.36",,Payments to main contractor,,,,,,No
The Royal Borough of Kensington and Chelsea,RBKC,,Statutory and Corporate Items,Capital Projects Cost Centre (default),,K & T Heating Services Ltd ,1231384,,,,06/10/2021,2200199136,"167,096.09",,Payments to main contractor,,,,,,No
The Royal Borough of Kensington and Chelsea,RBKC,,Statutory and Corporate Items,Capital Projects Cost Centre (default),,K & T Heating Services Ltd ,1231384,,,,08/10/2021,2200199703,"7,465.60",,Payments to main contractor,,,,,,No
The Royal Borough of Kensington and Chelsea,RBKC,,Statutory and Corporate Items,Capital Projects Cost Centre (default),,K & T Heating Services Ltd ,1231384,,,,08/10/2021,2200199704,"7,329.43",,Payments to main contractor,,,,,,No
The Royal Borough of Kensington and Chelsea,RBKC,,Statutory and Corporate Items,Capital Projects Cost Centre (default),,K & T Heating Services Ltd ,1231384,,,,05/11/2021,2200205762,"101,509.50",,Payments to main contractor,,,,,,No
The Royal Borough of Kensington and Chelsea,RBKC,,Statutory and Corporate Items,Capital Projects Cost Centre (default),,K & T Heating Services Ltd ,1231384,,,,17/11/2021,2200208188,"1,793.63",,Payments to main contractor,,,,,,No
The Royal Borough of Kensington and Chelsea,RBKC,,Statutory and Corporate Items,Capital Projects Cost Centre (default),,K & T Heating Services Ltd ,1231384,,,,22/11/2021,2200208739,"7,465.60",,Payments to main contractor,,,,,,No
The Royal Borough of Kensington and Chelsea,RBKC,,Statutory and Corporate Items,Capital Projects Cost Centre (default),,K & T Heating Services Ltd ,1231384,,,,22/11/2021,2200208740,"7,329.43",,Payments to main contractor,,,,,,No
The Royal Borough of Kensington and Chelsea,RBKC,,Statutory and Corporate Items,Capital Projects Cost Centre (default),,K & T Heating Services Ltd ,1231384,,,,30/11/2021,2200210572,"1,001.64",,Heating System Replacement - CM,,,,,,No
The Royal Borough of Kensington and Chelsea,RBKC,,Statutory and Corporate Items,Capital Projects Cost Centre (default),,K & T Heating Services Ltd ,1231384,,,,30/11/2021,2200210573,"4,082.70",,Heating System Replacement - CM,,,,,,No
The Royal Borough of Kensington and Chelsea,RBKC,,Statutory and Corporate Items,Capital Projects Cost Centre (default),,K & T Heating Services Ltd ,1231384,,,,02/12/2021,2200211014,"4,078.28",,Payments to main contractor,,,,,,No
The Royal Borough of Kensington and Chelsea,RBKC,,Statutory and Corporate Items,Capital Projects Cost Centre (default),,K & T Heating Services Ltd ,1231384,,,,07/12/2021,2200211809,"2,413.18",,Heating System Replacement - CM,,,,,,No
The Royal Borough of Kensington and Chelsea,RBKC,,Statutory and Corporate Items,Capital Projects Cost Centre (default),,K & T Heating Services Ltd ,1231384,,,,10/12/2021,2200212707,"94,203.80",,Payments to main contractor,,,,,,No
The Royal Borough of Kensington and Chelsea,RBKC,,Statutory and Corporate Items,Capital Projects Cost Centre (default),,K & T Heating Services Ltd ,1231384,,,,14/12/2021,2200213216,"7,329.43",,Payments to main contractor,,,,,,No
The Royal Borough of Kensington and Chelsea,RBKC,,Statutory and Corporate Items,Capital Projects Cost Centre (default),,K & T Heating Services Ltd ,1231384,,,,14/12/2021,2200213217,"7,465.60",,Payments to main contractor,,,,,,No
The Royal Borough of Kensington and Chelsea,RBKC,,Statutory and Corporate Items,Capital Projects Cost Centre (default),,K & T Heating Services Ltd ,1231384,,,,21/12/2021,2200214957,"3,294.03",,Heating System Replacement - CM,,,,,,No
The Royal Borough of Kensington and Chelsea,RBKC,,Statutory and Corporate Items,Capital Projects Cost Centre (default),,KBH Building Services Ltd,1276614,,,,04/10/2021,2200198350,"29,701.50",,Special Maintenance,,,,,,No
The Royal Borough of Kensington and Chelsea,RBKC,,Statutory and Corporate Items,Capital Projects Cost Centre (default),,KBH Building Services Ltd,1276614,,,,14/10/2021,2200201091,"29,787.90",,Special Maintenance,,,,,,No
The Royal Borough of Kensington and Chelsea,RBKC,,Statutory and Corporate Items,Capital Projects Cost Centre (default),,KBH Building Services Ltd,1276614,,,,14/10/2021,2200201092,"20,537.16",,Special Maintenance,,,,,,No
The Royal Borough of Kensington and Chelsea,RBKC,,Statutory and Corporate Items,Capital Projects Cost Centre (default),,KBH Building Services Ltd,1276614,,,,02/11/2021,2200204884,"37,992.15",,Special Maintenance,,,,,,No
The Royal Borough of Kensington and Chelsea,RBKC,,Statutory and Corporate Items,Capital Projects Cost Centre (default),,KBH Building Services Ltd,1276614,,,,04/11/2021,2200205564,"19,950.65",,Special Maintenance,,,,,,No
The Royal Borough of Kensington and Chelsea,RBKC,,Statutory and Corporate Items,Capital Projects Cost Centre (default),,KBH Building Services Ltd,1276614,,,,07/12/2021,2200211865,"34,125.78",,Special Maintenance,,,,,,No
The Royal Borough of Kensington and Chelsea,RBKC,,Statutory and Corporate Items,Capital Projects Cost Centre (default),,KBH Building Services Ltd,1276614,,,,14/12/2021,2200213113,"32,717.42",,Special Maintenance,,,,,,No
The Royal Borough of Kensington and Chelsea,RBKC,,Statutory and Corporate Items,Capital Projects Cost Centre (default),,KBH Building Services Ltd,1276614,,,,14/12/2021,2200213115,"30,945.49",,Special Maintenance,,,,,,No
The Royal Borough of Kensington and Chelsea,RBKC,,Statutory and Corporate Items,Capital Projects Cost Centre (default),,KP Acoustics Ltd,1230564,,,,27/10/2021,2200203662,980.00,,Other Consultants,,,,,,No
The Royal Borough of Kensington and Chelsea,RBKC,,Statutory and Corporate Items,Capital Projects Cost Centre (default),,Karakusevic Carson Architects LLP,1273973,,,,01/10/2021,2200197938,"125,000.00",,Payments to main contractor,,,,,,No
The Royal Borough of Kensington and Chelsea,RBKC,,Statutory and Corporate Items,Capital Projects Cost Centre (default),,Karakusevic Carson Architects LLP,1273973,,,,16/11/2021,2200207720,"125,000.00",,Payments to main contractor,,,,,,No
The Royal Borough of Kensington and Chelsea,RBKC,,Statutory and Corporate Items,Capital Projects Cost Centre (default),,Karakusevic Carson Architects LLP,1273973,,,,17/11/2021,2200207850,"100,000.00",,Payments to main contractor,,,,,,No
The Royal Borough of Kensington and Chelsea,RBKC,,Statutory and Corporate Items,Capital Projects Cost Centre (default),,Kelleher Utility Solutions Ltd,1276893,,,,11/11/2021,2200206934,"23,397.64",,Special Maintenance,,,,,,No
The Royal Borough of Kensington and Chelsea,RBKC,,Statutory and Corporate Items,Capital Projects Cost Centre (default),,Kelleher Utility Solutions Ltd,1276893,,,,11/11/2021,2200206939,"59,447.00",,Special Maintenance,,,,,,No
The Royal Borough of Kensington and Chelsea,RBKC,,Statutory and Corporate Items,Capital Projects Cost Centre (default),,Kelleher Utility Solutions Ltd,1276893,,,,16/12/2021,2200213631,"18,213.55",,Special Maintenance,,,,,,No
The Royal Borough of Kensington and Chelsea,RBKC,,Statutory and Corporate Items,Capital Projects Cost Centre (default),,Kelleher Utility Solutions Ltd,1276893,,,,20/12/2021,2200214253,"40,860.63",,Special Maintenance,,,,,,No
The Royal Borough of Kensington and Chelsea,RBKC,,Statutory and Corporate Items,Capital Projects Cost Centre (default),,Khipu Networks ,1230544,,,,27/10/2021,2200203442,"7,274.00",,Other capital equipment,,,,,,No
The Royal Borough of Kensington and Chelsea,RBKC,,Statutory and Corporate Items,Capital Projects Cost Centre (default),,Khipu Networks ,1230544,,,,27/10/2021,2200203445,"6,176.46",,Other capital equipment,,,,,,No
The Royal Borough of Kensington and Chelsea,RBKC,,Statutory and Corporate Items,Capital Projects Cost Centre (default),,Khipu Networks ,1230544,,,,05/11/2021,2200205680,"25,171.34",,Other capital equipment,,,,,,No
The Royal Borough of Kensington and Chelsea,RBKC,,Statutory and Corporate Items,Capital Projects Cost Centre (default),,Khipu Networks ,1230544,,,,23/11/2021,2200209111,"9,634.70",,Other capital equipment,,,,,,No
The Royal Borough of Kensington and Chelsea,RBKC,,Statutory and Corporate Items,Capital Projects Cost Centre (default),,Khipu Networks ,1230544,,,,07/12/2021,2200211801,"20,570.00",,Other capital equipment,,,,,,No
The Royal Borough of Kensington and Chelsea,RBKC,,Statutory and Corporate Items,Capital Projects Cost Centre (default),,Kilburn Nightingale Architects Ltd,1262316,,,,01/10/2021,2200198076,"4,647.08",,Planned Maintenance (CM),,,,,,No
The Royal Borough of Kensington and Chelsea,RBKC,,Statutory and Corporate Items,Capital Projects Cost Centre (default),,Kompan Ltd ,1231387,,,,06/12/2021,2200211674,"51,000.49",,Site Works,,,,,,No
The Royal Borough of Kensington and Chelsea,RBKC,,Statutory and Corporate Items,Capital Projects Cost Centre (default),,Kompan Ltd ,1231387,,,,23/12/2021,2200215384,"31,771.45",,Site Works,,,,,,No
The Royal Borough of Kensington and Chelsea,RBKC,,Statutory and Corporate Items,Capital Projects Cost Centre (default),,LSE Enterprise Ltd,1281979,,,,07/12/2021,2200211811,"12,735.00",,Design Consultant,,,,,,No
The Royal Borough of Kensington and Chelsea,RBKC,,Statutory and Corporate Items,Capital Projects Cost Centre (default),,Landmark Environmental Ltd,1272305,,,,25/10/2021,2200203091,"1,517.00",,Other Consultants,,,,,,No
The Royal Borough of Kensington and Chelsea,RBKC,,Statutory and Corporate Items,Capital Projects Cost Centre (default),,Landmark Environmental Ltd,1272305,,,,16/11/2021,2200207662,"1,517.00",,Other Consultants,,,,,,No
The Royal Borough of Kensington and Chelsea,RBKC,,Statutory and Corporate Items,Capital Projects Cost Centre (default),,Landmark Environmental Ltd,1272305,,,,10/12/2021,2200212602,"2,812.00",,Other Consultants,,,,,,No
The Royal Borough of Kensington and Chelsea,RBKC,,Statutory and Corporate Items,Capital Projects Cost Centre (default),,Landrock Phillips Ltd ,1230566,,,,08/12/2021,2200212050,"1,050.00",,Romanse Expenses,,,,,,No
The Royal Borough of Kensington and Chelsea,RBKC,,Statutory and Corporate Items,Capital Projects Cost Centre (default),,Lawtech Group Ltd,1273996,,,,05/10/2021,2200198784,"284,462.32",,Payments to main contractor,,,,,,No
The Royal Borough of Kensington and Chelsea,RBKC,,Statutory and Corporate Items,Capital Projects Cost Centre (default),,Lawtech Group Ltd,1273996,,,,01/11/2021,2200204190,"199,266.84",,Payments to main contractor,,,,,,No
The Royal Borough of Kensington and Chelsea,RBKC,,Statutory and Corporate Items,Capital Projects Cost Centre (default),,Lawtech Group Ltd,1273996,,,,06/12/2021,2200211613,"191,104.08",,Payments to main contractor,,,,,,No
The Royal Borough of Kensington and Chelsea,RBKC,,Statutory and Corporate Items,Capital Projects Cost Centre (default),,Leafield Environmental Ltd,1282989,,,,14/12/2021,2200213191,"2,060.00",,Health and Safety Alterations,,,,,,No
The Royal Borough of Kensington and Chelsea,RBKC,,Statutory and Corporate Items,Capital Projects Cost Centre (default),,Redact Details,1231389,,,,20/10/2021,2200202128,"7,130.00",,Payments to main contractor,,,,,,No
The Royal Borough of Kensington and Chelsea,RBKC,,Statutory and Corporate Items,Capital Projects Cost Centre (default),,Lend Lease Consulting (Emea) Ltd ,1234899,,,,29/10/2021,2200204055,"8,687.00",,Romanse Expenses,,,,,,No
The Royal Borough of Kensington and Chelsea,RBKC,,Statutory and Corporate Items,Capital Projects Cost Centre (default),,Lend Lease Consulting (Emea) Ltd ,1234899,,,,30/11/2021,2200210557,"8,687.00",,Romanse Expenses,,,,,,No
The Royal Borough of Kensington and Chelsea,RBKC,,Statutory and Corporate Items,Capital Projects Cost Centre (default),,Lengard Ltd ,1231390,,,,02/12/2021,2200211020,"64,169.96",,Payments to main contractor,,,,,,No
The Royal Borough of Kensington and Chelsea,RBKC,,Statutory and Corporate Items,Capital Projects Cost Centre (default),,Liberty Adaptations Ltd,1277725,,,,08/11/2021,2200206104,"7,385.00",,Payments to main contractor,,,,,,No
The Royal Borough of Kensington and Chelsea,RBKC,,Statutory and Corporate Items,Capital Projects Cost Centre (default),,Liberty Adaptations Ltd,1277725,,,,06/12/2021,2200211719,"1,467.00",,Payments to main contractor,,,,,,No
The Royal Borough of Kensington and Chelsea,RBKC,,Statutory and Corporate Items,Capital Projects Cost Centre (default),,Liberty Adaptations Ltd,1277725,,,,06/12/2021,2200211720,"7,370.00",,Payments to main contractor,,,,,,No
The Royal Borough of Kensington and Chelsea,RBKC,,Statutory and Corporate Items,Capital Projects Cost Centre (default),,Liberty Adaptations Ltd,1277725,,,,23/12/2021,2200215504,"8,087.00",,Payments to main contractor,,,,,,No
The Royal Borough of Kensington and Chelsea,RBKC,,Statutory and Corporate Items,Capital Projects Cost Centre (default),,Liberty Adaptations Ltd,1277725,,,,23/12/2021,2200215509,"6,933.00",,Payments to main contractor,,,,,,No
The Royal Borough of Kensington and Chelsea,RBKC,,Statutory and Corporate Items,Capital Projects Cost Centre (default),,London Borough Of Haringey (General Account),1231804,,,,03/11/2021,2200205288,"7,343.14",,Legal Fees & expenses,,,,,,No
The Royal Borough of Kensington and Chelsea,RBKC,,Statutory and Corporate Items,Capital Projects Cost Centre (default),,London Carpets,1230616,,,,12/10/2021,2200200246,722.00,,Payments to main contractor,,,,,,No
The Royal Borough of Kensington and Chelsea,RBKC,,Statutory and Corporate Items,Capital Projects Cost Centre (default),,London Carpets,1230616,,,,12/10/2021,2200200251,"2,445.00",,Payments to main contractor,,,,,,No
The Royal Borough of Kensington and Chelsea,RBKC,,Statutory and Corporate Items,Capital Projects Cost Centre (default),,London Underground Ltd ,1230631,,,,26/10/2021,2200203198,907.50,,Payments to sub contractor,,,,,,No
The Royal Borough of Kensington and Chelsea,RBKC,,Statutory and Corporate Items,Capital Projects Cost Centre (default),,LONES UK LIMITED,1277775,,,,11/11/2021,2200206885,"2,112.88",,Professional Fees : Non Legal,,,,,,No
The Royal Borough of Kensington and Chelsea,RBKC,,Statutory and Corporate Items,Capital Projects Cost Centre (default),,LONES UK LIMITED,1277775,,,,11/11/2021,2200206886,"2,154.48",,Professional Fees : Non Legal,,,,,,No
The Royal Borough of Kensington and Chelsea,RBKC,,Statutory and Corporate Items,Capital Projects Cost Centre (default),,LONES UK LIMITED,1277775,,,,16/11/2021,2200207704,"1,800.93",,Professional Fees : Non Legal,,,,,,No
The Royal Borough of Kensington and Chelsea,RBKC,,Statutory and Corporate Items,Capital Projects Cost Centre (default),,LONES UK LIMITED,1277775,,,,10/12/2021,2200212597,"3,762.43",,Professional Fees : Non Legal,,,,,,No
The Royal Borough of Kensington and Chelsea,RBKC,,Statutory and Corporate Items,Capital Projects Cost Centre (default),,LONES UK LIMITED,1277775,,,,15/12/2021,2200213326,"1,622.74",,Professional Fees : Non Legal,,,,,,No
The Royal Borough of Kensington and Chelsea,RBKC,,Statutory and Corporate Items,Capital Projects Cost Centre (default),,MDA Consulting Limited ,1234989,,,,04/10/2021,2200198193,792.00,,Payments to main contractor,,,,,,No
The Royal Borough of Kensington and Chelsea,RBKC,,Statutory and Corporate Items,Capital Projects Cost Centre (default),,MDA Consulting Limited ,1234989,,,,04/10/2021,2200198194,880.00,,Other Consultants,,,,,,No
The Royal Borough of Kensington and Chelsea,RBKC,,Statutory and Corporate Items,Capital Projects Cost Centre (default),,MDA Consulting Limited ,1234989,,,,15/10/2021,2200201253,"5,676.00",,Professional Fees : Non Legal,,,,,,No
The Royal Borough of Kensington and Chelsea,RBKC,,Statutory and Corporate Items,Capital Projects Cost Centre (default),,MDA Consulting Limited ,1234989,,,,27/10/2021,2200203537,800.00,,Payments to main contractor,,,,,,No
The Royal Borough of Kensington and Chelsea,RBKC,,Statutory and Corporate Items,Capital Projects Cost Centre (default),,MDA Consulting Limited ,1234989,,,,27/10/2021,2200203538,800.00,,Payments to main contractor,,,,,,No
The Royal Borough of Kensington and Chelsea,RBKC,,Statutory and Corporate Items,Capital Projects Cost Centre (default),,MDA Consulting Limited ,1234989,,,,27/10/2021,2200203541,880.00,,Other Consultants,,,,,,No
The Royal Borough of Kensington and Chelsea,RBKC,,Statutory and Corporate Items,Capital Projects Cost Centre (default),,MDA Consulting Limited ,1234989,,,,29/10/2021,2200204039,"1,200.00",,Payments to sub contractor,,,,,,No
The Royal Borough of Kensington and Chelsea,RBKC,,Statutory and Corporate Items,Capital Projects Cost Centre (default),,MDA Consulting Limited ,1234989,,,,25/11/2021,2200209570,"1,144.00",,Professional Fees : Non Legal,,,,,,No
The Royal Borough of Kensington and Chelsea,RBKC,,Statutory and Corporate Items,Capital Projects Cost Centre (default),,MDA Consulting Limited ,1234989,,,,30/11/2021,2200210491,880.00,,Other Consultants,,,,,,No
The Royal Borough of Kensington and Chelsea,RBKC,,Statutory and Corporate Items,Capital Projects Cost Centre (default),,MDA Consulting Limited ,1234989,,,,30/11/2021,2200210559,900.00,,Payments to sub contractor,,,,,,No
The Royal Borough of Kensington and Chelsea,RBKC,,Statutory and Corporate Items,Capital Projects Cost Centre (default),,MDA Consulting Limited ,1234989,,,,30/11/2021,2200210560,600.00,,Payments to main contractor,,,,,,No
The Royal Borough of Kensington and Chelsea,RBKC,,Statutory and Corporate Items,Capital Projects Cost Centre (default),,MDA Consulting Limited ,1234989,,,,30/11/2021,2200210561,600.00,,Payments to main contractor,,,,,,No
The Royal Borough of Kensington and Chelsea,RBKC,,Statutory and Corporate Items,Capital Projects Cost Centre (default),,MDA Consulting Limited ,1234989,,,,17/12/2021,2200213806,880.00,,Other Consultants,,,,,,No
The Royal Borough of Kensington and Chelsea,RBKC,,Statutory and Corporate Items,Capital Projects Cost Centre (default),,ME Construction Limited,1278687,,,,04/10/2021,2200198199,"79,908.70",,Payments to main contractor,,,,,,No
The Royal Borough of Kensington and Chelsea,RBKC,,Statutory and Corporate Items,Capital Projects Cost Centre (default),,ME Construction Limited,1278687,,,,15/11/2021,2200207565,"105,088.66",,Planned Maintenance (CM),,,,,,No
The Royal Borough of Kensington and Chelsea,RBKC,,Statutory and Corporate Items,Capital Projects Cost Centre (default),,ME Construction Limited,1278687,,,,19/11/2021,2200208614,"3,104.27",,Payments to main contractor,,,,,,No
The Royal Borough of Kensington and Chelsea,RBKC,,Statutory and Corporate Items,Capital Projects Cost Centre (default),,ME Construction Limited,1278687,,,,30/11/2021,2200210566,645.12,,Romanse Expenses,,,,,,No
The Royal Borough of Kensington and Chelsea,RBKC,,Statutory and Corporate Items,Capital Projects Cost Centre (default),,ME Construction Limited,1278687,,,,30/11/2021,2200210567,"12,600.07",,Romanse Expenses,,,,,,No
The Royal Borough of Kensington and Chelsea,RBKC,,Statutory and Corporate Items,Capital Projects Cost Centre (default),,ME Construction Limited,1278687,,,,24/12/2021,2200215688,"25,848.20",,Planned Maintenance (CM),,,,,,No
The Royal Borough of Kensington and Chelsea,RBKC,,Statutory and Corporate Items,Capital Projects Cost Centre (default),,MEC London Ltd ,1231398,,,,09/12/2021,2200212433,"4,435.00",,Planned Maintenance (CM),,,,,,No
The Royal Borough of Kensington and Chelsea,RBKC,,Statutory and Corporate Items,Capital Projects Cost Centre (default),,MEC London Ltd ,1231398,,,,20/12/2021,2200214509,"20,000.00",,Planned Maintenance (CM),,,,,,No
The Royal Borough of Kensington and Chelsea,RBKC,,Statutory and Corporate Items,Capital Projects Cost Centre (default),,MMM Architects Ltd,1259041,,,,04/10/2021,2200198196,"1,500.00",,Payments to main contractor,,,,,,No
The Royal Borough of Kensington and Chelsea,RBKC,,Statutory and Corporate Items,Capital Projects Cost Centre (default),,MMM Architects Ltd,1259041,,,,01/12/2021,2200210796,"1,500.00",,Payments to sub contractor,,,,,,No
The Royal Borough of Kensington and Chelsea,RBKC,,Statutory and Corporate Items,Capital Projects Cost Centre (default),,MMM Architects Ltd,1259041,,,,01/12/2021,2200210797,"1,500.00",,Payments to sub contractor,,,,,,No
The Royal Borough of Kensington and Chelsea,RBKC,,Statutory and Corporate Items,Capital Projects Cost Centre (default),,MRI Software Ltd,1280962,,,,06/10/2021,2200199000,"32,940.00",,Computer Software,,,,,,No
The Royal Borough of Kensington and Chelsea,RBKC,,Statutory and Corporate Items,Capital Projects Cost Centre (default),,Mace Limited ,1230643,,,,08/10/2021,2200199507,"388,072.11",,Payments to main contractor,,,,,,No
The Royal Borough of Kensington and Chelsea,RBKC,,Statutory and Corporate Items,Capital Projects Cost Centre (default),,Mace Limited ,1230643,,,,10/11/2021,2200206691,"332,172.79",,Payments to main contractor,,,,,,No
The Royal Borough of Kensington and Chelsea,RBKC,,Statutory and Corporate Items,Capital Projects Cost Centre (default),,Mace Limited ,1230643,,,,07/12/2021,2200211926,"347,651.72",,Payments to main contractor,,,,,,No
The Royal Borough of Kensington and Chelsea,RBKC,,Statutory and Corporate Items,Capital Projects Cost Centre (default),,Malcolm Hollis LLP ,1230657,,,,25/10/2021,2200202957,"4,450.00",,Other Consultants,,,,,,No
The Royal Borough of Kensington and Chelsea,RBKC,,Statutory and Corporate Items,Capital Projects Cost Centre (default),,Marlborough Primary School ,1232813,,,,04/10/2021,3110349768,"5,246.00",,Computer Equipment,,,,,,No
The Royal Borough of Kensington and Chelsea,RBKC,,Statutory and Corporate Items,Capital Projects Cost Centre (default),,Master Locking Systems Ltd,1262396,,,,03/11/2021,2200205021,877.86,,Payments to main contractor,,,,,,No
The Royal Borough of Kensington and Chelsea,RBKC,,Statutory and Corporate Items,Capital Projects Cost Centre (default),,Meristem Design Limited,1259153,,,,17/11/2021,2200208182,"7,900.00",,Special Maintenance,,,,,,No
The Royal Borough of Kensington and Chelsea,RBKC,,Statutory and Corporate Items,Capital Projects Cost Centre (default),,Meristem Design Limited,1259153,,,,10/12/2021,2200212594,"2,326.00",,Special Maintenance,,,,,,No
The Royal Borough of Kensington and Chelsea,RBKC,,Statutory and Corporate Items,Capital Projects Cost Centre (default),,Meristem Design Limited,1259153,,,,22/12/2021,2200215122,550.00,,Payments to main contractor,,,,,,No
The Royal Borough of Kensington and Chelsea,RBKC,,Statutory and Corporate Items,Capital Projects Cost Centre (default),,Meristem Design Limited,1259153,,,,29/12/2021,2200215901,"1,560.00",,Special Maintenance,,,,,,No
The Royal Borough of Kensington and Chelsea,RBKC,,Statutory and Corporate Items,Capital Projects Cost Centre (default),,Michael Dyson Associates Ltd ,1253270,,,,05/10/2021,2200198793,"9,826.13",,Professional Fees : Non Legal,,,,,,No
The Royal Borough of Kensington and Chelsea,RBKC,,Statutory and Corporate Items,Capital Projects Cost Centre (default),,Michael Dyson Associates Ltd ,1253270,,,,05/10/2021,2200198796,"9,826.13",,Professional Fees : Non Legal,,,,,,No
The Royal Borough of Kensington and Chelsea,RBKC,,Statutory and Corporate Items,Capital Projects Cost Centre (default),,Michael Dyson Associates Ltd ,1253270,,,,16/11/2021,2200207669,"9,826.13",,Professional Fees : Non Legal,,,,,,No
The Royal Borough of Kensington and Chelsea,RBKC,,Statutory and Corporate Items,Capital Projects Cost Centre (default),,Millwood Servicing Ltd ,1253373,,,,17/11/2021,2200208181,"9,149.00",,Payments to main contractor,,,,,,No
The Royal Borough of Kensington and Chelsea,RBKC,,Statutory and Corporate Items,Capital Projects Cost Centre (default),,Minibems Ltd,1281021,,,,06/10/2021,2200199166,"25,222.40",,Landscaping - SCA,,,,,,No
The Royal Borough of Kensington and Chelsea,RBKC,,Statutory and Corporate Items,Capital Projects Cost Centre (default),,Morgan Sindall Construction,1260362,,,,13/10/2021,2200200806,"65,546.47",,Payments to main contractor,,,,,,No
The Royal Borough of Kensington and Chelsea,RBKC,,Statutory and Corporate Items,Capital Projects Cost Centre (default),,Morgan Sindall Construction,1260362,,,,16/12/2021,2200213730,"66,980.78",,Payments to main contractor,,,,,,No
The Royal Borough of Kensington and Chelsea,RBKC,,Statutory and Corporate Items,Capital Projects Cost Centre (default),,Mulalley & Company Ltd ,1231403,,,,08/11/2021,2200206259,"24,315.00",,Payments to main contractor,,,,,,No
The Royal Borough of Kensington and Chelsea,RBKC,,Statutory and Corporate Items,Capital Projects Cost Centre (default),,Mulalley & Company Ltd ,1231403,,,,09/11/2021,2200206535,"20,481.48",,Payments to main contractor,,,,,,No
The Royal Borough of Kensington and Chelsea,RBKC,,Statutory and Corporate Items,Capital Projects Cost Centre (default),,Mulalley & Company Ltd ,1231403,,,,02/12/2021,2200211000,"9,914.52",,Payments to main contractor,,,,,,No
The Royal Borough of Kensington and Chelsea,RBKC,,Statutory and Corporate Items,Capital Projects Cost Centre (default),,Murphy Geospatial UK Ltd,1285548,,,,08/12/2021,2200212093,"4,800.00",,Payments to main contractor,,,,,,No
The Royal Borough of Kensington and Chelsea,RBKC,,Statutory and Corporate Items,Capital Projects Cost Centre (default),,T/A SVM Associates,1230750,,,,15/12/2021,2200213368,"4,190.00",,Planned Maintenance (CM),,,,,,No
The Royal Borough of Kensington and Chelsea,RBKC,,Statutory and Corporate Items,Capital Projects Cost Centre (default),,NPS Property Consultants Ltd ,1235087,,,,06/12/2021,2200211658,"9,900.00",,Other Consultants,,,,,,No
The Royal Borough of Kensington and Chelsea,RBKC,,Statutory and Corporate Items,Capital Projects Cost Centre (default),,Nathaniel Lichfields and Partners,1265397,,,,16/12/2021,2200213738,750.00,,HCC - Architects,,,,,,No
The Royal Borough of Kensington and Chelsea,RBKC,,Statutory and Corporate Items,Capital Projects Cost Centre (default),,Nica Design Ltd,1280624,,,,12/10/2021,2200200194,"4,118.50",,Special Maintenance,,,,,,No
The Royal Borough of Kensington and Chelsea,RBKC,,Statutory and Corporate Items,Capital Projects Cost Centre (default),,Norton Rose Fulbright LLP ,1235073,,,,29/10/2021,2200203960,"1,586.83",,Other Consultants,,,,,,No
The Royal Borough of Kensington and Chelsea,RBKC,,Statutory and Corporate Items,Capital Projects Cost Centre (default),,Norton Rose Fulbright LLP ,1235073,,,,01/11/2021,2200204457,"1,586.83",,Other Consultants,,,,,,No
The Royal Borough of Kensington and Chelsea,RBKC,,Statutory and Corporate Items,Capital Projects Cost Centre (default),,Norton Rose Fulbright LLP ,1235073,,,,17/11/2021,2200208103,"4,902.09",,Other Consultants,,,,,,No
The Royal Borough of Kensington and Chelsea,RBKC,,Statutory and Corporate Items,Capital Projects Cost Centre (default),,Norton Rose Fulbright LLP ,1235073,,,,16/12/2021,2200213703,777.22,,Other Consultants,,,,,,No
The Royal Borough of Kensington and Chelsea,RBKC,,Statutory and Corporate Items,Capital Projects Cost Centre (default),,Oracle Security Services Ltd ,1258033,,,,14/12/2021,2200213171,"1,690.70",,Construction Security,,,,,,No
The Royal Borough of Kensington and Chelsea,RBKC,,Statutory and Corporate Items,Capital Projects Cost Centre (default),,Oracle Security Services Ltd ,1258033,,,,14/12/2021,2200213172,"1,818.30",,Construction Security,,,,,,No
The Royal Borough of Kensington and Chelsea,RBKC,,Statutory and Corporate Items,Capital Projects Cost Centre (default),,Oracle Security Services Ltd ,1258033,,,,14/12/2021,2200213173,"1,961.85",,Construction Security,,,,,,No
The Royal Borough of Kensington and Chelsea,RBKC,,Statutory and Corporate Items,Capital Projects Cost Centre (default),,Osborn Associates Ltd,1262963,,,,01/10/2021,2200197954,"9,760.00",,Other Consultants,,,,,,No
The Royal Borough of Kensington and Chelsea,RBKC,,Statutory and Corporate Items,Capital Projects Cost Centre (default),,Osborn Associates Ltd,1262963,,,,04/10/2021,2200198321,"3,600.00",,B*Surveyors,,,,,,No
The Royal Borough of Kensington and Chelsea,RBKC,,Statutory and Corporate Items,Capital Projects Cost Centre (default),,Osborn Associates Ltd,1262963,,,,04/10/2021,2200198322,"1,500.00",,Other Consultants,,,,,,No
The Royal Borough of Kensington and Chelsea,RBKC,,Statutory and Corporate Items,Capital Projects Cost Centre (default),,Osborn Associates Ltd,1262963,,,,05/10/2021,2200198637,"1,750.00",,Other Consultants,,,,,,No
The Royal Borough of Kensington and Chelsea,RBKC,,Statutory and Corporate Items,Capital Projects Cost Centre (default),,Osborn Associates Ltd,1262963,,,,06/10/2021,2200199115,"2,100.00",,Other Consultants,,,,,,No
The Royal Borough of Kensington and Chelsea,RBKC,,Statutory and Corporate Items,Capital Projects Cost Centre (default),,Osborn Associates Ltd,1262963,,,,12/10/2021,2200200528,"5,725.00",,Other Consultants,,,,,,No
The Royal Borough of Kensington and Chelsea,RBKC,,Statutory and Corporate Items,Capital Projects Cost Centre (default),,Osborn Associates Ltd,1262963,,,,12/11/2021,2200207077,"1,500.00",,Other Consultants,,,,,,No
The Royal Borough of Kensington and Chelsea,RBKC,,Statutory and Corporate Items,Capital Projects Cost Centre (default),,Osborn Associates Ltd,1262963,,,,16/11/2021,2200207697,"4,250.00",,Other Consultants,,,,,,No
The Royal Borough of Kensington and Chelsea,RBKC,,Statutory and Corporate Items,Capital Projects Cost Centre (default),,Osborn Associates Ltd,1262963,,,,16/11/2021,2200207698,"6,950.00",,Other Consultants,,,,,,No
The Royal Borough of Kensington and Chelsea,RBKC,,Statutory and Corporate Items,Capital Projects Cost Centre (default),,Osborn Associates Ltd,1262963,,,,29/11/2021,2200210091,"7,500.00",,Other Consultants,,,,,,No
The Royal Borough of Kensington and Chelsea,RBKC,,Statutory and Corporate Items,Capital Projects Cost Centre (default),,Osborn Associates Ltd,1262963,,,,17/12/2021,2200213913,"7,500.00",,Romanse Expenses,,,,,,No
The Royal Borough of Kensington and Chelsea,RBKC,,Statutory and Corporate Items,Capital Projects Cost Centre (default),,Osborne Thomas Ltd,1261917,,,,14/10/2021,2200200972,"11,125.11",,Other Consultants,,,,,,No
The Royal Borough of Kensington and Chelsea,RBKC,,Statutory and Corporate Items,Capital Projects Cost Centre (default),,Osborne Thomas Ltd,1261917,,,,14/10/2021,2200200973,"7,416.73",,Other Consultants,,,,,,No
The Royal Borough of Kensington and Chelsea,RBKC,,Statutory and Corporate Items,Capital Projects Cost Centre (default),,Osborne Thomas Ltd,1261917,,,,16/11/2021,2200207680,"6,992.32",,Other Consultants,,,,,,No
The Royal Borough of Kensington and Chelsea,RBKC,,Statutory and Corporate Items,Capital Projects Cost Centre (default),,Osborne Thomas Ltd,1261917,,,,16/11/2021,2200207681,"10,488.48",,Other Consultants,,,,,,No
The Royal Borough of Kensington and Chelsea,RBKC,,Statutory and Corporate Items,Capital Projects Cost Centre (default),,Osborne Thomas Ltd,1261917,,,,09/12/2021,2200212454,"10,755.23",,Other Consultants,,,,,,No
The Royal Borough of Kensington and Chelsea,RBKC,,Statutory and Corporate Items,Capital Projects Cost Centre (default),,Osborne Thomas Ltd,1261917,,,,13/12/2021,2200212922,"7,170.16",,Other Consultants,,,,,,No
The Royal Borough of Kensington and Chelsea,RBKC,,Statutory and Corporate Items,Capital Projects Cost Centre (default),,Oxford Gardens Primary School ,1232822,,,,28/10/2021,2200203825,"15,367.00",,Romanse Expenses,,,,,,No
The Royal Borough of Kensington and Chelsea,RBKC,,Statutory and Corporate Items,Capital Projects Cost Centre (default),,Oxford Gardens Primary School ,1232822,,,,28/10/2021,2200203826,"10,000.00",,Romanse Expenses,,,,,,No
The Royal Borough of Kensington and Chelsea,RBKC,,Statutory and Corporate Items,Capital Projects Cost Centre (default),,Oxford Gardens Primary School ,1232822,,,,24/11/2021,2200209370,"60,690.00",,Romanse Expenses,,,,,,No
The Royal Borough of Kensington and Chelsea,RBKC,,Statutory and Corporate Items,Capital Projects Cost Centre (default),,Oxford Gardens Primary School ,1232822,,,,17/12/2021,2200213983,"34,624.00",,Romanse Expenses,,,,,,No
The Royal Borough of Kensington and Chelsea,RBKC,,Statutory and Corporate Items,Capital Projects Cost Centre (default),,PJC Consultancy Ltd,1281022,,,,08/11/2021,2200206005,950.00,,Other Consultants,,,,,,No
The Royal Borough of Kensington and Chelsea,RBKC,,Statutory and Corporate Items,Capital Projects Cost Centre (default),,POD Point Ltd,1235177,,,,07/10/2021,2200199367,"1,933.28",,Site Works,,,,,,No
The Royal Borough of Kensington and Chelsea,RBKC,,Statutory and Corporate Items,Capital Projects Cost Centre (default),,POD Point Ltd,1235177,,,,11/10/2021,2200199949,"12,093.75",,Site Works,,,,,,No
The Royal Borough of Kensington and Chelsea,RBKC,,Statutory and Corporate Items,Capital Projects Cost Centre (default),,POD Point Ltd,1235177,,,,11/10/2021,2200199952,"2,916.20",,Site Works,,,,,,No
The Royal Borough of Kensington and Chelsea,RBKC,,Statutory and Corporate Items,Capital Projects Cost Centre (default),,Palmstead Nurseries Ltd,1230979,,,,06/12/2021,2200211600,513.03,,Environmental Improvement Grants,,,,,,No
The Royal Borough of Kensington and Chelsea,RBKC,,Statutory and Corporate Items,Capital Projects Cost Centre (default),,Paragon Building Consultancy Ltd ,1230988,,,,12/10/2021,2200200337,"1,500.00",,Acquisition of Land & Buildings,,,,,,No
The Royal Borough of Kensington and Chelsea,RBKC,,Statutory and Corporate Items,Capital Projects Cost Centre (default),,Paragon Building Consultancy Ltd ,1230988,,,,12/10/2021,2200200417,950.00,,Other Consultants,,,,,,No
The Royal Borough of Kensington and Chelsea,RBKC,,Statutory and Corporate Items,Capital Projects Cost Centre (default),,Paragon Building Consultancy Ltd ,1230988,,,,01/11/2021,2200204307,"3,000.00",,B*Surveyors,,,,,,No
The Royal Borough of Kensington and Chelsea,RBKC,,Statutory and Corporate Items,Capital Projects Cost Centre (default),,Paragon Building Consultancy Ltd ,1230988,,,,07/12/2021,2200211795,"1,500.00",,Acquisition of Land & Buildings,,,,,,No
The Royal Borough of Kensington and Chelsea,RBKC,,Statutory and Corporate Items,Capital Projects Cost Centre (default),,Perega Limited,1264035,,,,28/10/2021,2200203848,"3,600.00",,Planned Maintenance (CM),,,,,,No
The Royal Borough of Kensington and Chelsea,RBKC,,Statutory and Corporate Items,Capital Projects Cost Centre (default),,Perfect Circle JV Ltd ,1254748,,,,20/10/2021,2200202048,"49,566.00",,Payments to main contractor,,,,,,No
The Royal Borough of Kensington and Chelsea,RBKC,,Statutory and Corporate Items,Capital Projects Cost Centre (default),,Perfect Circle JV Ltd ,1254748,,,,20/10/2021,2200202095,"123,832.00",,Payments to main contractor,,,,,,No
The Royal Borough of Kensington and Chelsea,RBKC,,Statutory and Corporate Items,Capital Projects Cost Centre (default),,Perfect Circle JV Ltd ,1254748,,,,26/10/2021,2200203365,"26,632.00",,Payments to main contractor,,,,,,No
The Royal Borough of Kensington and Chelsea,RBKC,,Statutory and Corporate Items,Capital Projects Cost Centre (default),,Perfect Circle JV Ltd ,1254748,,,,29/10/2021,2200203961,"60,105.00",,Payments to main contractor,,,,,,No
The Royal Borough of Kensington and Chelsea,RBKC,,Statutory and Corporate Items,Capital Projects Cost Centre (default),,Perfect Circle JV Ltd ,1254748,,,,29/10/2021,2200203962,"24,682.00",,Payments to main contractor,,,,,,No
The Royal Borough of Kensington and Chelsea,RBKC,,Statutory and Corporate Items,Capital Projects Cost Centre (default),,Perfect Circle JV Ltd ,1254748,,,,29/10/2021,2200204054,"32,020.00",,Payments to main contractor,,,,,,No
The Royal Borough of Kensington and Chelsea,RBKC,,Statutory and Corporate Items,Capital Projects Cost Centre (default),,Perfect Circle JV Ltd ,1254748,,,,09/11/2021,2200206483,"4,160.00",,Payments to main contractor,,,,,,No
The Royal Borough of Kensington and Chelsea,RBKC,,Statutory and Corporate Items,Capital Projects Cost Centre (default),,Perfect Circle JV Ltd ,1254748,,,,25/11/2021,2200209584,"1,766.00",,Payments to main contractor,,,,,,No
The Royal Borough of Kensington and Chelsea,RBKC,,Statutory and Corporate Items,Capital Projects Cost Centre (default),,Perfect Circle JV Ltd ,1254748,,,,26/11/2021,2200209845,"61,193.00",,Payments to main contractor,,,,,,No
The Royal Borough of Kensington and Chelsea,RBKC,,Statutory and Corporate Items,Capital Projects Cost Centre (default),,Perfect Circle JV Ltd ,1254748,,,,26/11/2021,2200209846,"19,429.94",,Payments to main contractor,,,,,,No
The Royal Borough of Kensington and Chelsea,RBKC,,Statutory and Corporate Items,Capital Projects Cost Centre (default),,Perfect Circle JV Ltd ,1254748,,,,26/11/2021,2200209850,"110,097.00",,Payments to main contractor,,,,,,No
The Royal Borough of Kensington and Chelsea,RBKC,,Statutory and Corporate Items,Capital Projects Cost Centre (default),,Perfect Circle JV Ltd ,1254748,,,,26/11/2021,2200209852,"5,041.97",,Payments to main contractor,,,,,,No
The Royal Borough of Kensington and Chelsea,RBKC,,Statutory and Corporate Items,Capital Projects Cost Centre (default),,Perfect Circle JV Ltd ,1254748,,,,16/12/2021,2200213639,"22,250.00",,Payments to main contractor,,,,,,No
The Royal Borough of Kensington and Chelsea,RBKC,,Statutory and Corporate Items,Capital Projects Cost Centre (default),,Perfect Circle JV Ltd ,1254748,,,,16/12/2021,2200213640,"89,556.26",,Payments to main contractor,,,,,,No
The Royal Borough of Kensington and Chelsea,RBKC,,Statutory and Corporate Items,Capital Projects Cost Centre (default),,Perfect Circle JV Ltd ,1254748,,,,16/12/2021,2200213642,"143,124.82",,Payments to main contractor,,,,,,No
The Royal Borough of Kensington and Chelsea,RBKC,,Statutory and Corporate Items,Capital Projects Cost Centre (default),,Perkins & Will UK Limited,1265496,,,,04/10/2021,2200198260,"84,748.00",,Payments to main contractor,,,,,,No
The Royal Borough of Kensington and Chelsea,RBKC,,Statutory and Corporate Items,Capital Projects Cost Centre (default),,Perkins & Will UK Limited,1265496,,,,04/10/2021,2200198261,"30,816.00",,Payments to main contractor,,,,,,No
The Royal Borough of Kensington and Chelsea,RBKC,,Statutory and Corporate Items,Capital Projects Cost Centre (default),,Perkins & Will UK Limited,1265496,,,,04/10/2021,2200198339,"1,680.50",,Payments to main contractor,,,,,,No
The Royal Borough of Kensington and Chelsea,RBKC,,Statutory and Corporate Items,Capital Projects Cost Centre (default),,Perkins & Will UK Limited,1265496,,,,04/10/2021,2200198342,"2,000.00",,Payments to main contractor,,,,,,No
The Royal Borough of Kensington and Chelsea,RBKC,,Statutory and Corporate Items,Capital Projects Cost Centre (default),,Perkins & Will UK Limited,1265496,,,,04/10/2021,2200198343,"2,900.00",,Payments to main contractor,,,,,,No
The Royal Borough of Kensington and Chelsea,RBKC,,Statutory and Corporate Items,Capital Projects Cost Centre (default),,Perkins & Will UK Limited,1265496,,,,04/10/2021,2200198344,"21,820.00",,HCC - Architects,,,,,,No
The Royal Borough of Kensington and Chelsea,RBKC,,Statutory and Corporate Items,Capital Projects Cost Centre (default),,Perkins & Will UK Limited,1265496,,,,04/10/2021,2200198345,"3,000.00",,Payments to main contractor,,,,,,No
The Royal Borough of Kensington and Chelsea,RBKC,,Statutory and Corporate Items,Capital Projects Cost Centre (default),,Perkins & Will UK Limited,1265496,,,,01/11/2021,2200204235,702.60,,Payments to main contractor,,,,,,No
The Royal Borough of Kensington and Chelsea,RBKC,,Statutory and Corporate Items,Capital Projects Cost Centre (default),,Perkins & Will UK Limited,1265496,,,,01/11/2021,2200204239,"2,115.00",,Payments to main contractor,,,,,,No
The Royal Borough of Kensington and Chelsea,RBKC,,Statutory and Corporate Items,Capital Projects Cost Centre (default),,Perkins & Will UK Limited,1265496,,,,01/11/2021,2200204245,"5,000.00",,Payments to main contractor,,,,,,No
The Royal Borough of Kensington and Chelsea,RBKC,,Statutory and Corporate Items,Capital Projects Cost Centre (default),,Perkins & Will UK Limited,1265496,,,,30/11/2021,2200210562,889.80,,Payments to main contractor,,,,,,No
The Royal Borough of Kensington and Chelsea,RBKC,,Statutory and Corporate Items,Capital Projects Cost Centre (default),,Perkins & Will UK Limited,1265496,,,,30/11/2021,2200210563,"5,000.00",,Payments to main contractor,,,,,,No
The Royal Borough of Kensington and Chelsea,RBKC,,Statutory and Corporate Items,Capital Projects Cost Centre (default),,Perkins & Will UK Limited,1265496,,,,02/12/2021,2200211026,"10,000.00",,Payments to main contractor,,,,,,No
The Royal Borough of Kensington and Chelsea,RBKC,,Statutory and Corporate Items,Capital Projects Cost Centre (default),,Perkins & Will UK Limited,1265496,,,,02/12/2021,2200211027,"18,200.00",,Payments to main contractor,,,,,,No
The Royal Borough of Kensington and Chelsea,RBKC,,Statutory and Corporate Items,Capital Projects Cost Centre (default),,Perkins & Will UK Limited,1265496,,,,02/12/2021,2200211031,"7,500.00",,Payments to main contractor,,,,,,No
The Royal Borough of Kensington and Chelsea,RBKC,,Statutory and Corporate Items,Capital Projects Cost Centre (default),,Perkins & Will UK Limited,1265496,,,,02/12/2021,2200211035,"2,260.50",,Payments to main contractor,,,,,,No
The Royal Borough of Kensington and Chelsea,RBKC,,Statutory and Corporate Items,Capital Projects Cost Centre (default),,Perkins & Will UK Limited,1265496,,,,02/12/2021,2200211038,"16,170.00",,Design Consultant,,,,,,No
The Royal Borough of Kensington and Chelsea,RBKC,,Statutory and Corporate Items,Capital Projects Cost Centre (default),,Perkins & Will UK Limited,1265496,,,,02/12/2021,2200211124,"4,455.00",,Payments to main contractor,,,,,,No
The Royal Borough of Kensington and Chelsea,RBKC,,Statutory and Corporate Items,Capital Projects Cost Centre (default),,Point 2 Surveyors,1235179,,,,01/11/2021,2200204456,"3,730.00",,Legal Fees & expenses,,,,,,No
The Royal Borough of Kensington and Chelsea,RBKC,,Statutory and Corporate Items,Capital Projects Cost Centre (default),,Point 2 Surveyors,1235179,,,,23/11/2021,2200209182,"8,900.00",,Legal Fees & expenses,,,,,,No
The Royal Borough of Kensington and Chelsea,RBKC,,Statutory and Corporate Items,Capital Projects Cost Centre (default),,Potter Raper Partnership,1235188,,,,07/10/2021,2200199261,"9,700.00",,Payments to main contractor,,,,,,No
The Royal Borough of Kensington and Chelsea,RBKC,,Statutory and Corporate Items,Capital Projects Cost Centre (default),,Project Centre ,1235205,,,,15/10/2021,2200201250,862.50,,Payments to main contractor,,,,,,No
The Royal Borough of Kensington and Chelsea,RBKC,,Statutory and Corporate Items,Capital Projects Cost Centre (default),,Project Centre ,1235205,,,,15/10/2021,2200201251,"3,680.00",,Design Consultant,,,,,,No
The Royal Borough of Kensington and Chelsea,RBKC,,Statutory and Corporate Items,Capital Projects Cost Centre (default),,Project Centre ,1235205,,,,29/10/2021,2200204043,950.69,,Design Consultant,,,,,,No
The Royal Borough of Kensington and Chelsea,RBKC,,Statutory and Corporate Items,Capital Projects Cost Centre (default),,Project Centre ,1235205,,,,19/11/2021,2200208581,"6,900.00",,Design Consultant,,,,,,No
The Royal Borough of Kensington and Chelsea,RBKC,,Statutory and Corporate Items,Capital Projects Cost Centre (default),,Project Centre ,1235205,,,,03/12/2021,2200211440,"4,180.00",,Payments to main contractor,,,,,,No
The Royal Borough of Kensington and Chelsea,RBKC,,Statutory and Corporate Items,Capital Projects Cost Centre (default),,Project Centre ,1235205,,,,03/12/2021,2200211442,"9,825.00",,Payments to main contractor,,,,,,No
The Royal Borough of Kensington and Chelsea,RBKC,,Statutory and Corporate Items,Capital Projects Cost Centre (default),,Project Centre ,1235205,,,,16/12/2021,2200213608,"2,000.00",,Payments to main contractor,,,,,,No
The Royal Borough of Kensington and Chelsea,RBKC,,Statutory and Corporate Items,Capital Projects Cost Centre (default),,Propitas Building & Project,1261248,,,,20/12/2021,2200214196,700.00,,Planned Maintenance (CM),,,,,,No
The Royal Borough of Kensington and Chelsea,RBKC,,Statutory and Corporate Items,Capital Projects Cost Centre (default),,Prp Architects Llp ,1235213,,,,03/11/2021,2200205237,"4,850.00",,HCC - Architects,,,,,,No
The Royal Borough of Kensington and Chelsea,RBKC,,Statutory and Corporate Items,Capital Projects Cost Centre (default),,T/A Idverde ,1231423,,,,06/12/2021,2200211597,"6,504.26",,Other capital equipment,,,,,,No
The Royal Borough of Kensington and Chelsea,RBKC,,Statutory and Corporate Items,Capital Projects Cost Centre (default),,T/A Idverde ,1231423,,,,22/12/2021,2200215089,"1,069.26",,Other capital equipment,,,,,,No
The Royal Borough of Kensington and Chelsea,RBKC,,Statutory and Corporate Items,Capital Projects Cost Centre (default),,T/A Idverde ,1231423,,,,22/12/2021,2200215090,"4,031.13",,Other capital equipment,,,,,,No
The Royal Borough of Kensington and Chelsea,RBKC,,Statutory and Corporate Items,Capital Projects Cost Centre (default),,T/A Idverde ,1231423,,,,22/12/2021,2200215091,"1,576.72",,Other capital equipment,,,,,,No
The Royal Borough of Kensington and Chelsea,RBKC,,Statutory and Corporate Items,Capital Projects Cost Centre (default),,Quinn London Ltd,1235230,,,,12/10/2021,2200200408,"275,500.00",,Other Consultants,,,,,,No
The Royal Borough of Kensington and Chelsea,RBKC,,Statutory and Corporate Items,Capital Projects Cost Centre (default),,Quinn London Ltd,1235230,,,,12/11/2021,2200207178,"106,400.00",,Other Consultants,,,,,,No
The Royal Borough of Kensington and Chelsea,RBKC,,Statutory and Corporate Items,Capital Projects Cost Centre (default),,Quinn London Ltd,1235230,,,,24/11/2021,2200209410,"4,089.34",,Payments to main contractor,,,,,,No
The Royal Borough of Kensington and Chelsea,RBKC,,Statutory and Corporate Items,Capital Projects Cost Centre (default),,Quinn London Ltd,1235230,,,,15/12/2021,2200213507,"177,650.00",,Other Consultants,,,,,,No
The Royal Borough of Kensington and Chelsea,RBKC,,Statutory and Corporate Items,Capital Projects Cost Centre (default),,Quinn London Ltd,1235230,,,,16/12/2021,2200213623,"2,269.75",,Payments to main contractor,,,,,,No
The Royal Borough of Kensington and Chelsea,RBKC,,Statutory and Corporate Items,Capital Projects Cost Centre (default),,Quinn Studio Ltd ,1255519,,,,19/10/2021,2200201901,801.40,,Payments to main contractor,,,,,,No
The Royal Borough of Kensington and Chelsea,RBKC,,Statutory and Corporate Items,Capital Projects Cost Centre (default),,R & Ma Stewart Ltd ,1235232,,,,23/11/2021,2200209192,"1,120.00",,Payments to main contractor,,,,,,No
The Royal Borough of Kensington and Chelsea,RBKC,,Statutory and Corporate Items,Capital Projects Cost Centre (default),,R Benson Property Maintenance,1266216,,,,26/10/2021,2200203304,"98,266.46",,Romanse Expenses,,,,,,No
The Royal Borough of Kensington and Chelsea,RBKC,,Statutory and Corporate Items,Capital Projects Cost Centre (default),,R Benson Property Maintenance,1266216,,,,07/12/2021,2200211965,"39,343.52",,Romanse Expenses,,,,,,No
The Royal Borough of Kensington and Chelsea,RBKC,,Statutory and Corporate Items,Capital Projects Cost Centre (default),,R Benson Property Maintenance,1266216,,,,30/12/2021,2200215973,"94,507.83",,Romanse Expenses,,,,,,No
The Royal Borough of Kensington and Chelsea,RBKC,,Statutory and Corporate Items,Capital Projects Cost Centre (default),,RICS ,1231272,,,,05/11/2021,2200205822,"2,043.00",,Other Consultants,,,,,,No
The Royal Borough of Kensington and Chelsea,RBKC,,Statutory and Corporate Items,Capital Projects Cost Centre (default),,RSK Environment Ltd ,1231296,,,,29/10/2021,2200204025,"2,510.06",,Site Works,,,,,,No
The Royal Borough of Kensington and Chelsea,RBKC,,Statutory and Corporate Items,Capital Projects Cost Centre (default),,RUSSELL TREW LIMITED,1272150,,,,15/11/2021,2200207564,"111,936.15",,Planned Maintenance (CM),,,,,,No
The Royal Borough of Kensington and Chelsea,RBKC,,Statutory and Corporate Items,Capital Projects Cost Centre (default),,RUSSELL TREW LIMITED,1272150,,,,24/12/2021,2200215646,"5,070.00",,Planned Maintenance (CM),,,,,,No
The Royal Borough of Kensington and Chelsea,RBKC,,Statutory and Corporate Items,Capital Projects Cost Centre (default),,RUSSELL TREW LIMITED,1272150,,,,24/12/2021,2200215647,"67,275.00",,Planned Maintenance (CM),,,,,,No
The Royal Borough of Kensington and Chelsea,RBKC,,Statutory and Corporate Items,Capital Projects Cost Centre (default),,Ramboll UK Ltd,1274051,,,,19/10/2021,2200201853,"5,677.00",,Payments to main contractor,,,,,,No
The Royal Borough of Kensington and Chelsea,RBKC,,Statutory and Corporate Items,Capital Projects Cost Centre (default),,Ramboll UK Ltd,1274051,,,,24/11/2021,2200209367,"18,284.00",,Payments to main contractor,,,,,,No
The Royal Borough of Kensington and Chelsea,RBKC,,Statutory and Corporate Items,Capital Projects Cost Centre (default),,Ramboll UK Ltd,1274051,,,,14/12/2021,2200213038,"26,039.00",,Payments to main contractor,,,,,,No
The Royal Borough of Kensington and Chelsea,RBKC,,Statutory and Corporate Items,Capital Projects Cost Centre (default),,Ramboll UK Ltd,1274051,,,,14/12/2021,2200213039,"5,541.00",,Payments to main contractor,,,,,,No
The Royal Borough of Kensington and Chelsea,RBKC,,Statutory and Corporate Items,Capital Projects Cost Centre (default),,Ramboll UK Ltd,1274051,,,,17/12/2021,2200213962,"20,124.00",,Payments to main contractor,,,,,,No
The Royal Borough of Kensington and Chelsea,RBKC,,Statutory and Corporate Items,Capital Projects Cost Centre (default),,Ramboll UK Ltd,1274051,,,,30/12/2021,2200216005,"12,488.00",,Payments to main contractor,,,,,,No
The Royal Borough of Kensington and Chelsea,RBKC,,Statutory and Corporate Items,Capital Projects Cost Centre (default),,Raytell Electrical Co Limited,1279437,,,,07/10/2021,2200199316,"1,607.83",,Romanse Expenses,,,,,,No
The Royal Borough of Kensington and Chelsea,RBKC,,Statutory and Corporate Items,Capital Projects Cost Centre (default),,Repair Restore Rebuild Limited,1259603,,,,25/10/2021,2200203072,"3,300.00",,Other Consultants,,,,,,No
The Royal Borough of Kensington and Chelsea,RBKC,,Statutory and Corporate Items,Capital Projects Cost Centre (default),,Resourcing Group ,1235269,,,,04/10/2021,2200198334,829.85,,B*Strategic Building Maintenance,,,,,,No
The Royal Borough of Kensington and Chelsea,RBKC,,Statutory and Corporate Items,Capital Projects Cost Centre (default),,Resourcing Group ,1235269,,,,04/10/2021,2200198340,853.56,,B*Strategic Building Maintenance,,,,,,No
The Royal Borough of Kensington and Chelsea,RBKC,,Statutory and Corporate Items,Capital Projects Cost Centre (default),,Resourcing Group ,1235269,,,,04/10/2021,2200198341,"1,030.40",,B*Strategic Building Maintenance,,,,,,No
The Royal Borough of Kensington and Chelsea,RBKC,,Statutory and Corporate Items,Capital Projects Cost Centre (default),,Resourcing Group ,1235269,,,,08/10/2021,2200199682,"1,030.40",,B*Strategic Building Maintenance,,,,,,No
The Royal Borough of Kensington and Chelsea,RBKC,,Statutory and Corporate Items,Capital Projects Cost Centre (default),,Resourcing Group ,1235269,,,,08/10/2021,2200199686,"1,428.48",,B*Strategic Building Maintenance,,,,,,No
The Royal Borough of Kensington and Chelsea,RBKC,,Statutory and Corporate Items,Capital Projects Cost Centre (default),,Resourcing Group ,1235269,,,,08/10/2021,2200199687,"1,428.48",,B*Strategic Building Maintenance,,,,,,No
The Royal Borough of Kensington and Chelsea,RBKC,,Statutory and Corporate Items,Capital Projects Cost Centre (default),,Resourcing Group ,1235269,,,,12/10/2021,2200200512,829.85,,B*Strategic Building Maintenance,,,,,,No
The Royal Borough of Kensington and Chelsea,RBKC,,Statutory and Corporate Items,Capital Projects Cost Centre (default),,Resourcing Group ,1235269,,,,12/10/2021,2200200515,663.88,,B*Strategic Building Maintenance,,,,,,No
The Royal Borough of Kensington and Chelsea,RBKC,,Statutory and Corporate Items,Capital Projects Cost Centre (default),,Resourcing Group ,1235269,,,,12/10/2021,2200200518,"1,030.40",,B*Strategic Building Maintenance,,,,,,No
The Royal Borough of Kensington and Chelsea,RBKC,,Statutory and Corporate Items,Capital Projects Cost Centre (default),,Resourcing Group ,1235269,,,,12/10/2021,2200200521,"1,428.48",,B*Strategic Building Maintenance,,,,,,No
The Royal Borough of Kensington and Chelsea,RBKC,,Statutory and Corporate Items,Capital Projects Cost Centre (default),,Resourcing Group ,1235269,,,,26/10/2021,2200203193,"1,428.48",,B*Strategic Building Maintenance,,,,,,No
The Royal Borough of Kensington and Chelsea,RBKC,,Statutory and Corporate Items,Capital Projects Cost Centre (default),,Resourcing Group ,1235269,,,,26/10/2021,2200203194,"1,030.40",,B*Strategic Building Maintenance,,,,,,No
The Royal Borough of Kensington and Chelsea,RBKC,,Statutory and Corporate Items,Capital Projects Cost Centre (default),,Resourcing Group ,1235269,,,,26/10/2021,2200203195,853.56,,B*Strategic Building Maintenance,,,,,,No
The Royal Borough of Kensington and Chelsea,RBKC,,Statutory and Corporate Items,Capital Projects Cost Centre (default),,Resourcing Group ,1235269,,,,26/10/2021,2200203202,"1,428.48",,B*Strategic Building Maintenance,,,,,,No
The Royal Borough of Kensington and Chelsea,RBKC,,Statutory and Corporate Items,Capital Projects Cost Centre (default),,Resourcing Group ,1235269,,,,02/11/2021,2200204797,853.56,,B*Strategic Building Maintenance,,,,,,No
The Royal Borough of Kensington and Chelsea,RBKC,,Statutory and Corporate Items,Capital Projects Cost Centre (default),,Resourcing Group ,1235269,,,,02/11/2021,2200204840,"1,428.48",,B*Strategic Building Maintenance,,,,,,No
The Royal Borough of Kensington and Chelsea,RBKC,,Statutory and Corporate Items,Capital Projects Cost Centre (default),,Resourcing Group ,1235269,,,,02/11/2021,2200204843,"1,030.40",,B*Strategic Building Maintenance,,,,,,No
The Royal Borough of Kensington and Chelsea,RBKC,,Statutory and Corporate Items,Capital Projects Cost Centre (default),,Resourcing Group ,1235269,,,,03/11/2021,2200205204,"1,030.40",,B*Strategic Building Maintenance,,,,,,No
The Royal Borough of Kensington and Chelsea,RBKC,,Statutory and Corporate Items,Capital Projects Cost Centre (default),,Resourcing Group ,1235269,,,,12/11/2021,2200207162,"1,030.40",,B*Strategic Building Maintenance,,,,,,No
The Royal Borough of Kensington and Chelsea,RBKC,,Statutory and Corporate Items,Capital Projects Cost Centre (default),,Resourcing Group ,1235269,,,,12/11/2021,2200207163,"1,190.40",,B*Strategic Building Maintenance,,,,,,No
